{"text_format":"1","workbook":"xlsx","n_sheets":7,"sheets":["Index","General Info","Shareholders Meeting","Details of Resolution","Details of RPT","Taxonomy","TextBlock"],"not_rendered":{"charts":0,"images":1,"macros":1,"external_links":0,"defined_names":0,"comments":0,"pivot_tables":0},"unopened":[],"bounds":{"document_bytes":16777216,"sheet_cells":100000,"rows_first":2000,"rows_last":500,"rows_between":2000,"halvings":0,"cell_chars":16384,"cell_head_chars":4096},"cells_cut":0,"cells_raw":0,"read":"whole","date_system":"1900"}

{"sheet":"Index","index":0,"n_rows":48,"n_cols":10,"rows_kept":48,"cut":false,"hidden":false,"merged":[[47,3,47,9],[41,3,41,9],[42,3,42,9],[43,3,43,9],[44,3,44,9],[45,3,45,9],[46,3,46,9],[40,3,40,9],[22,3,22,9],[25,3,25,9],[26,4,26,8],[31,3,31,9],[32,3,32,9],[33,3,33,9],[34,3,34,9],[35,3,35,9],[36,3,36,9],[37,3,37,9],[23,3,23,9],[21,3,21,9],[5,4,5,8],[6,5,6,8],[7,5,7,8],[8,5,8,8],[10,5,10,8],[13,3,13,9],[14,3,14,9],[17,3,17,9],[18,3,18,9],[19,3,19,9],[20,3,20,9]]}
[]
[]
[]
[]
[]
[null,null,null,null,"                                      XBRL Excel Utility"]
[" ",null,null,null,"1.","Overview"]
[null,null,null,null,"2.","Before you begin"]
[null,null,null,null,"3.","Index"]
[null,null,null,null,"4.","Steps for Filing Notice of Shareholders Meeting Report"]
[null,null,null,null,"5.","Fill up the data in excel utility"]
[]
[]
[null,null,null,"1. Overview"]
[null,null,null,"The excel utility can be used for creating the XBRL/XML file for efiling of Excel Utility for Notice of Shareholders Meeting Report."]
[]
[]
[null,null,null," 2.  Before you begin"]
[null,null,null,"1. The version of Microsoft Excel in your system should be Microsoft Office Excel 2007 and above."]
[null,null,null,"2. The system should have a file compression software to unzip excel utility file."]
[null,null,null,"3. Make sure that you have downloaded the latest Excel Utility."]
[null,null,null,"4. Make sure that you have downloaded the Chrome Browser to view report generated from Excel utility"]
[null,null,null,"5. Please enable the Macros (if disabled) as per instructions given in manual, so that all the functionalities of  Excel Utility works fine. Please first go through Enable Macro - Manual attached with zip file."]
[null,null,null,"6. Kindly use this file in local system instead of OneDrive/shared drive.\nBecause it may gives an error \"Run-time error '52' : Bad file name or number\" While clicking on textblock button if files saved on OneDrive/shared drive."]
[]
[null,null,null,"3. Index "]
[null,null,null,1,"General information about the company",null,null,null,null,"General info"]
[null,null,null,2,"Notice of Shareholders Meeting",null,null,null,null,"Shareholders Meeting"]
[null,null,null,3,"Details of Resolution",null,null,null,null,"Details of Resolution"]
[null,null,null,4,"Details of RPT",null,null,null,null,"Details of RPT"]
[]
[null,null,null,"4. Steps for Filing Excel Utility for Notice of Shareholders Meeting Report"]
[null,null,null,"I.  Fill up the data: Navigate to each field of every section in the sheet to provide applicable data in correct format.  (Formats will get reflected while filling data.)  \n   - Use paste special command to paste data from other sheet."]
[null,null,null,"II. Validating Sheets:  Click on the ''Validate\" button to ensure that the sheet has been properly filled and also data has been furnished in proper format. If there are some errors on the sheet, excel utility will prompt you about the same."]
[null,null,null,"III. Validate All Sheets:  Click on the ''Home\" button. And then click on \"Validate All Sheet\" button to ensure that all sheets has been properly filled and validated successfully. If there are some errors on the sheet, excel utility will prompt you about the same and stop validation at the same time. After correction, once again follow the same procedure to validate all sheets."]
[null,null,null,"Excel Utility will not allow you to generate XBRL/XML until you rectify all errors. "]
[null,null,null,"IV. Generate XML :   Excel Utility will not allow you to generate XBRL/XML unless successful validation of all sheet is completed. Now click on 'Generate XML'' to generate XBRL/XML file. \n    - Save the XBRL/XML file in your desired folder in local system."]
[null,null,null,"V. Generate Report :   Excel Utility will allow you to generate Report. Now click on 'Generate Report'' to generate html report.   \n     - Save the HTML Report file in your desired folder in local system.     \n     - To view HTML Report open \"Chrome Web Browser\" . \n     - To print report in PDF Format, Click on print button and save as PDF. "]
[]
[]
[null,null,null,"5. Fill up the data in excel utility"]
[null,null,null,"1. Cells with red astrerisk mark indicate mandatory fields. "]
[null,null,null,"2. If mandatory field is left empty, then Utility will not allow you to proceed further for generating XML."]
[null,null,null,"3. You are not allowed to enter data in the Grey Cells."]
[null,null,null,"4. If fields are not applicable to your company then leave it blank. Do not insert Zero unless it is a mandatory field."]
[null,null,null,"5. Data provided must be in correct format, otherwise Utility will not allow you to proceed further for generating XML."]
[null,null,null,"6. Select data from \"Dropdown list\" wherever applicable. "]
[null,null,null,"7. Adding Notes:  Click on \"Add Notes\" button to add notes "]

{"sheet":"General Info","index":1,"n_rows":18,"n_cols":74,"rows_kept":18,"cut":false,"hidden":false,"merged":[[6,3,6,6],[7,5,13,6],[15,5,17,6]]}
[null,null,null,null,null,null,null,null,"New",null,null,null,null,null,"00","01","02","03","04","05","06","07","08","09","10","11","12","13","14","15","16","17","18","19","20","21","22",23]
[null,null,null,null,null,null,null,null,"Update",null,null,null,null,null,"00","01","02","03","04","05","06","07","08","09","10","11","12","13","14","15","16","17","18","19","20","21","22","23","24","25","26","27","28","29","30","31","32","33","34","35","36","37","38","39","40","41","42","43","44","45","46","47","48","49","50","51","52","53","54","55","56","57","58","59"]
[]
[]
[]
[]
[null,null,null,"General Information"]
[null,null,null,"NSE Symbol*",null,null,null,null,null,null,null,null,null,"NSESymbol"]
[null,null,null,"Name of the Company*",null,null,null,null,null,null,null,null,null,"NameOfTheCompany"]
[null,null,null,"BSE Scrip Code*",null,null,null,null,null,null,null,null,null,"ScripCode"]
[null,null,null,"MSEI Symbol*",null,null,null,null,null,null,null,null,null,"MSEISymbol"]
[null,null,null,"ISIN*",null,null,null,null,null,null,null,null,null,"ISIN"]
[null,null,null,"Type of announcement*",null,null,null,null,null,null,null,null,null,"TypeOfAnnouncement"]
[null,null,null,"Date of occurrence of event*",null,null,null,null,null,null,null,null,null,"DateOfOccurrenceOfEvent"]
[null,null,null,"Time of occurrence of event*",null,null,"HH:MM",null,null,null,null,null,null,"TimeOfOccurrenceOfEvent"]
[null,null,null,"Remarks (website dissemination)",null,null,null,null,null,null,null,null,null,"RemarksForWebsiteDissemination"]
[null,null,null,"Remarks for exchange (not for website dissemination)",null,null,null,null,null,null,null,null,null,"RemarksForExchangeNotForWebsiteDissemination"]
[null,null,null,"Date of Report",{"$f":"TODAY()","v":"2024-12-26"},null,null,null,null,null,null,null,null,"DateOfReport"]

{"sheet":"Shareholders Meeting","index":2,"n_rows":23,"n_cols":75,"rows_kept":23,"cut":false,"hidden":false,"merged":[[6,3,6,6],[13,5,13,6],[14,5,14,6]]}
[null,null,null,null,null,null,null,null,0,null,null,"Annual General Meeting","Physical Meeting",null,null,"00","01","02","03","04","05","06","07","08","09","10","11","12","13","14","15","16","17","18","19","20","21","22","23"]
[null,null,null,null,null,null,null,null,null,null,null,"Extra-ordinary Meeting","Video Conference (VC) or Other Audio-Visual Means (OAVM)",null,null,"00","01","02","03","04","05","06","07","08","09","10","11","12","13","14","15","16","17","18","19","20","21","22","23","24","25","26","27","28","29","30","31","32","33","34","35","36","37","38","39","40","41","42","43","44","45","46","47","48","49","50","51","52","53","54","55","56","57","58","59"]
[null,null,null,null,null,null,null,null,null,null,null,"Postal Ballot","Postal Ballot"]
[null,null,null,null,null,null,null,null,null,null,null,"NCLT/ Court Convened Meeting","Postal Ballot"]
[null,null,null,null,null,null,null,null,null,null,null,"Others"]
[]
[null,null,null,"Notice of Shareholders Meeting"]
[null,null,null,"Event*",null,null,null,null,null,null,null,null,null,"EventForNoticeOfShareholdersMeeting"]
[null,null,null,"If others, please specify",null,null,null,null,null,null,null,null,null,"DetailsOfOtherEventForNoticeOfShareholdersMeeting"]
[null,null,null,"Mode of meeting*"]
[null,null,null,1,null,null,null,null,null,null,null,null,null,"ModeOfShareholdersMeeting"]
[null,null,null,"Number of Shareholders Meeting*",null,null,null,null,null,null,null,null,null,"NumberOfShareholdersMeeting"]
[null,null,null,"Details of shareholders meeting"]
[null,null,null,"Day*",null,{"$f":"IF($E$8=\"Postal Ballot\",\"<<< Day considered as the start day of postal ballot event\",\"\")","v":""},null,null,null,null,null,null,null,"DayOfShareholdersMeeting"]
[null,null,null,"Date*",null,{"$f":"IF($E$8=\"Postal Ballot\",\"<<< Date considered as the start date of postal ballot event\",\"\")","v":""},null,null,null,null,null,null,null,"DateOfShareholdersMeeting"]
[null,null,null,"Meeting Commencement Time",null,null,"HH:MM",null,null,null,null,null,null,"ShareholdersMeetingCommencementTime"]
[null,null,null,"Place",null,null,null,null,null,null,null,null,null,"PlaceOfShareholdersMeeting"]
[null,null,null,"End date of Postal Ballot Voting","",null,null,null,null,null,null,null,null,"EndDateOfPostalBallotVoting"]
[null,null,null,"Number of agenda/business to be transacted*",null,null,null,null,null,null,null,null,null,"NumberOfAgendaOrBusinessToBeTransacted"]
[null,null,null,"Details of Resolution/Agenda",null,null,null,null,null,null,null,null,null,"DetailsOfResolutionOrAgenda"]
[null,null,null,"Any other information",null,null,null,null,null,null,null,null,null,"OtherInformationForShareholdersMeeting"]
[null,null,null,"Remarks (website dissemination)",null,null,null,null,null,null,null,null,null,"RemarksForWebsiteDisseminationForShareholdersMeeting"]
[null,null,null,"Remarks for exchange (not for website dissemination)",null,null,null,null,null,null,null,null,null,"RemarksForExchangeNotForWebsiteDisseminationForShareholdersMeeting"]

{"sheet":"Details of Resolution","index":3,"n_rows":10,"n_cols":66,"rows_kept":10,"cut":false,"hidden":false,"merged":[[6,3,6,8]]}
[null,null,null,null,null,null,{"$f":"IF((COUNTIF($F$10:F11,\"Related Party Transaction\")+COUNTIF($F$10:F11,\"Adoption of Financial Statements\"))<COUNTA(F10:F11),TRUE,FALSE)","v":false},{"$f":"AND(COUNTIF($G$10:G11,\"Others\"))","v":false},0,{"$f":"IF((COUNTIF($F$10:F11,\"Related Party Transaction\")+COUNTIF($F$10:F11,\"Adoption of Financial Statements\")+COUNTIF($F$10:F11,\"Issuance/Corporate Action\")+COUNTIF($F$10:F11,\"Restructuring/Scheme of Arrangement/Loans\")+COUNTIF($F$10:F11,\"Others\"))<COUNTA(F10:F11),TRUE,FALSE)","v":false},{"$f":"AND(COUNTIF($J$10:J11,\"Others\"))","v":false},{"$f":"IF((COUNTIF($F$10:F11,\"Related Party Transaction\")+COUNTIF($F$10:F11,\"Adoption of Financial Statements\")+COUNTIF($F$10:F11,\"Issuance/Corporate Action\")+COUNTIF($F$10:F11,\"Restructuring/Scheme of Arrangement/Loans\")+COUNTIF($F$10:F11,\"Others\"))<COUNTA(F10:F11),TRUE,FALSE)","v":false},{"$f":"IF((COUNTIF($J$10:J11,\"Others\"))<COUNTA(J10:J11),TRUE,FALSE)","v":false},{"$f":"IF((COUNTIF($F$10:F11,\"Related Party Transaction\")+COUNTIF($F$10:F11,\"Adoption of Financial Statements\")+COUNTIF($F$10:F11,\"Issuance/Corporate Action\")+COUNTIF($F$10:F11,\"Restructuring/Scheme of Arrangement/Loans\")+COUNTIF($F$10:F11,\"Others\"))<COUNTA(F10:F11),TRUE,FALSE)","v":false},{"$f":"IF((COUNTIF($F$10:F11,\"Related Party Transaction\")+COUNTIF($F$10:F11,\"Adoption of Financial Statements\")+COUNTIF($F$10:F11,\"Issuance/Corporate Action\")+COUNTIF($F$10:F11,\"Restructuring/Scheme of Arrangement/Loans\")+COUNTIF($F$10:F11,\"Others\"))<COUNTA(F10:F11),TRUE,FALSE)","v":false},{"$f":"IF((COUNTIF($F$10:F11,\"Related Party Transaction\")+COUNTIF($F$10:F11,\"Adoption of Financial Statements\")+COUNTIF($F$10:F11,\"Issuance/Corporate Action\")+COUNTIF($F$10:F11,\"Restructuring/Scheme of Arrangement/Loans\")+COUNTIF($F$10:F11,\"Others\"))<COUNTA(F10:F11),TRUE,FALSE)","v":false},{"$f":"OR(COUNTIFS($G$10:G11,\"Appointment\",$J$10:J11,\"Executive Director\"),COUNTIFS($G$10:G11,\"Appointment\",$J$10:J11,\"Non-Executive - Independent Director\"),COUNTIFS($G$10:G11,\"Re-appointment\",$J$10:J11,\"Executive Director\"),COUNTIFS($G$10:G11,\"Re-appointment\",$J$10:J11,\"Non-Executive - Independent Director\"),COUNTIFS($G$10:G11,\"Appointment/Continuation under Reg. 17(1A) of SEBI LODR\",$J$10:J11,\"Executive Director\"),COUNTIFS($G$10:G11,\"Appointment/Continuation under Reg. 17(1A) of SEBI LODR\",$J$10:J11,\"Non-Executive - Independent Director\"),COUNTIFS($G$10:G11,\"Continuation under Reg. 17(1D) of SEBI LODR\",$J$10:J11,\"Non-Executive - Independent Director\"),COUNTIFS($G$10:G11,\"Continuation under Reg. 17(1D) of SEBI LODR\",$J$10:J11,\"Executive Director\"))","v":false},{"$f":"AND(COUNTIF($G$10:G11,\"Remuneration\"))","v":false},null,null,null,null,null,null,null,null,null,null,"Special Resolution","Appointment/Re-appointment/Removal/Ratification/Retirement/Remuneration","Appointment","Alternate Director","Buyback","Increase in Borrowing Limits","Alteration in MoA/AoA",null,1,{"$f":"AK1+1","v":2},{"$f":"AL1+1","v":3},4,5,6,7,8,9,10,11,12,13,14,15,16,17,18,19,20,21,22,23,24,25,26,27,28,29,30]
[null,null,null,null,"TypeOfResolution","CategoryOfResolution","SubCategoryOfResolution","DetailsOfOtherSubCategoryOfResolution","BriefDetailsOfResolution","DesignationOfDesignatedPerson","DetailsOfOtherDesignation","NameOfDesignatedPerson","DirectorIdentificationNumberOfDirector","PANOfDesignatedPerson","DateOfStartOfTenure","DateOfEndOfTenure","NumberOfTimesAppointed","AmountOfRemuneration",null,null,null,null,null,null,null,null,null,null,"Ordinary Resolution","Related Party Transaction","Re-appointment","Executive - Nominee Director","Dividend","Inter-Corporate Loans/Guarantees/Investments","Delisting"]
[null,null,null,null,null,null,null,null,null,null,null,null,null,null,null,null,null,null,null,null,null,null,null,null,null,null,null,null,null,"Adoption of Financial Statements","Appointment/Continuation under Reg. 17(1A) of SEBI LODR","Executive Director","ESOP/ESPS","Restructuring","Donation"]
[null,null,null,null,null,null,null,null,null,null,null,null,null,null,null,null,null,null,null,null,null,null,null,null,null,null,null,null,null,"Issuance/Corporate Action","Continuation under Reg. 17(1D) of SEBI LODR","Non-Executive - Independent Director","Issuance of Securities","Sale/Creation of Charge","Migration"]
[null,null,null,null,null,null,null,null,null,null,null,null,null,null,null,null,null,null,null,null,null,null,null,null,null,null,null,null,null,"Restructuring/Scheme of Arrangement/Loans","Ratification","Non-Executive - Nominee Director","Others","Scheme of Arrangement","Place for keeping registers & documents"]
[null,null,null,null,null,null,null,null,null,null,null,null,null,null,null,null,null,null,null,null,null,null,null,null,null,null,null,null,null,"Others","Removal","Non-Executive - Non-Independent Director",null,"Section 185 of the Companies Act 2013","Others"]
[null,null,null,"Details of Resolution/Agenda",null,null,null,null,null,null,null,null,null,null,null,null,null,null,null,null,null,null,null,null,null,null,null,null,null,null,"Remuneration","Others"]
[null,null,null,"Sr.","Type of Resolution*","Resolution Category*","Sub-category","Details of other sub-category","Brief details of resolution*","Designation","Details of other designation","Name of designated person","DIN","PAN of designated person","Tenure (Start Date)","Tenure (End Date)","Term (No. of times appointed)","Amount of Remuneration (in Rs.)\n(Annual)",null,null,null,null,null,null,null,null,null,null,null,null,"Retirement by rotation"]
[null,null,null,null,null,null,null,null,null,null,null,null,"",null,"","",null,null,null,null,null,null,null,null,null,null,null,null,null,null,"Others"]
[null,null,null,null,null,null,null,null,null,null,null,null,null,null,null,null,null,null,null,null,null,null,null,null,null,null,null,null,null,null,{"$f":"IF(F9=\"\",\"\",IF(F9=AD$1,AE$1:AE$9,IF(F9=AD$4,AG$1:AG$5,IF(F9=AD$5,AH$1:AH$6,IF(F9=AD$6,AI$1:AI$6)))))","v":""}]

{"sheet":"Details of RPT","index":4,"n_rows":9,"n_cols":32,"rows_kept":9,"cut":false,"hidden":true,"merged":[[6,3,6,14]]}
[null,null,null,null,null,null,null,null,0,null,{"$f":"AND(COUNTIF($J$10:J11,\"Any other transaction\"))","v":false},null,null,null,null,null,null,null,"Sale of goods or services","Purchase of goods or services","Loan","Inter-corporate deposit","Advance","Investment","Purchase of fixed assets","Sale of fixed assets","Interest paid","Interest received","Remuneration","Dividend paid","Dividend received","Any other transaction"]
[null,null,null,null,"NameOfListedEntityOrSubsidiaryEnteringIntoTheTransaction","PANOfListedEntityOrSubsidiaryEnteringIntoTheTransaction","NameOfCounterParty","PANOfCounterParty","RelationshipOfTheCounterpartyWithTheListedEntityOrItsSubsidiary","TypeOfRelatedPartyTransaction","DetailsOfOtherRelatedPartyTransaction","AmountOfRelatedPartyTransactionDuringTheReportingPeriod","DateOfStartOfTenure","DateOfEndOfTenure","RemarksForTenureOfTheRelatedPartyTransaction"]
[]
[]
[]
[]
[null,null,null,"Details of Related Party Transaction"]
[null,null,null,"Sr.","Name of the party*","PAN of the party*","Name of the counterparty*","PAN of the counterparty*","Relationship with the counterparty*","Type of Related Party Transactions*","Details of other transactions","Value of the transaction (In Rs.)*"," Tenure (Start Date)*"," Tenure (End Date)*","Remarks for Tenure, if any"]
[null,null,null,null,null,null,null,null,null,null,null,null,"",""]

{"sheet":"Taxonomy","index":5,"n_rows":52,"n_cols":16384,"rows_kept":52,"cut":false,"hidden":true,"merged":[]}
["Element Name","Label Name","Type","Duration","Error"]
["NSESymbol","NSE Symbol*","xbrli:stringItemType","instant","1) This field is mandatory.\n2) Space is not allowed."]
["NameOfTheCompany","Name of the Company*","xbrli:stringItemType","instant","This field is mandatory."]
["ScripCode","BSE Scrip Code*","in-capmkt-types:ScripCode","instant","1)This field is mandatory.\n2) Please enter 6 digit Scrip Code."]
["MSEISymbol","MSEI Symbol*","xbrli:stringItemType","instant","1) This field is mandatory.\n2) Space is not allowed."]
["ISIN","ISIN*","in-capmkt-types:ISINNumber","instant","1) This field is mandatory.\n2) Please enter 12 digit ISIN number."]
["TypeOfAnnouncement","Type of announcement*","in-capmkt-types:NewOrUpdate","instant","1) This field is mandatory.\n2) Please select from drop down only"]
["DateOfOccurrenceOfEvent","Date of occurrence of event*","xbrli:dateItemType","instant","1) This field is mandatory.\n2) Please enter in \"DD-MM-YYYY\" format.\n3) Enter a valid date."]
["TimeOfOccurrenceOfEvent","Time of occurrence of event*","xbrli:timeItemType","instant","1)This field is mandatory.\n2)Please select from drop down only."]
["RemarksForWebsiteDissemination","Remarks (website dissemination)","xbrli:stringItemType","instant","Maximum 500000 characters allowed."]
["RemarksForExchangeNotForWebsiteDissemination","Remarks for exchange (not for website dissemination)","xbrli:stringItemType","instant","Maximum 500000 characters allowed."]
["DateOfReport","Date of Report","xbrli:dateItemType","instant","DateOfReport",null,"xbrli:dateItemType","instant","DateOfReport",null,"xbrli:dateItemType","instant","DateOfReport",null,"xbrli:dateItemType","instant","DateOfReport",null,"xbrli:dateItemType","instant","DateOfReport",null,"xbrli:dateItemType","instant","DateOfReport",null,"xbrli:dateItemType","instant","DateOfReport",null,"xbrli:dateItemType","instant","DateOfReport",null,"xbrli:dateItemType","instant","DateOfReport",null,"xbrli:dateItemType","instant","DateOfReport",null,"xbrli:dateItemType","instant","DateOfReport",null,"xbrli:dateItemType","instant","DateOfReport",null,"xbrli:dateItemType","instant","DateOfReport",null,"xbrli:dateItemType","instant","DateOfReport",null,"xbrli:dateItemType","instant","DateOfReport",null,"xbrli:dateItemType","instant","DateOfReport",null,"xbrli:dateItemType","instant","DateOfReport",null,"xbrli:dateItemType","instant","DateOfReport",null,"xbrli:dateItemType","instant","DateOfReport",null,"xbrli:dateItemType","instant","DateOfReport",null,"xbrli:dateItemType","instant","DateOfReport",null,"xbrli:dateItemType","instant","DateOfReport",null,"xbrli:dateItemType","instant","DateOfReport",null,"xbrli:dateItemType","instant","DateOfReport",null,"xbrli:dateItemType","instant","DateOfReport",null,"xbrli:dateItemType","instant","DateOfReport",null,"xbrli:dateItemType","instant","DateOfReport",null,"xbrli:dateItemType","instant","DateOfReport",null,"xbrli:dateItemType","instant","DateOfReport",null,"xbrli:dateItemType","instant","DateOfReport",null,"xbrli:dateItemType","instant","DateOfReport",null,"xbrli:dateItemType","instant","DateOfReport",null,"xbrli:dateItemType","instant","DateOfReport",null,"xbrli:dateItemType","instant","DateOfReport",null,"xbrli:dateItemType","instant","DateOfReport",null,"xbrli:dateItemType","instant","DateOfReport",null,"xbrli:dateItemType","instant","DateOfReport",null,"xbrli:dateItemType","instant","DateOfReport",null,"xbrli:dateItemType","instant","DateOfReport",null,"xbrli:dateItemType","instant","DateOfReport",null,"xbrli:dateItemType","instant","DateOfReport",null,"xbrli:dateItemType","instant","DateOfReport",null,"xbrli:dateItemType","instant","DateOfReport",null,"xbrli:dateItemType","instant","DateOfReport",null,"xbrli:dateItemType","instant","DateOfReport",null,"xbrli:dateItemType","instant","DateOfReport",null,"xbrli:dateItemType","instant","DateOfReport",null,"xbrli:dateItemType","instant","DateOfReport",null,"xbrli:dateItemType","instant","DateOfReport",null,"xbrli:dateItemType","instant","DateOfReport",null,"xbrli:dateItemType","instant","DateOfReport",null,"xbrli:dateItemType","instant","DateOfReport",null,"xbrli:dateItemType","instant","DateOfReport",null,"xbrli:dateItemType","instant","DateOfReport",null,"xbrli:dateItemType","instant","DateOfReport",null,"xbrli:dateItemType","instant","DateOfReport",null,"xbrli:dateItemType","instant","DateOfReport",null,"xbrli:dateItemType","instant","DateOfReport",null,"xbrli:dateItemType","instant","DateOfReport",null,"xbrli:dateItemType","instant","DateOfReport",null,"xbrli:dateItemType","instant","DateOfReport",null,"xbrli:dateItemType","instant","DateOfReport",null,"xbrli:dateItemType","instant","DateOfReport",null,"xbrli:dateItemType","instant","DateOfReport",null,"xbrli:dateItemType","instant","DateOfReport",null,"xbrli:dateItemType","instant","DateOfReport",null,"xbrli:dateItemType","instant","DateOfReport",null,"xbrli:dateItemType","instant","DateOfReport",null,"xbrli:dateItemType","instant","DateOfReport",null,"xbrli:dateItemType","instant","DateOfReport",null,"xbrli:dateItemType","instant","DateOfReport",null,"xbrli:dateItemType","instant","DateOfReport",null,"xbrli:dateItemType","instant","DateOfReport",null,"xbrli:dateItemType","instant","DateOfReport",null,"xbrli:dateItemType","instant","DateOfReport",null,"xbrli:dateItemType","instant","DateOfReport",null,"xbrli:dateItemType","instant","DateOfReport",null,"xbrli:dateItemType","instant","DateOfReport",null,"xbrli:dateItemType","instant","DateOfReport",null,"xbrli:dateItemType","instant","DateOfReport",null,"xbrli:dateItemType","instant","DateOfReport",null,"xbrli:dateItemType","instant","DateOfReport",null,"xbrli:dateItemType","instant","DateOfReport",null,"xbrli:dateItemType","instant","DateOfReport",null,"xbrli:dateItemType","instant","DateOfReport",null,"xbrli:dateItemType","instant","DateOfReport",null,"xbrli:dateItemType","instant","DateOfReport",null,"xbrli:dateItemType","instant","DateOfReport",null,"xbrli:dateItemType","instant","DateOfReport",null,"xbrli:dateItemType","instant","DateOfReport",null,"xbrli:dateItemType","instant","DateOfReport",null,"xbrli:dateItemType","instant","DateOfReport",null,"xbrli:dateItemType","instant","DateOfReport",null,"xbrli:dateItemType","instant","DateOfReport",null,"xbrli:dateItemType","instant","DateOfReport",null,"xbrli:dateItemType","instant","DateOfReport",null,"xbrli:dateItemType","instant","DateOfReport",null,"xbrli:dateItemType","instant","DateOfReport",null,"xbrli:dateItemType","instant","DateOfReport",null,"xbrli:dateItemType","instant","DateOfReport",null,"xbrli:dateItemType","instant","DateOfReport",null,"xbrli:dateItemType","instant","DateOfReport",null,"xbrli:dateItemType","instant","DateOfReport",null,"xbrli:dateItemType","instant","DateOfReport",null,"xbrli:dateItemType","instant","DateOfReport",null,"xbrli:dateItemType","instant","DateOfReport",null,"xbrli:dateItemType","instant","DateOfReport",null,"xbrli:dateItemType","instant","DateOfReport",null,"xbrli:dateItemType","instant","DateOfReport",null,"xbrli:dateItemType","instant","DateOfReport",null,"xbrli:dateItemType","instant","DateOfReport",null,"xbrli:dateItemType","instant","DateOfReport",null,"xbrli:dateItemType","instant","DateOfReport",null,"xbrli:dateItemType","instant","DateOfReport",null,"xbrli:dateItemType","instant","DateOfReport",null,"xbrli:dateItemType","instant","DateOfReport",null,"xbrli:dateItemType","instant","DateOfReport",null,"xbrli:dateItemType","instant","DateOfReport",null,"xbrli:dateItemType","instant","DateOfReport",null,"xbrli:dateItemType","instant","DateOfReport",null,"xbrli:dateItemType","instant","DateOfReport",null,"xbrli:dateItemType","instant","DateOfReport",null,"xbrli:dateItemType","instant","DateOfReport",null,"xbrli:dateItemType","instant","DateOfReport",null,"xbrli:dateItemType","instant","DateOfReport",null,"xbrli:dateItemType","instant","DateOfReport",null,"xbrli:dateItemType","instant","DateOfReport",null,"xbrli:dateItemType","instant","DateOfReport",null,"xbrli:dateItemType","instant","DateOfReport",null,"xbrli:dateItemType","instant","DateOfReport",null,"xbrli:dateItemType","instant","DateOfReport",null,"xbrli:dateItemType","instant","DateOfReport",null,"xbrli:dateItemType","instant","DateOfReport",null,"xbrli:dateItemType","instant","DateOfReport",null,"xbrli:dateItemType","instant","DateOfReport",null,"xbrli:dateItemType","instant","DateOfReport",null,"xbrli:dateItemType","instant","DateOfReport",null,"xbrli:dateItemType","instant","DateOfReport",null,"xbrli:dateItemType","instant","DateOfReport",null,"xbrli:dateItemType","instant","DateOfReport",null,"xbrli:dateItemType","instant","DateOfReport",null,"xbrli:dateItemType","instant","DateOfReport",null,"xbrli:dateItemType","instant","DateOfReport",null,"xbrli:dateItemType","instant","DateOfReport",null,"xbrli:dateItemType","instant","DateOfReport",null,"xbrli:dateItemType","instant","DateOfReport",null,"xbrli:dateItemType","instant","DateOfReport",null,"xbrli:dateItemType","instant","DateOfReport",null,"xbrli:dateItemType","instant","DateOfReport",null,"xbrli:dateItemType","instant","DateOfReport",null,"xbrli:dateItemType","instant","DateOfReport",null,"xbrli:dateItemType","instant","DateOfReport",null,"xbrli:dateItemType","instant","DateOfReport",null,"xbrli:dateItemType","instant","DateOfReport",null,"xbrli:dateItemType","instant","DateOfReport",null,"xbrli:dateItemType","instant","DateOfReport",null,"xbrli:dateItemType","instant","DateOfReport",null,"xbrli:dateItemType","instant","DateOfReport",null,"xbrli:dateItemType","instant","DateOfReport",null,"xbrli:dateItemType","instant","DateOfReport",null,"xbrli:dateItemType","instant","DateOfReport",null,"xbrli:dateItemType","instant","DateOfReport",null,"xbrli:dateItemType","instant","DateOfReport",null,"xbrli:dateItemType","instant","DateOfReport",null,"xbrli:dateItemType","instant","DateOfReport",null,"xbrli:dateItemType","instant","DateOfReport",null,"xbrli:dateItemType","instant","DateOfReport",null,"xbrli:dateItemType","instant","DateOfReport",null,"xbrli:dateItemType","instant","DateOfReport",null,"xbrli:dateItemType","instant","DateOfReport",null,"xbrli:dateItemType","instant","DateOfReport",null,"xbrli:dateItemType","instant","DateOfReport",null,"xbrli:dateItemType","instant","DateOfReport",null,"xbrli:dateItemType","instant","DateOfReport",null,"xbrli:dateItemType","instant","DateOfReport",null,"xbrli:dateItemType","instant","DateOfReport",null,"xbrli:dateItemType","instant","DateOfReport",null,"xbrli:dateItemType","instant","DateOfReport",null,"xbrli:dateItemType","instant","DateOfReport",null,"xbrli:dateItemType","instant","DateOfReport",null,"xbrli:dateItemType","instant","DateOfReport",null,"xbrli:dateItemType","instant","DateOfReport",null,"xbrli:dateItemType","instant","DateOfReport",null,"xbrli:dateItemType","instant","DateOfReport",null,"xbrli:dateItemType","instant","DateOfReport",null,"xbrli:dateItemType","instant","DateOfReport",null,"xbrli:dateItemType","instant","DateOfReport",null,"xbrli:dateItemType","instant","DateOfReport",null,"xbrli:dateItemType","instant","DateOfReport",null,"xbrli:dateItemType","instant","DateOfReport",null,"xbrli:dateItemType","instant","DateOfReport",null,"xbrli:dateItemType","instant","DateOfReport",null,"xbrli:dateItemType","instant","DateOfReport",null,"xbrli:dateItemType","instant","DateOfReport",null,"xbrli:dateItemType","instant","DateOfReport",null,"xbrli:dateItemType","instant","DateOfReport",null,"xbrli:dateItemType","instant","DateOfReport",null,"xbrli:dateItemType","instant","DateOfReport",null,"xbrli:dateItemType","instant","DateOfReport",null,"xbrli:dateItemType","instant","DateOfReport",null,"xbrli:dateItemType","instant","DateOfReport",null,"xbrli:dateItemType","instant","DateOfReport",null,"xbrli:dateItemType","instant","DateOfReport",null,"xbrli:dateItemType","instant","DateOfReport",null,"xbrli:dateItemType","instant","DateOfReport",null,"xbrli:dateItemType","instant","DateOfReport",null,"xbrli:dateItemType","instant","DateOfReport",null,"xbrli:dateItemType","instant","DateOfReport",null,"xbrli:dateItemType","instant","DateOfReport",null,"xbrli:dateItemType","instant","DateOfReport",null,"xbrli:dateItemType","instant","DateOfReport",null,"xbrli:dateItemType","instant","DateOfReport",null,"xbrli:dateItemType","instant","DateOfReport",null,"xbrli:dateItemType","instant","DateOfReport",null,"xbrli:dateItemType","instant","DateOfReport",null,"xbrli:dateItemType","instant","DateOfReport",null,"xbrli:dateItemType","instant","DateOfReport",null,"xbrli:dateItemType","instant","DateOfReport",null,"xbrli:dateItemType","instant","DateOfReport",null,"xbrli:dateItemType","instant","DateOfReport",null,"xbrli:dateItemType","instant","DateOfReport",null,"xbrli:dateItemType","instant","DateOfReport",null,"xbrli:dateItemType","instant","DateOfReport",null,"xbrli:dateItemType","instant","DateOfReport",null,"xbrli:dateItemType","instant","DateOfReport",null,"xbrli:dateItemType","instant","DateOfReport",null,"xbrli:dateItemType","instant","DateOfReport",null,"xbrli:dateItemType","instant","DateOfReport",null,"xbrli:dateItemType","instant","DateOfReport",null,"xbrli:dateItemType","instant","DateOfReport",null,"xbrli:dateItemType","instant","DateOfReport",null,"xbrli:dateItemType","instant","DateOfReport",null,"xbrli:dateItemType","instant","DateOfReport",null,"xbrli:dateItemType","instant","DateOfReport",null,"xbrli:dateItemType","instant","DateOfReport",null,"xbrli:dateItemType","instant","DateOfReport",null,"xbrli:dateItemType","instant","DateOfReport",null,"xbrli:dateItemType","instant","DateOfReport",null,"xbrli:dateItemType","instant","DateOfReport",null,"xbrli:dateItemType","instant","DateOfReport",null,"xbrli:dateItemType","instant","DateOfReport",null,"xbrli:dateItemType","instant","DateOfReport",null,"xbrli:dateItemType","instant","DateOfReport",null,"xbrli:dateItemType","instant","DateOfReport",null,"xbrli:dateItemType","instant","DateOfReport",null,"xbrli:dateItemType","instant","DateOfReport",null,"xbrli:dateItemType","instant","DateOfReport",null,"xbrli:dateItemType","instant","DateOfReport",null,"xbrli:dateItemType","instant","DateOfReport",null,"xbrli:dateItemType","instant","DateOfReport",null,"xbrli:dateItemType","instant","DateOfReport",null,"xbrli:dateItemType","instant","DateOfReport",null,"xbrli:dateItemType","instant","DateOfReport",null,"xbrli:dateItemType","instant","DateOfReport",null,"xbrli:dateItemType","instant","DateOfReport",null,"xbrli:dateItemType","instant","DateOfReport",null,"xbrli:dateItemType","instant","DateOfReport",null,"xbrli:dateItemType","instant","DateOfReport",null,"xbrli:dateItemType","instant","DateOfReport",null,"xbrli:dateItemType","instant","DateOfReport",null,"xbrli:dateItemType","instant","DateOfReport",null,"xbrli:dateItemType","instant","DateOfReport",null,"xbrli:dateItemType","instant","DateOfReport",null,"xbrli:dateItemType","instant","DateOfReport",null,"xbrli:dateItemType","instant","DateOfReport",null,"xbrli:dateItemType","instant","DateOfReport",null,"xbrli:dateItemType","instant","DateOfReport",null,"xbrli:dateItemType","instant","DateOfReport",null,"xbrli:dateItemType","instant","DateOfReport",null,"xbrli:dateItemType","instant","DateOfReport",null,"xbrli:dateItemType","instant","DateOfReport",null,"xbrli:dateItemType","instant","DateOfReport",null,"xbrli:dateItemType","instant","DateOfReport",null,"xbrli:dateItemType","instant","DateOfReport",null,"xbrli:dateItemType","instant","DateOfReport",null,"xbrli:dateItemType","instant","DateOfReport",null,"xbrli:dateItemType","instant","DateOfReport",null,"xbrli:dateItemType","instant","DateOfReport",null,"xbrli:dateItemType","instant","DateOfReport",null,"xbrli:dateItemType","instant","DateOfReport",null,"xbrli:dateItemType","instant","DateOfReport",null,"xbrli:dateItemType","instant","DateOfReport",null,"xbrli:dateItemType","instant","DateOfReport",null,"xbrli:dateItemType","instant","DateOfReport",null,"xbrli:dateItemType","instant","DateOfReport",null,"xbrli:dateItemType","instant","DateOfReport",null,"xbrli:dateItemType","instant","DateOfReport",null,"xbrli:dateItemType","instant","DateOfReport",null,"xbrli:dateItemType","instant","DateOfReport",null,"xbrli:dateItemType","instant","DateOfReport",null,"xbrli:dateItemType","instant","DateOfReport",null,"xbrli:dateItemType","instant","DateOfReport",null,"xbrli:dateItemType","instant","DateOfReport",null,"xbrli:dateItemType","instant","DateOfReport",null,"xbrli:dateItemType","instant","DateOfReport",null,"xbrli:dateItemType","instant","DateOfReport",null,"xbrli:dateItemType","instant","DateOfReport",null,"xbrli:dateItemType","instant","DateOfReport",null,"xbrli:dateItemType","instant","DateOfReport",null,"xbrli:dateItemType","instant","DateOfReport",null,"xbrli:dateItemType","instant","DateOfReport",null,"xbrli:dateItemType","instant","DateOfReport",null,"xbrli:dateItemType","instant","DateOfReport",null,"xbrli:dateItemType","instant","DateOfReport",null,"xbrli:dateItemType","instant","DateOfReport",null,"xbrli:dateItemType","instant","DateOfReport",null,"xbrli:dateItemType","instant","DateOfReport",null,"xbrli:dateItemType","instant","DateOfReport",null,"xbrli:dateItemType","instant","DateOfReport",null,"xbrli:dateItemType","instant","DateOfReport",null,"xbrli:dateItemType","instant","DateOfReport",null,"xbrli:dateItemType","instant","DateOfReport",null,"xbrli:dateItemType","instant","DateOfReport",null,"xbrli:dateItemType","instant","DateOfReport",null,"xbrli:dateItemType","instant","DateOfReport",null,"xbrli:dateItemType","instant","DateOfReport",null,"xbrli:dateItemType","instant","DateOfReport",null,"xbrli:dateItemType","instant","DateOfReport",null,"xbrli:dateItemType","instant","DateOfReport",null,"xbrli:dateItemType","instant","DateOfReport",null,"xbrli:dateItemType","instant","DateOfReport",null,"xbrli:dateItemType","instant","DateOfReport",null,"xbrli:dateItemType","instant","DateOfReport",null,"xbrli:dateItemType","instant","DateOfReport",null,"xbrli:dateItemType","instant","DateOfReport",null,"xbrli:dateItemType","instant","DateOfReport",null,"xbrli:dateItemType","instant","DateOfReport",null,"xbrli:dateItemType","instant","DateOfReport",null,"xbrli:dateItemType","instant","DateOfReport",null,"xbrli:dateItemType","instant","DateOfReport",null,"xbrli:dateItemType","instant","DateOfReport",null,"xbrli:dateItemType","instant","DateOfReport",null,"xbrli:dateItemType","instant","DateOfReport",null,"xbrli:dateItemType","instant","DateOfReport",null,"xbrli:dateItemType","instant","DateOfReport",null,"xbrli:dateItemType","instant","DateOfReport",null,"xbrli:dateItemType","instant","DateOfReport",null,"xbrli:dateItemType","instant","DateOfReport",null,"xbrli:dateItemType","instant","DateOfReport",null,"xbrli:dateItemType","instant","DateOfReport",null,"xbrli:dateItemType","instant","DateOfReport",null,"xbrli:dateItemType","instant","DateOfReport",null,"xbrli:dateItemType","instant","DateOfReport",null,"xbrli:dateItemType","instant","DateOfReport",null,"xbrli:dateItemType","instant","DateOfReport",null,"xbrli:dateItemType","instant","DateOfReport",null,"xbrli:dateItemType","instant","DateOfReport",null,"xbrli:dateItemType","instant","DateOfReport",null,"xbrli:dateItemType","instant","DateOfReport",null,"xbrli:dateItemType","instant","DateOfReport",null,"xbrli:dateItemType","instant","DateOfReport",null,"xbrli:dateItemType","instant","DateOfReport",null,"xbrli:dateItemType","instant","DateOfReport",null,"xbrli:dateItemType","instant","DateOfReport",null,"xbrli:dateItemType","instant","DateOfReport",null,"xbrli:dateItemType","instant","DateOfReport",null,"xbrli:dateItemType","instant","DateOfReport",null,"xbrli:dateItemType","instant","DateOfReport",null,"xbrli:dateItemType","instant","DateOfReport",null,"xbrli:dateItemType","instant","DateOfReport",null,"xbrli:dateItemType","instant","DateOfReport",null,"xbrli:dateItemType","instant","DateOfReport",null,"xbrli:dateItemType","instant","DateOfReport",null,"xbrli:dateItemType","instant","DateOfReport",null,"xbrli:dateItemType","instant","DateOfReport",null,"xbrli:dateItemType","instant","DateOfReport",null,"xbrli:dateItemType","instant","DateOfReport",null,"xbrli:dateItemType","instant","DateOfReport",null,"xbrli:dateItemType","instant","DateOfReport",null,"xbrli:dateItemType","instant","DateOfReport",null,"xbrli:dateItemType","instant","DateOfReport",null,"xbrli:dateItemType","instant","DateOfReport",null,"xbrli:dateItemType","instant","DateOfReport",null,"xbrli:dateItemType","instant","DateOfReport",null,"xbrli:dateItemType","instant","DateOfReport",null,"xbrli:dateItemType","instant","DateOfReport",null,"xbrli:dateItemType","instant","DateOfReport",null,"xbrli:dateItemType","instant","DateOfReport",null,"xbrli:dateItemType","instant","DateOfReport",null,"xbrli:dateItemType","instant","DateOfReport",null,"xbrli:dateItemType","instant","DateOfReport",null,"xbrli:dateItemType","instant","DateOfReport",null,"xbrli:dateItemType","instant","DateOfReport",null,"xbrli:dateItemType","instant","DateOfReport",null,"xbrli:dateItemType","instant","DateOfReport",null,"xbrli:dateItemType","instant","DateOfReport",null,"xbrli:dateItemType","instant","DateOfReport",null,"xbrli:dateItemType","instant","DateOfReport",null,"xbrli:dateItemType","instant","DateOfReport",null,"xbrli:dateItemType","instant","DateOfReport",null,"xbrli:dateItemType","instant","DateOfReport",null,"xbrli:dateItemType","instant","DateOfReport",null,"xbrli:dateItemType","instant","DateOfReport",null,"xbrli:dateItemType","instant","DateOfReport",null,"xbrli:dateItemType","instant","DateOfReport",null,"xbrli:dateItemType","instant","DateOfReport",null,"xbrli:dateItemType","instant","DateOfReport",null,"xbrli:dateItemType","instant","DateOfReport",null,"xbrli:dateItemType","instant","DateOfReport",null,"xbrli:dateItemType","instant","DateOfReport",null,"xbrli:dateItemType","instant","DateOfReport",null,"xbrli:dateItemType","instant","DateOfReport",null,"xbrli:dateItemType","instant","DateOfReport",null,"xbrli:dateItemType","instant","DateOfReport",null,"xbrli:dateItemType","instant","DateOfReport",null,"xbrli:dateItemType","instant","DateOfReport",null,"xbrli:dateItemType","instant","DateOfReport",null,"xbrli:dateItemType","instant","DateOfReport",null,"xbrli:dateItemType","instant","DateOfReport",null,"xbrli:dateItemType","instant","DateOfReport",null,"xbrli:dateItemType","instant","DateOfReport",null,"xbrli:dateItemType","instant","DateOfReport",null,"xbrli:dateItemType","instant","DateOfReport",null,"xbrli:dateItemType","instant","DateOfReport",null,"xbrli:dateItemType","instant","DateOfReport",null,"xbrli:dateItemType","instant","DateOfReport",null,"xbrli:dateItemType","instant","DateOfReport",null,"xbrli:dateItemType","instant","DateOfReport",null,"xbrli:dateItemType","instant","DateOfReport",null,"xbrli:dateItemType","instant","DateOfReport",null,"xbrli:dateItemType","instant","DateOfReport",null,"xbrli:dateItemType","instant","DateOfReport",null,"xbrli:dateItemType","instant","DateOfReport",null,"xbrli:dateItemType","instant","DateOfReport",null,"xbrli:dateItemType","instant","DateOfReport",null,"xbrli:dateItemType","instant","DateOfReport",null,"xbrli:dateItemType","instant","DateOfReport",null,"xbrli:dateItemType","instant","DateOfReport",null,"xbrli:dateItemType","instant","DateOfReport",null,"xbrli:dateItemType","instant","DateOfReport",null,"xbrli:dateItemType","instant","DateOfReport",null,"xbrli:dateItemType","instant","DateOfReport",null,"xbrli:dateItemType","instant","DateOfReport",null,"xbrli:dateItemType","instant","DateOfReport",null,"xbrli:dateItemType","instant","DateOfReport",null,"xbrli:dateItemType","instant","DateOfReport",null,"xbrli:dateItemType","instant","DateOfReport",null,"xbrli:dateItemType","instant","DateOfReport",null,"xbrli:dateItemType","instant","DateOfReport",null,"xbrli:dateItemType","instant","DateOfReport",null,"xbrli:dateItemType","instant","DateOfReport",null,"xbrli:dateItemType","instant","DateOfReport",null,"xbrli:dateItemType","instant","DateOfReport",null,"xbrli:dateItemType","instant","DateOfReport",null,"xbrli:dateItemType","instant","DateOfReport",null,"xbrli:dateItemType","instant","DateOfReport",null,"xbrli:dateItemType","instant","DateOfReport",null,"xbrli:dateItemType","instant","DateOfReport",null,"xbrli:dateItemType","instant","DateOfReport",null,"xbrli:dateItemType","instant","DateOfReport",null,"xbrli:dateItemType","instant","DateOfReport",null,"xbrli:dateItemType","instant","DateOfReport",null,"xbrli:dateItemType","instant","DateOfReport",null,"xbrli:dateItemType","instant","DateOfReport",null,"xbrli:dateItemType","instant","DateOfReport",null,"xbrli:dateItemType","instant","DateOfReport",null,"xbrli:dateItemType","instant","DateOfReport",null,"xbrli:dateItemType","instant","DateOfReport",null,"xbrli:dateItemType","instant","DateOfReport",null,"xbrli:dateItemType","instant","DateOfReport",null,"xbrli:dateItemType","instant","DateOfReport",null,"xbrli:dateItemType","instant","DateOfReport",null,"xbrli:dateItemType","instant","DateOfReport",null,"xbrli:dateItemType","instant","DateOfReport",null,"xbrli:dateItemType","instant","DateOfReport",null,"xbrli:dateItemType","instant","DateOfReport",null,"xbrli:dateItemType","instant","DateOfReport",null,"xbrli:dateItemType","instant","DateOfReport",null,"xbrli:dateItemType","instant","DateOfReport",null,"xbrli:dateItemType","instant","DateOfReport",null,"xbrli:dateItemType","instant","DateOfReport",null,"xbrli:dateItemType","instant","DateOfReport",null,"xbrli:dateItemType","instant","DateOfReport",null,"xbrli:dateItemType","instant","DateOfReport",null,"xbrli:dateItemType","instant","DateOfReport",null,"xbrli:dateItemType","instant","DateOfReport",null,"xbrli:dateItemType","instant","DateOfReport",null,"xbrli:dateItemType","instant","DateOfReport",null,"xbrli:dateItemType","instant","DateOfReport",null,"xbrli:dateItemType","instant","DateOfReport",null,"xbrli:dateItemType","instant","DateOfReport",null,"xbrli:dateItemType","instant","DateOfReport",null,"xbrli:dateItemType","instant","DateOfReport",null,"xbrli:dateItemType","instant","DateOfReport",null,"xbrli:dateItemType","instant","DateOfReport",null,"xbrli:dateItemType","instant","DateOfReport",null,"xbrli:dateItemType","instant","DateOfReport",null,"xbrli:dateItemType","instant","DateOfReport",null,"xbrli:dateItemType","instant","DateOfReport",null,"xbrli:dateItemType","instant","DateOfReport",null,"xbrli:dateItemType","instant","DateOfReport",null,"xbrli:dateItemType","instant","DateOfReport",null,"xbrli:dateItemType","instant","DateOfReport",null,"xbrli:dateItemType","instant","DateOfReport",null,"xbrli:dateItemType","instant","DateOfReport",null,"xbrli:dateItemType","instant","DateOfReport",null,"xbrli:dateItemType","instant","DateOfReport",null,"xbrli:dateItemType","instant","DateOfReport",null,"xbrli:dateItemType","instant","DateOfReport",null,"xbrli:dateItemType","instant","DateOfReport",null,"xbrli:dateItemType","instant","DateOfReport",null,"xbrli:dateItemType","instant","DateOfReport",null,"xbrli:dateItemType","instant","DateOfReport",null,"xbrli:dateItemType","instant","DateOfReport",null,"xbrli:dateItemType","instant","DateOfReport",null,"xbrli:dateItemType","instant","DateOfReport",null,"xbrli:dateItemType","instant","DateOfReport",null,"xbrli:dateItemType","instant","DateOfReport",null,"xbrli:dateItemType","instant","DateOfReport",null,"xbrli:dateItemType","instant","DateOfReport",null,"xbrli:dateItemType","instant","DateOfReport",null,"xbrli:dateItemType","instant","DateOfReport",null,"xbrli:dateItemType","instant","DateOfReport",null,"xbrli:dateItemType","instant","DateOfReport",null,"xbrli:dateItemType","instant","DateOfReport",null,"xbrli:dateItemType","instant","DateOfReport",null,"xbrli:dateItemType","instant","DateOfReport",null,"xbrli:dateItemType","instant","DateOfReport",null,"xbrli:dateItemType","instant","DateOfReport",null,"xbrli:dateItemType","instant","DateOfReport",null,"xbrli:dateItemType","instant","DateOfReport",null,"xbrli:dateItemType","instant","DateOfReport",null,"xbrli:dateItemType","instant","DateOfReport",null,"xbrli:dateItemType","instant","DateOfReport",null,"xbrli:dateItemType","instant","DateOfReport",null,"xbrli:dateItemType","instant","DateOfReport",null,"xbrli:dateItemType","instant","DateOfReport",null,"xbrli:dateItemType","instant","DateOfReport",null,"xbrli:dateItemType","instant","DateOfReport",null,"xbrli:dateItemType","instant","DateOfReport",null,"xbrli:dateItemType","instant","DateOfReport",null,"xbrli:dateItemType","instant","DateOfReport",null,"xbrli:dateItemType","instant","DateOfReport",null,"xbrli:dateItemType","instant","DateOfReport",null,"xbrli:dateItemType","instant","DateOfReport",null,"xbrli:dateItemType","instant","DateOfReport",null,"xbrli:dateItemType","instant","DateOfReport",null,"xbrli:dateItemType","instant","DateOfReport",null,"xbrli:dateItemType","instant","DateOfReport",null,"xbrli:dateItemType","instant","DateOfReport",null,"xbrli:dateItemType","instant","DateOfReport",null,"xbrli:dateItemType","instant","DateOfReport",null,"xbrli:dateItemType","instant","DateOfReport",null,"xbrli:dateItemType","instant","DateOfReport",null,"xbrli:dateItemType","instant","DateOfReport",null,"xbrli:dateItemType","instant","DateOfReport",null,"xbrli:dateItemType","instant","DateOfReport",null,"xbrli:dateItemType","instant","DateOfReport",null,"xbrli:dateItemType","instant","DateOfReport",null,"xbrli:dateItemType","instant","DateOfReport",null,"xbrli:dateItemType","instant","DateOfReport",null,"xbrli:dateItemType","instant","DateOfReport",null,"xbrli:dateItemType","instant","DateOfReport",null,"xbrli:dateItemType","instant","DateOfReport",null,"xbrli:dateItemType","instant","DateOfReport",null,"xbrli:dateItemType","instant","DateOfReport",null,"xbrli:dateItemType","instant","DateOfReport",null,"xbrli:dateItemType","instant","DateOfReport",null,"xbrli:dateItemType","instant","DateOfReport",null,"xbrli:dateItemType","instant","DateOfReport",null,"xbrli:dateItemType","instant","DateOfReport",null,"xbrli:dateItemType","instant","DateOfReport",null,"xbrli:dateItemType","instant","DateOfReport",null,"xbrli:dateItemType","instant","DateOfReport",null,"xbrli:dateItemType","instant","DateOfReport",null,"xbrli:dateItemType","instant","DateOfReport",null,"xbrli:dateItemType","instant","DateOfReport",null,"xbrli:dateItemType","instant","DateOfReport",null,"xbrli:dateItemType","instant","DateOfReport",null,"xbrli:dateItemType","instant","DateOfReport",null,"xbrli:dateItemType","instant","DateOfReport",null,"xbrli:dateItemType","instant","DateOfReport",null,"xbrli:dateItemType","instant","DateOfReport",null,"xbrli:dateItemType","instant","DateOfReport",null,"xbrli:dateItemType","instant","DateOfReport",null,"xbrli:dateItemType","instant","DateOfReport",null,"xbrli:dateItemType","instant","DateOfReport",null,"xbrli:dateItemType","instant","DateOfReport",null,"xbrli:dateItemType","instant","DateOfReport",null,"xbrli:dateItemType","instant","DateOfReport",null,"xbrli:dateItemType","instant","DateOfReport",null,"xbrli:dateItemType","instant","DateOfReport",null,"xbrli:dateItemType","instant","DateOfReport",null,"xbrli:dateItemType","instant","DateOfReport",null,"xbrli:dateItemType","instant","DateOfReport",null,"xbrli:dateItemType","instant","DateOfReport",null,"xbrli:dateItemType","instant","DateOfReport",null,"xbrli:dateItemType","instant","DateOfReport",null,"xbrli:dateItemType","instant","DateOfReport",null,"xbrli:dateItemType","instant","DateOfReport",null,"xbrli:dateItemType","instant","DateOfReport",null,"xbrli:dateItemType","instant","DateOfReport",null,"xbrli:dateItemType","instant","DateOfReport",null,"xbrli:dateItemType","instant","DateOfReport",null,"xbrli:dateItemType","instant","DateOfReport",null,"xbrli:dateItemType","instant","DateOfReport",null,"xbrli:dateItemType","instant","DateOfReport",null,"xbrli:dateItemType","instant","DateOfReport",null,"xbrli:dateItemType","instant","DateOfReport",null,"xbrli:dateItemType","instant","DateOfReport",null,"xbrli:dateItemType","instant","DateOfReport",null,"xbrli:dateItemType","instant","DateOfReport",null,"xbrli:dateItemType","instant","DateOfReport",null,"xbrli:dateItemType","instant","DateOfReport",null,"xbrli:dateItemType","instant","DateOfReport",null,"xbrli:dateItemType","instant","DateOfReport",null,"xbrli:dateItemType","instant","DateOfReport",null,"xbrli:dateItemType","instant","DateOfReport",null,"xbrli:dateItemType","instant","DateOfReport",null,"xbrli:dateItemType","instant","DateOfReport",null,"xbrli:dateItemType","instant","DateOfReport",null,"xbrli:dateItemType","instant","DateOfReport",null,"xbrli:dateItemType","instant","DateOfReport",null,"xbrli:dateItemType","instant","DateOfReport",null,"xbrli:dateItemType","instant","DateOfReport",null,"xbrli:dateItemType","instant","DateOfReport",null,"xbrli:dateItemType","instant","DateOfReport",null,"xbrli:dateItemType","instant","DateOfReport",null,"xbrli:dateItemType","instant","DateOfReport",null,"xbrli:dateItemType","instant","DateOfReport",null,"xbrli:dateItemType","instant","DateOfReport",null,"xbrli:dateItemType","instant","DateOfReport",null,"xbrli:dateItemType","instant","DateOfReport",null,"xbrli:dateItemType","instant","DateOfReport",null,"xbrli:dateItemType","instant","DateOfReport",null,"xbrli:dateItemType","instant","DateOfReport",null,"xbrli:dateItemType","instant","DateOfReport",null,"xbrli:dateItemType","instant","DateOfReport",null,"xbrli:dateItemType","instant","DateOfReport",null,"xbrli:dateItemType","instant","DateOfReport",null,"xbrli:dateItemType","instant","DateOfReport",null,"xbrli:dateItemType","instant","DateOfReport",null,"xbrli:dateItemType","instant","DateOfReport",null,"xbrli:dateItemType","instant","DateOfReport",null,"xbrli:dateItemType","instant","DateOfReport",null,"xbrli:dateItemType","instant","DateOfReport",null,"xbrli:dateItemType","instant","DateOfReport",null,"xbrli:dateItemType","instant","DateOfReport",null,"xbrli:dateItemType","instant","DateOfReport",null,"xbrli:dateItemType","instant","DateOfReport",null,"xbrli:dateItemType","instant","DateOfReport",null,"xbrli:dateItemType","instant","DateOfReport",null,"xbrli:dateItemType","instant","DateOfReport",null,"xbrli:dateItemType","instant","DateOfReport",null,"xbrli:dateItemType","instant","DateOfReport",null,"xbrli:dateItemType","instant","DateOfReport",null,"xbrli:dateItemType","instant","DateOfReport",null,"xbrli:dateItemType","instant","DateOfReport",null,"xbrli:dateItemType","instant","DateOfReport",null,"xbrli:dateItemType","instant","DateOfReport",null,"xbrli:dateItemType","instant","DateOfReport",null,"xbrli:dateItemType","instant","DateOfReport",null,"xbrli:dateItemType","instant","DateOfReport",null,"xbrli:dateItemType","instant","DateOfReport",null,"xbrli:dateItemType","instant","DateOfReport",null,"xbrli:dateItemType","instant","DateOfReport",null,"xbrli:dateItemType","instant","DateOfReport",null,"xbrli:dateItemType","instant","DateOfReport",null,"xbrli:dateItemType","instant","DateOfReport",null,"xbrli:dateItemType","instant","DateOfReport",null,"xbrli:dateItemType","instant","DateOfReport",null,"xbrli:dateItemType","instant","DateOfReport",null,"xbrli:dateItemType","instant","DateOfReport",null,"xbrli:dateItemType","instant","DateOfReport",null,"xbrli:dateItemType","instant","DateOfReport",null,"xbrli:dateItemType","instant","DateOfReport",null,"xbrli:dateItemType","instant","DateOfReport",null,"xbrli:dateItemType","instant","DateOfReport",null,"xbrli:dateItemType","instant","DateOfReport",null,"xbrli:dateItemType","instant","DateOfReport",null,"xbrli:dateItemType","instant","DateOfReport",null,"xbrli:dateItemType","instant","DateOfReport",null,"xbrli:dateItemType","instant","DateOfReport",null,"xbrli:dateItemType","instant","DateOfReport",null,"xbrli:dateItemType","instant","DateOfReport",null,"xbrli:dateItemType","instant","DateOfReport",null,"xbrli:dateItemType","instant","DateOfReport",null,"xbrli:dateItemType","instant","DateOfReport",null,"xbrli:dateItemType","instant","DateOfReport",null,"xbrli:dateItemType","instant","DateOfReport",null,"xbrli:dateItemType","instant","DateOfReport",null,"xbrli:dateItemType","instant","DateOfReport",null,"xbrli:dateItemType","instant","DateOfReport",null,"xbrli:dateItemType","instant","DateOfReport",null,"xbrli:dateItemType","instant","DateOfReport",null,"xbrli:dateItemType","instant","DateOfReport",null,"xbrli:dateItemType","instant","DateOfReport",null,"xbrli:dateItemType","instant","DateOfReport",null,"xbrli:dateItemType","instant","DateOfReport",null,"xbrli:dateItemType","instant","DateOfReport",null,"xbrli:dateItemType","instant","DateOfReport",null,"xbrli:dateItemType","instant","DateOfReport",null,"xbrli:dateItemType","instant","DateOfReport",null,"xbrli:dateItemType","instant","DateOfReport",null,"xbrli:dateItemType","instant","DateOfReport",null,"xbrli:dateItemType","instant","DateOfReport",null,"xbrli:dateItemType","instant","DateOfReport",null,"xbrli:dateItemType","instant","DateOfReport",null,"xbrli:dateItemType","instant","DateOfReport",null,"xbrli:dateItemType","instant","DateOfReport",null,"xbrli:dateItemType","instant","DateOfReport",null,"xbrli:dateItemType","instant","DateOfReport",null,"xbrli:dateItemType","instant","DateOfReport",null,"xbrli:dateItemType","instant","DateOfReport",null,"xbrli:dateItemType","instant","DateOfReport",null,"xbrli:dateItemType","instant","DateOfReport",null,"xbrli:dateItemType","instant","DateOfReport",null,"xbrli:dateItemType","instant","DateOfReport",null,"xbrli:dateItemType","instant","DateOfReport",null,"xbrli:dateItemType","instant","DateOfReport",null,"xbrli:dateItemType","instant","DateOfReport",null,"xbrli:dateItemType","instant","DateOfReport",null,"xbrli:dateItemType","instant","DateOfReport",null,"xbrli:dateItemType","instant","DateOfReport",null,"xbrli:dateItemType","instant","DateOfReport",null,"xbrli:dateItemType","instant","DateOfReport",null,"xbrli:dateItemType","instant","DateOfReport",null,"xbrli:dateItemType","instant","DateOfReport",null,"xbrli:dateItemType","instant","DateOfReport",null,"xbrli:dateItemType","instant","DateOfReport",null,"xbrli:dateItemType","instant","DateOfReport",null,"xbrli:dateItemType","instant","DateOfReport",null,"xbrli:dateItemType","instant","DateOfReport",null,"xbrli:dateItemType","instant","DateOfReport",null,"xbrli:dateItemType","instant","DateOfReport",null,"xbrli:dateItemType","instant","DateOfReport",null,"xbrli:dateItemType","instant","DateOfReport",null,"xbrli:dateItemType","instant","DateOfReport",null,"xbrli:dateItemType","instant","DateOfReport",null,"xbrli:dateItemType","instant","DateOfReport",null,"xbrli:dateItemType","instant","DateOfReport",null,"xbrli:dateItemType","instant","DateOfReport",null,"xbrli:dateItemType","instant","DateOfReport",null,"xbrli:dateItemType","instant","DateOfReport",null,"xbrli:dateItemType","instant","DateOfReport",null,"xbrli:dateItemType","instant","DateOfReport",null,"xbrli:dateItemType","instant","DateOfReport",null,"xbrli:dateItemType","instant","DateOfReport",null,"xbrli:dateItemType","instant","DateOfReport",null,"xbrli:dateItemType","instant","DateOfReport",null,"xbrli:dateItemType","instant","DateOfReport",null,"xbrli:dateItemType","instant","DateOfReport",null,"xbrli:dateItemType","instant","DateOfReport",null,"xbrli:dateItemType","instant","DateOfReport",null,"xbrli:dateItemType","instant","DateOfReport",null,"xbrli:dateItemType","instant","DateOfReport",null,"xbrli:dateItemType","instant","DateOfReport",null,"xbrli:dateItemType","instant","DateOfReport",null,"xbrli:dateItemType","instant","DateOfReport",null,"xbrli:dateItemType","instant","DateOfReport",null,"xbrli:dateItemType","instant","DateOfReport",null,"xbrli:dateItemType","instant","DateOfReport",null,"xbrli:dateItemType","instant","DateOfReport",null,"xbrli:dateItemType","instant","DateOfReport",null,"xbrli:dateItemType","instant","DateOfReport",null,"xbrli:dateItemType","instant","DateOfReport",null,"xbrli:dateItemType","instant","DateOfReport",null,"xbrli:dateItemType","instant","DateOfReport",null,"xbrli:dateItemType","instant","DateOfReport",null,"xbrli:dateItemType","instant","DateOfReport",null,"xbrli:dateItemType","instant","DateOfReport",null,"xbrli:dateItemType","instant","DateOfReport",null,"xbrli:dateItemType","instant","DateOfReport",null,"xbrli:dateItemType","instant","DateOfReport",null,"xbrli:dateItemType","instant","DateOfReport",null,"xbrli:dateItemType","instant","DateOfReport",null,"xbrli:dateItemType","instant","DateOfReport",null,"xbrli:dateItemType","instant","DateOfReport",null,"xbrli:dateItemType","instant","DateOfReport",null,"xbrli:dateItemType","instant","DateOfReport",null,"xbrli:dateItemType","instant","DateOfReport",null,"xbrli:dateItemType","instant","DateOfReport",null,"xbrli:dateItemType","instant","DateOfReport",null,"xbrli:dateItemType","instant","DateOfReport",null,"xbrli:dateItemType","instant","DateOfReport",null,"xbrli:dateItemType","instant","DateOfReport",null,"xbrli:dateItemType","instant","DateOfReport",null,"xbrli:dateItemType","instant","DateOfReport",null,"xbrli:dateItemType","instant","DateOfReport",null,"xbrli:dateItemType","instant","DateOfReport",null,"xbrli:dateItemType","instant","DateOfReport",null,"xbrli:dateItemType","instant","DateOfReport",null,"xbrli:dateItemType","instant","DateOfReport",null,"xbrli:dateItemType","instant","DateOfReport",null,"xbrli:dateItemType","instant","DateOfReport",null,"xbrli:dateItemType","instant","DateOfReport",null,"xbrli:dateItemType","instant","DateOfReport",null,"xbrli:dateItemType","instant","DateOfReport",null,"xbrli:dateItemType","instant","DateOfReport",null,"xbrli:dateItemType","instant","DateOfReport",null,"xbrli:dateItemType","instant","DateOfReport",null,"xbrli:dateItemType","instant","DateOfReport",null,"xbrli:dateItemType","instant","DateOfReport",null,"xbrli:dateItemType","instant","DateOfReport",null,"xbrli:dateItemType","instant","DateOfReport",null,"xbrli:dateItemType","instant","DateOfReport",null,"xbrli:dateItemType","instant","DateOfReport",null,"xbrli:dateItemType","instant","DateOfReport",null,"xbrli:dateItemType","instant","DateOfReport",null,"xbrli:dateItemType","instant","DateOfReport",null,"xbrli:dateItemType","instant","DateOfReport",null,"xbrli:dateItemType","instant","DateOfReport",null,"xbrli:dateItemType","instant","DateOfReport",null,"xbrli:dateItemType","instant","DateOfReport",null,"xbrli:dateItemType","instant","DateOfReport",null,"xbrli:dateItemType","instant","DateOfReport",null,"xbrli:dateItemType","instant","DateOfReport",null,"xbrli:dateItemType","instant","DateOfReport",null,"xbrli:dateItemType","instant","DateOfReport",null,"xbrli:dateItemType","instant","DateOfReport",null,"xbrli:dateItemType","instant","DateOfReport",null,"xbrli:dateItemType","instant","DateOfReport",null,"xbrli:dateItemType","instant","DateOfReport",null,"xbrli:dateItemType","instant","DateOfReport",null,"xbrli:dateItemType","instant","DateOfReport",null,"xbrli:dateItemType","instant","DateOfReport",null,"xbrli:dateItemType","instant","DateOfReport",null,"xbrli:dateItemType","instant","DateOfReport",null,"xbrli:dateItemType","instant","DateOfReport",null,"xbrli:dateItemType","instant","DateOfReport",null,"xbrli:dateItemType","instant","DateOfReport",null,"xbrli:dateItemType","instant","DateOfReport",null,"xbrli:dateItemType","instant","DateOfReport",null,"xbrli:dateItemType","instant","DateOfReport",null,"xbrli:dateItemType","instant","DateOfReport",null,"xbrli:dateItemType","instant","DateOfReport",null,"xbrli:dateItemType","instant","DateOfReport",null,"xbrli:dateItemType","instant","DateOfReport",null,"xbrli:dateItemType","instant","DateOfReport",null,"xbrli:dateItemType","instant","DateOfReport",null,"xbrli:dateItemType","instant","DateOfReport",null,"xbrli:dateItemType","instant","DateOfReport",null,"xbrli:dateItemType","instant","DateOfReport",null,"xbrli:dateItemType","instant","DateOfReport",null,"xbrli:dateItemType","instant","DateOfReport",null,"xbrli:dateItemType","instant","DateOfReport",null,"xbrli:dateItemType","instant","DateOfReport",null,"xbrli:dateItemType","instant","DateOfReport",null,"xbrli:dateItemType","instant","DateOfReport",null,"xbrli:dateItemType","instant","DateOfReport",null,"xbrli:dateItemType","instant","DateOfReport",null,"xbrli:dateItemType","instant","DateOfReport",null,"xbrli:dateItemType","instant","DateOfReport",null,"xbrli:dateItemType","instant","DateOfReport",null,"xbrli:dateItemType","instant","DateOfReport",null,"xbrli:dateItemType","instant","DateOfReport",null,"xbrli:dateItemType","instant","DateOfReport",null,"xbrli:dateItemType","instant","DateOfReport",null,"xbrli:dateItemType","instant","DateOfReport",null,"xbrli:dateItemType","instant","DateOfReport",null,"xbrli:dateItemType","instant","DateOfReport",null,"xbrli:dateItemType","instant","DateOfReport",null,"xbrli:dateItemType","instant","DateOfReport",null,"xbrli:dateItemType","instant","DateOfReport",null,"xbrli:dateItemType","instant","DateOfReport",null,"xbrli:dateItemType","instant","DateOfReport",null,"xbrli:dateItemType","instant","DateOfReport",null,"xbrli:dateItemType","instant","DateOfReport",null,"xbrli:dateItemType","instant","DateOfReport",null,"xbrli:dateItemType","instant","DateOfReport",null,"xbrli:dateItemType","instant","DateOfReport",null,"xbrli:dateItemType","instant","DateOfReport",null,"xbrli:dateItemType","instant","DateOfReport",null,"xbrli:dateItemType","instant","DateOfReport",null,"xbrli:dateItemType","instant","DateOfReport",null,"xbrli:dateItemType","instant","DateOfReport",null,"xbrli:dateItemType","instant","DateOfReport",null,"xbrli:dateItemType","instant","DateOfReport",null,"xbrli:dateItemType","instant","DateOfReport",null,"xbrli:dateItemType","instant","DateOfReport",null,"xbrli:dateItemType","instant","DateOfReport",null,"xbrli:dateItemType","instant","DateOfReport",null,"xbrli:dateItemType","instant","DateOfReport",null,"xbrli:dateItemType","instant","DateOfReport",null,"xbrli:dateItemType","instant","DateOfReport",null,"xbrli:dateItemType","instant","DateOfReport",null,"xbrli:dateItemType","instant","DateOfReport",null,"xbrli:dateItemType","instant","DateOfReport",null,"xbrli:dateItemType","instant","DateOfReport",null,"xbrli:dateItemType","instant","DateOfReport",null,"xbrli:dateItemType","instant","DateOfReport",null,"xbrli:dateItemType","instant","DateOfReport",null,"xbrli:dateItemType","instant","DateOfReport",null,"xbrli:dateItemType","instant","DateOfReport",null,"xbrli:dateItemType","instant","DateOfReport",null,"xbrli:dateItemType","instant","DateOfReport",null,"xbrli:dateItemType","instant","DateOfReport",null,"xbrli:dateItemType","instant","DateOfReport",null,"xbrli:dateItemType","instant","DateOfReport",null,"xbrli:dateItemType","instant","DateOfReport",null,"xbrli:dateItemType","instant","DateOfReport",null,"xbrli:dateItemType","instant","DateOfReport",null,"xbrli:dateItemType","instant","DateOfReport",null,"xbrli:dateItemType","instant","DateOfReport",null,"xbrli:dateItemType","instant","DateOfReport",null,"xbrli:dateItemType","instant","DateOfReport",null,"xbrli:dateItemType","instant","DateOfReport",null,"xbrli:dateItemType","instant","DateOfReport",null,"xbrli:dateItemType","instant","DateOfReport",null,"xbrli:dateItemType","instant","DateOfReport",null,"xbrli:dateItemType","instant","DateOfReport",null,"xbrli:dateItemType","instant","DateOfReport",null,"xbrli:dateItemType","instant","DateOfReport",null,"xbrli:dateItemType","instant","DateOfReport",null,"xbrli:dateItemType","instant","DateOfReport",null,"xbrli:dateItemType","instant","DateOfReport",null,"xbrli:dateItemType","instant","DateOfReport",null,"xbrli:dateItemType","instant","DateOfReport",null,"xbrli:dateItemType","instant","DateOfReport",null,"xbrli:dateItemType","instant","DateOfReport",null,"xbrli:dateItemType","instant","DateOfReport",null,"xbrli:dateItemType","instant","DateOfReport",null,"xbrli:dateItemType","instant","DateOfReport",null,"xbrli:dateItemType","instant","DateOfReport",null,"xbrli:dateItemType","instant","DateOfReport",null,"xbrli:dateItemType","instant","DateOfReport",null,"xbrli:dateItemType","instant","DateOfReport",null,"xbrli:dateItemType","instant","DateOfReport",null,"xbrli:dateItemType","instant","DateOfReport",null,"xbrli:dateItemType","instant","DateOfReport",null,"xbrli:dateItemType","instant","DateOfReport",null,"xbrli:dateItemType","instant","DateOfReport",null,"xbrli:dateItemType","instant","DateOfReport",null,"xbrli:dateItemType","instant","DateOfReport",null,"xbrli:dateItemType","instant","DateOfReport",null,"xbrli:dateItemType","instant","DateOfReport",null,"xbrli:dateItemType","instant","DateOfReport",null,"xbrli:dateItemType","instant","DateOfReport",null,"xbrli:dateItemType","instant","DateOfReport",null,"xbrli:dateItemType","instant","DateOfReport",null,"xbrli:dateItemType","instant","DateOfReport",null,"xbrli:dateItemType","instant","DateOfReport",null,"xbrli:dateItemType","instant","DateOfReport",null,"xbrli:dateItemType","instant","DateOfReport",null,"xbrli:dateItemType","instant","DateOfReport",null,"xbrli:dateItemType","instant","DateOfReport",null,"xbrli:dateItemType","instant","DateOfReport",null,"xbrli:dateItemType","instant","DateOfReport",null,"xbrli:dateItemType","instant","DateOfReport",null,"xbrli:dateItemType","instant","DateOfReport",null,"xbrli:dateItemType","instant","DateOfReport",null,"xbrli:dateItemType","instant","DateOfReport",null,"xbrli:dateItemType","instant","DateOfReport",null,"xbrli:dateItemType","instant","DateOfReport",null,"xbrli:dateItemType","instant","DateOfReport",null,"xbrli:dateItemType","instant","DateOfReport",null,"xbrli:dateItemType","instant","DateOfReport",null,"xbrli:dateItemType","instant","DateOfReport",null,"xbrli:dateItemType","instant","DateOfReport",null,"xbrli:dateItemType","instant","DateOfReport",null,"xbrli:dateItemType","instant","DateOfReport",null,"xbrli:dateItemType","instant","DateOfReport",null,"xbrli:dateItemType","instant","DateOfReport",null,"xbrli:dateItemType","instant","DateOfReport",null,"xbrli:dateItemType","instant","DateOfReport",null,"xbrli:dateItemType","instant","DateOfReport",null,"xbrli:dateItemType","instant","DateOfReport",null,"xbrli:dateItemType","instant","DateOfReport",null,"xbrli:dateItemType","instant","DateOfReport",null,"xbrli:dateItemType","instant","DateOfReport",null,"xbrli:dateItemType","instant","DateOfReport",null,"xbrli:dateItemType","instant","DateOfReport",null,"xbrli:dateItemType","instant","DateOfReport",null,"xbrli:dateItemType","instant","DateOfReport",null,"xbrli:dateItemType","instant","DateOfReport",null,"xbrli:dateItemType","instant","DateOfReport",null,"xbrli:dateItemType","instant","DateOfReport",null,"xbrli:dateItemType","instant","DateOfReport",null,"xbrli:dateItemType","instant","DateOfReport",null,"xbrli:dateItemType","instant","DateOfReport",null,"xbrli:dateItemType","instant","DateOfReport",null,"xbrli:dateItemType","instant","DateOfReport",null,"xbrli:dateItemType","instant","DateOfReport",null,"xbrli:dateItemType","instant","DateOfReport",null,"xbrli:dateItemType","instant","DateOfReport",null,"xbrli:dateItemType","instant","DateOfReport",null,"xbrli:dateItemType","instant","DateOfReport",null,"xbrli:dateItemType","instant","DateOfReport",null,"xbrli:dateItemType","instant","DateOfReport",null,"xbrli:dateItemType","instant","DateOfReport",null,"xbrli:dateItemType","instant","DateOfReport",null,"xbrli:dateItemType","instant","DateOfReport",null,"xbrli:dateItemType","instant","DateOfReport",null,"xbrli:dateItemType","instant","DateOfReport",null,"xbrli:dateItemType","instant","DateOfReport",null,"xbrli:dateItemType","instant","DateOfReport",null,"xbrli:dateItemType","instant","DateOfReport",null,"xbrli:dateItemType","instant","DateOfReport",null,"xbrli:dateItemType","instant","DateOfReport",null,"xbrli:dateItemType","instant","DateOfReport",null,"xbrli:dateItemType","instant","DateOfReport",null,"xbrli:dateItemType","instant","DateOfReport",null,"xbrli:dateItemType","instant","DateOfReport",null,"xbrli:dateItemType","instant","DateOfReport",null,"xbrli:dateItemType","instant","DateOfReport",null,"xbrli:dateItemType","instant","DateOfReport",null,"xbrli:dateItemType","instant","DateOfReport",null,"xbrli:dateItemType","instant","DateOfReport",null,"xbrli:dateItemType","instant","DateOfReport",null,"xbrli:dateItemType","instant","DateOfReport",null,"xbrli:dateItemType","instant","DateOfReport",null,"xbrli:dateItemType","instant","DateOfReport",null,"xbrli:dateItemType","instant","DateOfReport",null,"xbrli:dateItemType","instant","DateOfReport",null,"xbrli:dateItemType","instant","DateOfReport",null,"xbrli:dateItemType","instant","DateOfReport",null,"xbrli:dateItemType","instant","DateOfReport",null,"xbrli:dateItemType","instant","DateOfReport",null,"xbrli:dateItemType","instant","DateOfReport",null,"xbrli:dateItemType","instant","DateOfReport",null,"xbrli:dateItemType","instant","DateOfReport",null,"xbrli:dateItemType","instant","DateOfReport",null,"xbrli:dateItemType","instant","DateOfReport",null,"xbrli:dateItemType","instant","DateOfReport",null,"xbrli:dateItemType","instant","DateOfReport",null,"xbrli:dateItemType","instant","DateOfReport",null,"xbrli:dateItemType","instant","DateOfReport",null,"xbrli:dateItemType","instant","DateOfReport",null,"xbrli:dateItemType","instant","DateOfReport",null,"xbrli:dateItemType","instant","DateOfReport",null,"xbrli:dateItemType","instant","DateOfReport",null,"xbrli:dateItemType","instant","DateOfReport",null,"xbrli:dateItemType","instant","DateOfReport",null,"xbrli:dateItemType","instant","DateOfReport",null,"xbrli:dateItemType","instant","DateOfReport",null,"xbrli:dateItemType","instant","DateOfReport",null,"xbrli:dateItemType","instant","DateOfReport",null,"xbrli:dateItemType","instant","DateOfReport",null,"xbrli:dateItemType","instant","DateOfReport",null,"xbrli:dateItemType","instant","DateOfReport",null,"xbrli:dateItemType","instant","DateOfReport",null,"xbrli:dateItemType","instant","DateOfReport",null,"xbrli:dateItemType","instant","DateOfReport",null,"xbrli:dateItemType","instant","DateOfReport",null,"xbrli:dateItemType","instant","DateOfReport",null,"xbrli:dateItemType","instant","DateOfReport",null,"xbrli:dateItemType","instant","DateOfReport",null,"xbrli:dateItemType","instant","DateOfReport",null,"xbrli:dateItemType","instant","DateOfReport",null,"xbrli:dateItemType","instant","DateOfReport",null,"xbrli:dateItemType","instant","DateOfReport",null,"xbrli:dateItemType","instant","DateOfReport",null,"xbrli:dateItemType","instant","DateOfReport",null,"xbrli:dateItemType","instant","DateOfReport",null,"xbrli:dateItemType","instant","DateOfReport",null,"xbrli:dateItemType","instant","DateOfReport",null,"xbrli:dateItemType","instant","DateOfReport",null,"xbrli:dateItemType","instant","DateOfReport",null,"xbrli:dateItemType","instant","DateOfReport",null,"xbrli:dateItemType","instant","DateOfReport",null,"xbrli:dateItemType","instant","DateOfReport",null,"xbrli:dateItemType","instant","DateOfReport",null,"xbrli:dateItemType","instant","DateOfReport",null,"xbrli:dateItemType","instant","DateOfReport",null,"xbrli:dateItemType","instant","DateOfReport",null,"xbrli:dateItemType","instant","DateOfReport",null,"xbrli:dateItemType","instant","DateOfReport",null,"xbrli:dateItemType","instant","DateOfReport",null,"xbrli:dateItemType","instant","DateOfReport",null,"xbrli:dateItemType","instant","DateOfReport",null,"xbrli:dateItemType","instant","DateOfReport",null,"xbrli:dateItemType","instant","DateOfReport",null,"xbrli:dateItemType","instant","DateOfReport",null,"xbrli:dateItemType","instant","DateOfReport",null,"xbrli:dateItemType","instant","DateOfReport",null,"xbrli:dateItemType","instant","DateOfReport",null,"xbrli:dateItemType","instant","DateOfReport",null,"xbrli:dateItemType","instant","DateOfReport",null,"xbrli:dateItemType","instant","DateOfReport",null,"xbrli:dateItemType","instant","DateOfReport",null,"xbrli:dateItemType","instant","DateOfReport",null,"xbrli:dateItemType","instant","DateOfReport",null,"xbrli:dateItemType","instant","DateOfReport",null,"xbrli:dateItemType","instant","DateOfReport",null,"xbrli:dateItemType","instant","DateOfReport",null,"xbrli:dateItemType","instant","DateOfReport",null,"xbrli:dateItemType","instant","DateOfReport",null,"xbrli:dateItemType","instant","DateOfReport",null,"xbrli:dateItemType","instant","DateOfReport",null,"xbrli:dateItemType","instant","DateOfReport",null,"xbrli:dateItemType","instant","DateOfReport",null,"xbrli:dateItemType","instant","DateOfReport",null,"xbrli:dateItemType","instant","DateOfReport",null,"xbrli:dateItemType","instant","DateOfReport",null,"xbrli:dateItemType","instant","DateOfReport",null,"xbrli:dateItemType","instant","DateOfReport",null,"xbrli:dateItemType","instant","DateOfReport",null,"xbrli:dateItemType","instant","DateOfReport",null,"xbrli:dateItemType","instant","DateOfReport",null,"xbrli:dateItemType","instant","DateOfReport",null,"xbrli:dateItemType","instant","DateOfReport",null,"xbrli:dateItemType","instant","DateOfReport",null,"xbrli:dateItemType","instant","DateOfReport",null,"xbrli:dateItemType","instant","DateOfReport",null,"xbrli:dateItemType","instant","DateOfReport",null,"xbrli:dateItemType","instant","DateOfReport",null,"xbrli:dateItemType","instant","DateOfReport",null,"xbrli:dateItemType","instant","DateOfReport",null,"xbrli:dateItemType","instant","DateOfReport",null,"xbrli:dateItemType","instant","DateOfReport",null,"xbrli:dateItemType","instant","DateOfReport",null,"xbrli:dateItemType","instant","DateOfReport",null,"xbrli:dateItemType","instant","DateOfReport",null,"xbrli:dateItemType","instant","DateOfReport",null,"xbrli:dateItemType","instant","DateOfReport",null,"xbrli:dateItemType","instant","DateOfReport",null,"xbrli:dateItemType","instant","DateOfReport",null,"xbrli:dateItemType","instant","DateOfReport",null,"xbrli:dateItemType","instant","DateOfReport",null,"xbrli:dateItemType","instant","DateOfReport",null,"xbrli:dateItemType","instant","DateOfReport",null,"xbrli:dateItemType","instant","DateOfReport",null,"xbrli:dateItemType","instant","DateOfReport",null,"xbrli:dateItemType","instant","DateOfReport",null,"xbrli:dateItemType","instant","DateOfReport",null,"xbrli:dateItemType","instant","DateOfReport",null,"xbrli:dateItemType","instant","DateOfReport",null,"xbrli:dateItemType","instant","DateOfReport",null,"xbrli:dateItemType","instant","DateOfReport",null,"xbrli:dateItemType","instant","DateOfReport",null,"xbrli:dateItemType","instant","DateOfReport",null,"xbrli:dateItemType","instant","DateOfReport",null,"xbrli:dateItemType","instant","DateOfReport",null,"xbrli:dateItemType","instant","DateOfReport",null,"xbrli:dateItemType","instant","DateOfReport",null,"xbrli:dateItemType","instant","DateOfReport",null,"xbrli:dateItemType","instant","DateOfReport",null,"xbrli:dateItemType","instant","DateOfReport",null,"xbrli:dateItemType","instant","DateOfReport",null,"xbrli:dateItemType","instant","DateOfReport",null,"xbrli:dateItemType","instant","DateOfReport",null,"xbrli:dateItemType","instant","DateOfReport",null,"xbrli:dateItemType","instant","DateOfReport",null,"xbrli:dateItemType","instant","DateOfReport",null,"xbrli:dateItemType","instant","DateOfReport",null,"xbrli:dateItemType","instant","DateOfReport",null,"xbrli:dateItemType","instant","DateOfReport",null,"xbrli:dateItemType","instant","DateOfReport",null,"xbrli:dateItemType","instant","DateOfReport",null,"xbrli:dateItemType","instant","DateOfReport",null,"xbrli:dateItemType","instant","DateOfReport",null,"xbrli:dateItemType","instant","DateOfReport",null,"xbrli:dateItemType","instant","DateOfReport",null,"xbrli:dateItemType","instant","DateOfReport",null,"xbrli:dateItemType","instant","DateOfReport",null,"xbrli:dateItemType","instant","DateOfReport",null,"xbrli:dateItemType","instant","DateOfReport",null,"xbrli:dateItemType","instant","DateOfReport",null,"xbrli:dateItemType","instant","DateOfReport",null,"xbrli:dateItemType","instant","DateOfReport",null,"xbrli:dateItemType","instant","DateOfReport",null,"xbrli:dateItemType","instant","DateOfReport",null,"xbrli:dateItemType","instant","DateOfReport",null,"xbrli:dateItemType","instant","DateOfReport",null,"xbrli:dateItemType","instant","DateOfReport",null,"xbrli:dateItemType","instant","DateOfReport",null,"xbrli:dateItemType","instant","DateOfReport",null,"xbrli:dateItemType","instant","DateOfReport",null,"xbrli:dateItemType","instant","DateOfReport",null,"xbrli:dateItemType","instant","DateOfReport",null,"xbrli:dateItemType","instant","DateOfReport",null,"xbrli:dateItemType","instant","DateOfReport",null,"xbrli:dateItemType","instant","DateOfReport",null,"xbrli:dateItemType","instant","DateOfReport",null,"xbrli:dateItemType","instant","DateOfReport",null,"xbrli:dateItemType","instant","DateOfReport",null,"xbrli:dateItemType","instant","DateOfReport",null,"xbrli:dateItemType","instant","DateOfReport",null,"xbrli:dateItemType","instant","DateOfReport",null,"xbrli:dateItemType","instant","DateOfReport",null,"xbrli:dateItemType","instant","DateOfReport",null,"xbrli:dateItemType","instant","DateOfReport",null,"xbrli:dateItemType","instant","DateOfReport",null,"xbrli:dateItemType","instant","DateOfReport",null,"xbrli:dateItemType","instant","DateOfReport",null,"xbrli:dateItemType","instant","DateOfReport",null,"xbrli:dateItemType","instant","DateOfReport",null,"xbrli:dateItemType","instant","DateOfReport",null,"xbrli:dateItemType","instant","DateOfReport",null,"xbrli:dateItemType","instant","DateOfReport",null,"xbrli:dateItemType","instant","DateOfReport",null,"xbrli:dateItemType","instant","DateOfReport",null,"xbrli:dateItemType","instant","DateOfReport",null,"xbrli:dateItemType","instant","DateOfReport",null,"xbrli:dateItemType","instant","DateOfReport",null,"xbrli:dateItemType","instant","DateOfReport",null,"xbrli:dateItemType","instant","DateOfReport",null,"xbrli:dateItemType","instant","DateOfReport",null,"xbrli:dateItemType","instant","DateOfReport",null,"xbrli:dateItemType","instant","DateOfReport",null,"xbrli:dateItemType","instant","DateOfReport",null,"xbrli:dateItemType","instant","DateOfReport",null,"xbrli:dateItemType","instant","DateOfReport",null,"xbrli:dateItemType","instant","DateOfReport",null,"xbrli:dateItemType","instant","DateOfReport",null,"xbrli:dateItemType","instant","DateOfReport",null,"xbrli:dateItemType","instant","DateOfReport",null,"xbrli:dateItemType","instant","DateOfReport",null,"xbrli:dateItemType","instant","DateOfReport",null,"xbrli:dateItemType","instant","DateOfReport",null,"xbrli:dateItemType","instant","DateOfReport",null,"xbrli:dateItemType","instant","DateOfReport",null,"xbrli:dateItemType","instant","DateOfReport",null,"xbrli:dateItemType","instant","DateOfReport",null,"xbrli:dateItemType","instant","DateOfReport",null,"xbrli:dateItemType","instant","DateOfReport",null,"xbrli:dateItemType","instant","DateOfReport",null,"xbrli:dateItemType","instant","DateOfReport",null,"xbrli:dateItemType","instant","DateOfReport",null,"xbrli:dateItemType","instant","DateOfReport",null,"xbrli:dateItemType","instant","DateOfReport",null,"xbrli:dateItemType","instant","DateOfReport",null,"xbrli:dateItemType","instant","DateOfReport",null,"xbrli:dateItemType","instant","DateOfReport",null,"xbrli:dateItemType","instant","DateOfReport",null,"xbrli:dateItemType","instant","DateOfReport",null,"xbrli:dateItemType","instant","DateOfReport",null,"xbrli:dateItemType","instant","DateOfReport",null,"xbrli:dateItemType","instant","DateOfReport",null,"xbrli:dateItemType","instant","DateOfReport",null,"xbrli:dateItemType","instant","DateOfReport",null,"xbrli:dateItemType","instant","DateOfReport",null,"xbrli:dateItemType","instant","DateOfReport",null,"xbrli:dateItemType","instant","DateOfReport",null,"xbrli:dateItemType","instant","DateOfReport",null,"xbrli:dateItemType","instant","DateOfReport",null,"xbrli:dateItemType","instant","DateOfReport",null,"xbrli:dateItemType","instant","DateOfReport",null,"xbrli:dateItemType","instant","DateOfReport",null,"xbrli:dateItemType","instant","DateOfReport",null,"xbrli:dateItemType","instant","DateOfReport",null,"xbrli:dateItemType","instant","DateOfReport",null,"xbrli:dateItemType","instant","DateOfReport",null,"xbrli:dateItemType","instant","DateOfReport",null,"xbrli:dateItemType","instant","DateOfReport",null,"xbrli:dateItemType","instant","DateOfReport",null,"xbrli:dateItemType","instant","DateOfReport",null,"xbrli:dateItemType","instant","DateOfReport",null,"xbrli:dateItemType","instant","DateOfReport",null,"xbrli:dateItemType","instant","DateOfReport",null,"xbrli:dateItemType","instant","DateOfReport",null,"xbrli:dateItemType","instant","DateOfReport",null,"xbrli:dateItemType","instant","DateOfReport",null,"xbrli:dateItemType","instant","DateOfReport",null,"xbrli:dateItemType","instant","DateOfReport",null,"xbrli:dateItemType","instant","DateOfReport",null,"xbrli:dateItemType","instant","DateOfReport",null,"xbrli:dateItemType","instant","DateOfReport",null,"xbrli:dateItemType","instant","DateOfReport",null,"xbrli:dateItemType","instant","DateOfReport",null,"xbrli:dateItemType","instant","DateOfReport",null,"xbrli:dateItemType","instant","DateOfReport",null,"xbrli:dateItemType","instant","DateOfReport",null,"xbrli:dateItemType","instant","DateOfReport",null,"xbrli:dateItemType","instant","DateOfReport",null,"xbrli:dateItemType","instant","DateOfReport",null,"xbrli:dateItemType","instant","DateOfReport",null,"xbrli:dateItemType","instant","DateOfReport",null,"xbrli:dateItemType","instant","DateOfReport",null,"xbrli:dateItemType","instant","DateOfReport",null,"xbrli:dateItemType","instant","DateOfReport",null,"xbrli:dateItemType","instant","DateOfReport",null,"xbrli:dateItemType","instant","DateOfReport",null,"xbrli:dateItemType","instant","DateOfReport",null,"xbrli:dateItemType","instant","DateOfReport",null,"xbrli:dateItemType","instant","DateOfReport",null,"xbrli:dateItemType","instant","DateOfReport",null,"xbrli:dateItemType","instant","DateOfReport",null,"xbrli:dateItemType","instant","DateOfReport",null,"xbrli:dateItemType","instant","DateOfReport",null,"xbrli:dateItemType","instant","DateOfReport",null,"xbrli:dateItemType","instant","DateOfReport",null,"xbrli:dateItemType","instant","DateOfReport",null,"xbrli:dateItemType","instant","DateOfReport",null,"xbrli:dateItemType","instant","DateOfReport",null,"xbrli:dateItemType","instant","DateOfReport",null,"xbrli:dateItemType","instant","DateOfReport",null,"xbrli:dateItemType","instant","DateOfReport",null,"xbrli:dateItemType","instant","DateOfReport",null,"xbrli:dateItemType","instant","DateOfReport",null,"xbrli:dateItemType","instant","DateOfReport",null,"xbrli:dateItemType","instant","DateOfReport",null,"xbrli:dateItemType","instant","DateOfReport",null,"xbrli:dateItemType","instant","DateOfReport",null,"xbrli:dateItemType","instant","DateOfReport",null,"xbrli:dateItemType","instant","DateOfReport",null,"xbrli:dateItemType","instant","DateOfReport",null,"xbrli:dateItemType","instant","DateOfReport",null,"xbrli:dateItemType","instant","DateOfReport",null,"xbrli:dateItemType","instant","DateOfReport",null,"xbrli:dateItemType","instant","DateOfReport",null,"xbrli:dateItemType","instant","DateOfReport",null,"xbrli:dateItemType","instant","DateOfReport",null,"xbrli:dateItemType","instant","DateOfReport",null,"xbrli:dateItemType","instant","DateOfReport",null,"xbrli:dateItemType","instant","DateOfReport",null,"xbrli:dateItemType","instant","DateOfReport",null,"xbrli:dateItemType","instant","DateOfReport",null,"xbrli:dateItemType","instant","DateOfReport",null,"xbrli:dateItemType","instant","DateOfReport",null,"xbrli:dateItemType","instant","DateOfReport",null,"xbrli:dateItemType","instant","DateOfReport",null,"xbrli:dateItemType","instant","DateOfReport",null,"xbrli:dateItemType","instant","DateOfReport",null,"xbrli:dateItemType","instant","DateOfReport",null,"xbrli:dateItemType","instant","DateOfReport",null,"xbrli:dateItemType","instant","DateOfReport",null,"xbrli:dateItemType","instant","DateOfReport",null,"xbrli:dateItemType","instant","DateOfReport",null,"xbrli:dateItemType","instant","DateOfReport",null,"xbrli:dateItemType","instant","DateOfReport",null,"xbrli:dateItemType","instant","DateOfReport",null,"xbrli:dateItemType","instant","DateOfReport",null,"xbrli:dateItemType","instant","DateOfReport",null,"xbrli:dateItemType","instant","DateOfReport",null,"xbrli:dateItemType","instant","DateOfReport",null,"xbrli:dateItemType","instant","DateOfReport",null,"xbrli:dateItemType","instant","DateOfReport",null,"xbrli:dateItemType","instant","DateOfReport",null,"xbrli:dateItemType","instant","DateOfReport",null,"xbrli:dateItemType","instant","DateOfReport",null,"xbrli:dateItemType","instant","DateOfReport",null,"xbrli:dateItemType","instant","DateOfReport",null,"xbrli:dateItemType","instant","DateOfReport",null,"xbrli:dateItemType","instant","DateOfReport",null,"xbrli:dateItemType","instant","DateOfReport",null,"xbrli:dateItemType","instant","DateOfReport",null,"xbrli:dateItemType","instant","DateOfReport",null,"xbrli:dateItemType","instant","DateOfReport",null,"xbrli:dateItemType","instant","DateOfReport",null,"xbrli:dateItemType","instant","DateOfReport",null,"xbrli:dateItemType","instant","DateOfReport",null,"xbrli:dateItemType","instant","DateOfReport",null,"xbrli:dateItemType","instant","DateOfReport",null,"xbrli:dateItemType","instant","DateOfReport",null,"xbrli:dateItemType","instant","DateOfReport",null,"xbrli:dateItemType","instant","DateOfReport",null,"xbrli:dateItemType","instant","DateOfReport",null,"xbrli:dateItemType","instant","DateOfReport",null,"xbrli:dateItemType","instant","DateOfReport",null,"xbrli:dateItemType","instant","DateOfReport",null,"xbrli:dateItemType","instant","DateOfReport",null,"xbrli:dateItemType","instant","DateOfReport",null,"xbrli:dateItemType","instant","DateOfReport",null,"xbrli:dateItemType","instant","DateOfReport",null,"xbrli:dateItemType","instant","DateOfReport",null,"xbrli:dateItemType","instant","DateOfReport",null,"xbrli:dateItemType","instant","DateOfReport",null,"xbrli:dateItemType","instant","DateOfReport",null,"xbrli:dateItemType","instant","DateOfReport",null,"xbrli:dateItemType","instant","DateOfReport",null,"xbrli:dateItemType","instant","DateOfReport",null,"xbrli:dateItemType","instant","DateOfReport",null,"xbrli:dateItemType","instant","DateOfReport",null,"xbrli:dateItemType","instant","DateOfReport",null,"xbrli:dateItemType","instant","DateOfReport",null,"xbrli:dateItemType","instant","DateOfReport",null,"xbrli:dateItemType","instant","DateOfReport",null,"xbrli:dateItemType","instant","DateOfReport",null,"xbrli:dateItemType","instant","DateOfReport",null,"xbrli:dateItemType","instant","DateOfReport",null,"xbrli:dateItemType","instant","DateOfReport",null,"xbrli:dateItemType","instant","DateOfReport",null,"xbrli:dateItemType","instant","DateOfReport",null,"xbrli:dateItemType","instant","DateOfReport",null,"xbrli:dateItemType","instant","DateOfReport",null,"xbrli:dateItemType","instant","DateOfReport",null,"xbrli:dateItemType","instant","DateOfReport",null,"xbrli:dateItemType","instant","DateOfReport",null,"xbrli:dateItemType","instant","DateOfReport",null,"xbrli:dateItemType","instant","DateOfReport",null,"xbrli:dateItemType","instant","DateOfReport",null,"xbrli:dateItemType","instant","DateOfReport",null,"xbrli:dateItemType","instant","DateOfReport",null,"xbrli:dateItemType","instant","DateOfReport",null,"xbrli:dateItemType","instant","DateOfReport",null,"xbrli:dateItemType","instant","DateOfReport",null,"xbrli:dateItemType","instant","DateOfReport",null,"xbrli:dateItemType","instant","DateOfReport",null,"xbrli:dateItemType","instant","DateOfReport",null,"xbrli:dateItemType","instant","DateOfReport",null,"xbrli:dateItemType","instant","DateOfReport",null,"xbrli:dateItemType","instant","DateOfReport",null,"xbrli:dateItemType","instant","DateOfReport",null,"xbrli:dateItemType","instant","DateOfReport",null,"xbrli:dateItemType","instant","DateOfReport",null,"xbrli:dateItemType","instant","DateOfReport",null,"xbrli:dateItemType","instant","DateOfReport",null,"xbrli:dateItemType","instant","DateOfReport",null,"xbrli:dateItemType","instant","DateOfReport",null,"xbrli:dateItemType","instant","DateOfReport",null,"xbrli:dateItemType","instant","DateOfReport",null,"xbrli:dateItemType","instant","DateOfReport",null,"xbrli:dateItemType","instant","DateOfReport",null,"xbrli:dateItemType","instant","DateOfReport",null,"xbrli:dateItemType","instant","DateOfReport",null,"xbrli:dateItemType","instant","DateOfReport",null,"xbrli:dateItemType","instant","DateOfReport",null,"xbrli:dateItemType","instant","DateOfReport",null,"xbrli:dateItemType","instant","DateOfReport",null,"xbrli:dateItemType","instant","DateOfReport",null,"xbrli:dateItemType","instant","DateOfReport",null,"xbrli:dateItemType","instant","DateOfReport",null,"xbrli:dateItemType","instant","DateOfReport",null,"xbrli:dateItemType","instant","DateOfReport",null,"xbrli:dateItemType","instant","DateOfReport",null,"xbrli:dateItemType","instant","DateOfReport",null,"xbrli:dateItemType","instant","DateOfReport",null,"xbrli:dateItemType","instant","DateOfReport",null,"xbrli:dateItemType","instant","DateOfReport",null,"xbrli:dateItemType","instant","DateOfReport",null,"xbrli:dateItemType","instant","DateOfReport",null,"xbrli:dateItemType","instant","DateOfReport",null,"xbrli:dateItemType","instant","DateOfReport",null,"xbrli:dateItemType","instant","DateOfReport",null,"xbrli:dateItemType","instant","DateOfReport",null,"xbrli:dateItemType","instant","DateOfReport",null,"xbrli:dateItemType","instant","DateOfReport",null,"xbrli:dateItemType","instant","DateOfReport",null,"xbrli:dateItemType","instant","DateOfReport",null,"xbrli:dateItemType","instant","DateOfReport",null,"xbrli:dateItemType","instant","DateOfReport",null,"xbrli:dateItemType","instant","DateOfReport",null,"xbrli:dateItemType","instant","DateOfReport",null,"xbrli:dateItemType","instant","DateOfReport",null,"xbrli:dateItemType","instant","DateOfReport",null,"xbrli:dateItemType","instant","DateOfReport",null,"xbrli:dateItemType","instant","DateOfReport",null,"xbrli:dateItemType","instant","DateOfReport",null,"xbrli:dateItemType","instant","DateOfReport",null,"xbrli:dateItemType","instant","DateOfReport",null,"xbrli:dateItemType","instant","DateOfReport",null,"xbrli:dateItemType","instant","DateOfReport",null,"xbrli:dateItemType","instant","DateOfReport",null,"xbrli:dateItemType","instant","DateOfReport",null,"xbrli:dateItemType","instant","DateOfReport",null,"xbrli:dateItemType","instant","DateOfReport",null,"xbrli:dateItemType","instant","DateOfReport",null,"xbrli:dateItemType","instant","DateOfReport",null,"xbrli:dateItemType","instant","DateOfReport",null,"xbrli:dateItemType","instant","DateOfReport",null,"xbrli:dateItemType","instant","DateOfReport",null,"xbrli:dateItemType","instant","DateOfReport",null,"xbrli:dateItemType","instant","DateOfReport",null,"xbrli:dateItemType","instant","DateOfReport",null,"xbrli:dateItemType","instant","DateOfReport",null,"xbrli:dateItemType","instant","DateOfReport",null,"xbrli:dateItemType","instant","DateOfReport",null,"xbrli:dateItemType","instant","DateOfReport",null,"xbrli:dateItemType","instant","DateOfReport",null,"xbrli:dateItemType","instant","DateOfReport",null,"xbrli:dateItemType","instant","DateOfReport",null,"xbrli:dateItemType","instant","DateOfReport",null,"xbrli:dateItemType","instant","DateOfReport",null,"xbrli:dateItemType","instant","DateOfReport",null,"xbrli:dateItemType","instant","DateOfReport",null,"xbrli:dateItemType","instant","DateOfReport",null,"xbrli:dateItemType","instant","DateOfReport",null,"xbrli:dateItemType","instant","DateOfReport",null,"xbrli:dateItemType","instant","DateOfReport",null,"xbrli:dateItemType","instant","DateOfReport",null,"xbrli:dateItemType","instant","DateOfReport",null,"xbrli:dateItemType","instant","DateOfReport",null,"xbrli:dateItemType","instant","DateOfReport",null,"xbrli:dateItemType","instant","DateOfReport",null,"xbrli:dateItemType","instant","DateOfReport",null,"xbrli:dateItemType","instant","DateOfReport",null,"xbrli:dateItemType","instant","DateOfReport",null,"xbrli:dateItemType","instant","DateOfReport",null,"xbrli:dateItemType","instant","DateOfReport",null,"xbrli:dateItemType","instant","DateOfReport",null,"xbrli:dateItemType","instant","DateOfReport",null,"xbrli:dateItemType","instant","DateOfReport",null,"xbrli:dateItemType","instant","DateOfReport",null,"xbrli:dateItemType","instant","DateOfReport",null,"xbrli:dateItemType","instant","DateOfReport",null,"xbrli:dateItemType","instant","DateOfReport",null,"xbrli:dateItemType","instant","DateOfReport",null,"xbrli:dateItemType","instant","DateOfReport",null,"xbrli:dateItemType","instant","DateOfReport",null,"xbrli:dateItemType","instant","DateOfReport",null,"xbrli:dateItemType","instant","DateOfReport",null,"xbrli:dateItemType","instant","DateOfReport",null,"xbrli:dateItemType","instant","DateOfReport",null,"xbrli:dateItemType","instant","DateOfReport",null,"xbrli:dateItemType","instant","DateOfReport",null,"xbrli:dateItemType","instant","DateOfReport",null,"xbrli:dateItemType","instant","DateOfReport",null,"xbrli:dateItemType","instant","DateOfReport",null,"xbrli:dateItemType","instant","DateOfReport",null,"xbrli:dateItemType","instant","DateOfReport",null,"xbrli:dateItemType","instant","DateOfReport",null,"xbrli:dateItemType","instant","DateOfReport",null,"xbrli:dateItemType","instant","DateOfReport",null,"xbrli:dateItemType","instant","DateOfReport",null,"xbrli:dateItemType","instant","DateOfReport",null,"xbrli:dateItemType","instant","DateOfReport",null,"xbrli:dateItemType","instant","DateOfReport",null,"xbrli:dateItemType","instant","DateOfReport",null,"xbrli:dateItemType","instant","DateOfReport",null,"xbrli:dateItemType","instant","DateOfReport",null,"xbrli:dateItemType","instant","DateOfReport",null,"xbrli:dateItemType","instant","DateOfReport",null,"xbrli:dateItemType","instant","DateOfReport",null,"xbrli:dateItemType","instant","DateOfReport",null,"xbrli:dateItemType","instant","DateOfReport",null,"xbrli:dateItemType","instant","DateOfReport",null,"xbrli:dateItemType","instant","DateOfReport",null,"xbrli:dateItemType","instant","DateOfReport",null,"xbrli:dateItemType","instant","DateOfReport",null,"xbrli:dateItemType","instant","DateOfReport",null,"xbrli:dateItemType","instant","DateOfReport",null,"xbrli:dateItemType","instant","DateOfReport",null,"xbrli:dateItemType","instant","DateOfReport",null,"xbrli:dateItemType","instant","DateOfReport",null,"xbrli:dateItemType","instant","DateOfReport",null,"xbrli:dateItemType","instant","DateOfReport",null,"xbrli:dateItemType","instant","DateOfReport",null,"xbrli:dateItemType","instant","DateOfReport",null,"xbrli:dateItemType","instant","DateOfReport",null,"xbrli:dateItemType","instant","DateOfReport",null,"xbrli:dateItemType","instant","DateOfReport",null,"xbrli:dateItemType","instant","DateOfReport",null,"xbrli:dateItemType","instant","DateOfReport",null,"xbrli:dateItemType","instant","DateOfReport",null,"xbrli:dateItemType","instant","DateOfReport",null,"xbrli:dateItemType","instant","DateOfReport",null,"xbrli:dateItemType","instant","DateOfReport",null,"xbrli:dateItemType","instant","DateOfReport",null,"xbrli:dateItemType","instant","DateOfReport",null,"xbrli:dateItemType","instant","DateOfReport",null,"xbrli:dateItemType","instant","DateOfReport",null,"xbrli:dateItemType","instant","DateOfReport",null,"xbrli:dateItemType","instant","DateOfReport",null,"xbrli:dateItemType","instant","DateOfReport",null,"xbrli:dateItemType","instant","DateOfReport",null,"xbrli:dateItemType","instant","DateOfReport",null,"xbrli:dateItemType","instant","DateOfReport",null,"xbrli:dateItemType","instant","DateOfReport",null,"xbrli:dateItemType","instant","DateOfReport",null,"xbrli:dateItemType","instant","DateOfReport",null,"xbrli:dateItemType","instant","DateOfReport",null,"xbrli:dateItemType","instant","DateOfReport",null,"xbrli:dateItemType","instant","DateOfReport",null,"xbrli:dateItemType","instant","DateOfReport",null,"xbrli:dateItemType","instant","DateOfReport",null,"xbrli:dateItemType","instant","DateOfReport",null,"xbrli:dateItemType","instant","DateOfReport",null,"xbrli:dateItemType","instant","DateOfReport",null,"xbrli:dateItemType","instant","DateOfReport",null,"xbrli:dateItemType","instant","DateOfReport",null,"xbrli:dateItemType","instant","DateOfReport",null,"xbrli:dateItemType","instant","DateOfReport",null,"xbrli:dateItemType","instant","DateOfReport",null,"xbrli:dateItemType","instant","DateOfReport",null,"xbrli:dateItemType","instant","DateOfReport",null,"xbrli:dateItemType","instant","DateOfReport",null,"xbrli:dateItemType","instant","DateOfReport",null,"xbrli:dateItemType","instant","DateOfReport",null,"xbrli:dateItemType","instant","DateOfReport",null,"xbrli:dateItemType","instant","DateOfReport",null,"xbrli:dateItemType","instant","DateOfReport",null,"xbrli:dateItemType","instant","DateOfReport",null,"xbrli:dateItemType","instant","DateOfReport",null,"xbrli:dateItemType","instant","DateOfReport",null,"xbrli:dateItemType","instant","DateOfReport",null,"xbrli:dateItemType","instant","DateOfReport",null,"xbrli:dateItemType","instant","DateOfReport",null,"xbrli:dateItemType","instant","DateOfReport",null,"xbrli:dateItemType","instant","DateOfReport",null,"xbrli:dateItemType","instant","DateOfReport",null,"xbrli:dateItemType","instant","DateOfReport",null,"xbrli:dateItemType","instant","DateOfReport",null,"xbrli:dateItemType","instant","DateOfReport",null,"xbrli:dateItemType","instant","DateOfReport",null,"xbrli:dateItemType","instant","DateOfReport",null,"xbrli:dateItemType","instant","DateOfReport",null,"xbrli:dateItemType","instant","DateOfReport",null,"xbrli:dateItemType","instant","DateOfReport",null,"xbrli:dateItemType","instant","DateOfReport",null,"xbrli:dateItemType","instant","DateOfReport",null,"xbrli:dateItemType","instant","DateOfReport",null,"xbrli:dateItemType","instant","DateOfReport",null,"xbrli:dateItemType","instant","DateOfReport",null,"xbrli:dateItemType","instant","DateOfReport",null,"xbrli:dateItemType","instant","DateOfReport",null,"xbrli:dateItemType","instant","DateOfReport",null,"xbrli:dateItemType","instant","DateOfReport",null,"xbrli:dateItemType","instant","DateOfReport",null,"xbrli:dateItemType","instant","DateOfReport",null,"xbrli:dateItemType","instant","DateOfReport",null,"xbrli:dateItemType","instant","DateOfReport",null,"xbrli:dateItemType","instant","DateOfReport",null,"xbrli:dateItemType","instant","DateOfReport",null,"xbrli:dateItemType","instant","DateOfReport",null,"xbrli:dateItemType","instant","DateOfReport",null,"xbrli:dateItemType","instant","DateOfReport",null,"xbrli:dateItemType","instant","DateOfReport",null,"xbrli:dateItemType","instant","DateOfReport",null,"xbrli:dateItemType","instant","DateOfReport",null,"xbrli:dateItemType","instant","DateOfReport",null,"xbrli:dateItemType","instant","DateOfReport",null,"xbrli:dateItemType","instant","DateOfReport",null,"xbrli:dateItemType","instant","DateOfReport",null,"xbrli:dateItemType","instant","DateOfReport",null,"xbrli:dateItemType","instant","DateOfReport",null,"xbrli:dateItemType","instant","DateOfReport",null,"xbrli:dateItemType","instant","DateOfReport",null,"xbrli:dateItemType","instant","DateOfReport",null,"xbrli:dateItemType","instant","DateOfReport",null,"xbrli:dateItemType","instant","DateOfReport",null,"xbrli:dateItemType","instant","DateOfReport",null,"xbrli:dateItemType","instant","DateOfReport",null,"xbrli:dateItemType","instant","DateOfReport",null,"xbrli:dateItemType","instant","DateOfReport",null,"xbrli:dateItemType","instant","DateOfReport",null,"xbrli:dateItemType","instant","DateOfReport",null,"xbrli:dateItemType","instant","DateOfReport",null,"xbrli:dateItemType","instant","DateOfReport",null,"xbrli:dateItemType","instant","DateOfReport",null,"xbrli:dateItemType","instant","DateOfReport",null,"xbrli:dateItemType","instant","DateOfReport",null,"xbrli:dateItemType","instant","DateOfReport",null,"xbrli:dateItemType","instant","DateOfReport",null,"xbrli:dateItemType","instant","DateOfReport",null,"xbrli:dateItemType","instant","DateOfReport",null,"xbrli:dateItemType","instant","DateOfReport",null,"xbrli:dateItemType","instant","DateOfReport",null,"xbrli:dateItemType","instant","DateOfReport",null,"xbrli:dateItemType","instant","DateOfReport",null,"xbrli:dateItemType","instant","DateOfReport",null,"xbrli:dateItemType","instant","DateOfReport",null,"xbrli:dateItemType","instant","DateOfReport",null,"xbrli:dateItemType","instant","DateOfReport",null,"xbrli:dateItemType","instant","DateOfReport",null,"xbrli:dateItemType","instant","DateOfReport",null,"xbrli:dateItemType","instant","DateOfReport",null,"xbrli:dateItemType","instant","DateOfReport",null,"xbrli:dateItemType","instant","DateOfReport",null,"xbrli:dateItemType","instant","DateOfReport",null,"xbrli:dateItemType","instant","DateOfReport",null,"xbrli:dateItemType","instant","DateOfReport",null,"xbrli:dateItemType","instant","DateOfReport",null,"xbrli:dateItemType","instant","DateOfReport",null,"xbrli:dateItemType","instant","DateOfReport",null,"xbrli:dateItemType","instant","DateOfReport",null,"xbrli:dateItemType","instant","DateOfReport",null,"xbrli:dateItemType","instant","DateOfReport",null,"xbrli:dateItemType","instant","DateOfReport",null,"xbrli:dateItemType","instant","DateOfReport",null,"xbrli:dateItemType","instant","DateOfReport",null,"xbrli:dateItemType","instant","DateOfReport",null,"xbrli:dateItemType","instant","DateOfReport",null,"xbrli:dateItemType","instant","DateOfReport",null,"xbrli:dateItemType","instant","DateOfReport",null,"xbrli:dateItemType","instant","DateOfReport",null,"xbrli:dateItemType","instant","DateOfReport",null,"xbrli:dateItemType","instant","DateOfReport",null,"xbrli:dateItemType","instant","DateOfReport",null,"xbrli:dateItemType","instant","DateOfReport",null,"xbrli:dateItemType","instant","DateOfReport",null,"xbrli:dateItemType","instant","DateOfReport",null,"xbrli:dateItemType","instant","DateOfReport",null,"xbrli:dateItemType","instant","DateOfReport",null,"xbrli:dateItemType","instant","DateOfReport",null,"xbrli:dateItemType","instant","DateOfReport",null,"xbrli:dateItemType","instant","DateOfReport",null,"xbrli:dateItemType","instant","DateOfReport",null,"xbrli:dateItemType","instant","DateOfReport",null,"xbrli:dateItemType","instant","DateOfReport",null,"xbrli:dateItemType","instant","DateOfReport",null,"xbrli:dateItemType","instant","DateOfReport",null,"xbrli:dateItemType","instant","DateOfReport",null,"xbrli:dateItemType","instant","DateOfReport",null,"xbrli:dateItemType","instant","DateOfReport",null,"xbrli:dateItemType","instant","DateOfReport",null,"xbrli:dateItemType","instant","DateOfReport",null,"xbrli:dateItemType","instant","DateOfReport",null,"xbrli:dateItemType","instant","DateOfReport",null,"xbrli:dateItemType","instant","DateOfReport",null,"xbrli:dateItemType","instant","DateOfReport",null,"xbrli:dateItemType","instant","DateOfReport",null,"xbrli:dateItemType","instant","DateOfReport",null,"xbrli:dateItemType","instant","DateOfReport",null,"xbrli:dateItemType","instant","DateOfReport",null,"xbrli:dateItemType","instant","DateOfReport",null,"xbrli:dateItemType","instant","DateOfReport",null,"xbrli:dateItemType","instant","DateOfReport",null,"xbrli:dateItemType","instant","DateOfReport",null,"xbrli:dateItemType","instant","DateOfReport",null,"xbrli:dateItemType","instant","DateOfReport",null,"xbrli:dateItemType","instant","DateOfReport",null,"xbrli:dateItemType","instant","DateOfReport",null,"xbrli:dateItemType","instant","DateOfReport",null,"xbrli:dateItemType","instant","DateOfReport",null,"xbrli:dateItemType","instant","DateOfReport",null,"xbrli:dateItemType","instant","DateOfReport",null,"xbrli:dateItemType","instant","DateOfReport",null,"xbrli:dateItemType","instant","DateOfReport",null,"xbrli:dateItemType","instant","DateOfReport",null,"xbrli:dateItemType","instant","DateOfReport",null,"xbrli:dateItemType","instant","DateOfReport",null,"xbrli:dateItemType","instant","DateOfReport",null,"xbrli:dateItemType","instant","DateOfReport",null,"xbrli:dateItemType","instant","DateOfReport",null,"xbrli:dateItemType","instant","DateOfReport",null,"xbrli:dateItemType","instant","DateOfReport",null,"xbrli:dateItemType","instant","DateOfReport",null,"xbrli:dateItemType","instant","DateOfReport",null,"xbrli:dateItemType","instant","DateOfReport",null,"xbrli:dateItemType","instant","DateOfReport",null,"xbrli:dateItemType","instant","DateOfReport",null,"xbrli:dateItemType","instant","DateOfReport",null,"xbrli:dateItemType","instant","DateOfReport",null,"xbrli:dateItemType","instant","DateOfReport",null,"xbrli:dateItemType","instant","DateOfReport",null,"xbrli:dateItemType","instant","DateOfReport",null,"xbrli:dateItemType","instant","DateOfReport",null,"xbrli:dateItemType","instant","DateOfReport",null,"xbrli:dateItemType","instant","DateOfReport",null,"xbrli:dateItemType","instant","DateOfReport",null,"xbrli:dateItemType","instant","DateOfReport",null,"xbrli:dateItemType","instant","DateOfReport",null,"xbrli:dateItemType","instant","DateOfReport",null,"xbrli:dateItemType","instant","DateOfReport",null,"xbrli:dateItemType","instant","DateOfReport",null,"xbrli:dateItemType","instant","DateOfReport",null,"xbrli:dateItemType","instant","DateOfReport",null,"xbrli:dateItemType","instant","DateOfReport",null,"xbrli:dateItemType","instant","DateOfReport",null,"xbrli:dateItemType","instant","DateOfReport",null,"xbrli:dateItemType","instant","DateOfReport",null,"xbrli:dateItemType","instant","DateOfReport",null,"xbrli:dateItemType","instant","DateOfReport",null,"xbrli:dateItemType","instant","DateOfReport",null,"xbrli:dateItemType","instant","DateOfReport",null,"xbrli:dateItemType","instant","DateOfReport",null,"xbrli:dateItemType","instant","DateOfReport",null,"xbrli:dateItemType","instant","DateOfReport",null,"xbrli:dateItemType","instant","DateOfReport",null,"xbrli:dateItemType","instant","DateOfReport",null,"xbrli:dateItemType","instant","DateOfReport",null,"xbrli:dateItemType","instant","DateOfReport",null,"xbrli:dateItemType","instant","DateOfReport",null,"xbrli:dateItemType","instant","DateOfReport",null,"xbrli:dateItemType","instant","DateOfReport",null,"xbrli:dateItemType","instant","DateOfReport",null,"xbrli:dateItemType","instant","DateOfReport",null,"xbrli:dateItemType","instant","DateOfReport",null,"xbrli:dateItemType","instant","DateOfReport",null,"xbrli:dateItemType","instant","DateOfReport",null,"xbrli:dateItemType","instant","DateOfReport",null,"xbrli:dateItemType","instant","DateOfReport",null,"xbrli:dateItemType","instant","DateOfReport",null,"xbrli:dateItemType","instant","DateOfReport",null,"xbrli:dateItemType","instant","DateOfReport",null,"xbrli:dateItemType","instant","DateOfReport",null,"xbrli:dateItemType","instant","DateOfReport",null,"xbrli:dateItemType","instant","DateOfReport",null,"xbrli:dateItemType","instant","DateOfReport",null,"xbrli:dateItemType","instant","DateOfReport",null,"xbrli:dateItemType","instant","DateOfReport",null,"xbrli:dateItemType","instant","DateOfReport",null,"xbrli:dateItemType","instant","DateOfReport",null,"xbrli:dateItemType","instant","DateOfReport",null,"xbrli:dateItemType","instant","DateOfReport",null,"xbrli:dateItemType","instant","DateOfReport",null,"xbrli:dateItemType","instant","DateOfReport",null,"xbrli:dateItemType","instant","DateOfReport",null,"xbrli:dateItemType","instant","DateOfReport",null,"xbrli:dateItemType","instant","DateOfReport",null,"xbrli:dateItemType","instant","DateOfReport",null,"xbrli:dateItemType","instant","DateOfReport",null,"xbrli:dateItemType","instant","DateOfReport",null,"xbrli:dateItemType","instant","DateOfReport",null,"xbrli:dateItemType","instant","DateOfReport",null,"xbrli:dateItemType","instant","DateOfReport",null,"xbrli:dateItemType","instant","DateOfReport",null,"xbrli:dateItemType","instant","DateOfReport",null,"xbrli:dateItemType","instant","DateOfReport",null,"xbrli:dateItemType","instant","DateOfReport",null,"xbrli:dateItemType","instant","DateOfReport",null,"xbrli:dateItemType","instant","DateOfReport",null,"xbrli:dateItemType","instant","DateOfReport",null,"xbrli:dateItemType","instant","DateOfReport",null,"xbrli:dateItemType","instant","DateOfReport",null,"xbrli:dateItemType","instant","DateOfReport",null,"xbrli:dateItemType","instant","DateOfReport",null,"xbrli:dateItemType","instant","DateOfReport",null,"xbrli:dateItemType","instant","DateOfReport",null,"xbrli:dateItemType","instant","DateOfReport",null,"xbrli:dateItemType","instant","DateOfReport",null,"xbrli:dateItemType","instant","DateOfReport",null,"xbrli:dateItemType","instant","DateOfReport",null,"xbrli:dateItemType","instant","DateOfReport",null,"xbrli:dateItemType","instant","DateOfReport",null,"xbrli:dateItemType","instant","DateOfReport",null,"xbrli:dateItemType","instant","DateOfReport",null,"xbrli:dateItemType","instant","DateOfReport",null,"xbrli:dateItemType","instant","DateOfReport",null,"xbrli:dateItemType","instant","DateOfReport",null,"xbrli:dateItemType","instant","DateOfReport",null,"xbrli:dateItemType","instant","DateOfReport",null,"xbrli:dateItemType","instant","DateOfReport",null,"xbrli:dateItemType","instant","DateOfReport",null,"xbrli:dateItemType","instant","DateOfReport",null,"xbrli:dateItemType","instant","DateOfReport",null,"xbrli:dateItemType","instant","DateOfReport",null,"xbrli:dateItemType","instant","DateOfReport",null,"xbrli:dateItemType","instant","DateOfReport",null,"xbrli:dateItemType","instant","DateOfReport",null,"xbrli:dateItemType","instant","DateOfReport",null,"xbrli:dateItemType","instant","DateOfReport",null,"xbrli:dateItemType","instant","DateOfReport",null,"xbrli:dateItemType","instant","DateOfReport",null,"xbrli:dateItemType","instant","DateOfReport",null,"xbrli:dateItemType","instant","DateOfReport",null,"xbrli:dateItemType","instant","DateOfReport",null,"xbrli:dateItemType","instant","DateOfReport",null,"xbrli:dateItemType","instant","DateOfReport",null,"xbrli:dateItemType","instant","DateOfReport",null,"xbrli:dateItemType","instant","DateOfReport",null,"xbrli:dateItemType","instant","DateOfReport",null,"xbrli:dateItemType","instant","DateOfReport",null,"xbrli:dateItemType","instant","DateOfReport",null,"xbrli:dateItemType","instant","DateOfReport",null,"xbrli:dateItemType","instant","DateOfReport",null,"xbrli:dateItemType","instant","DateOfReport",null,"xbrli:dateItemType","instant","DateOfReport",null,"xbrli:dateItemType","instant","DateOfReport",null,"xbrli:dateItemType","instant","DateOfReport",null,"xbrli:dateItemType","instant","DateOfReport",null,"xbrli:dateItemType","instant","DateOfReport",null,"xbrli:dateItemType","instant","DateOfReport",null,"xbrli:dateItemType","instant","DateOfReport",null,"xbrli:dateItemType","instant","DateOfReport",null,"xbrli:dateItemType","instant","DateOfReport",null,"xbrli:dateItemType","instant","DateOfReport",null,"xbrli:dateItemType","instant","DateOfReport",null,"xbrli:dateItemType","instant","DateOfReport",null,"xbrli:dateItemType","instant","DateOfReport",null,"xbrli:dateItemType","instant","DateOfReport",null,"xbrli:dateItemType","instant","DateOfReport",null,"xbrli:dateItemType","instant","DateOfReport",null,"xbrli:dateItemType","instant","DateOfReport",null,"xbrli:dateItemType","instant","DateOfReport",null,"xbrli:dateItemType","instant","DateOfReport",null,"xbrli:dateItemType","instant","DateOfReport",null,"xbrli:dateItemType","instant","DateOfReport",null,"xbrli:dateItemType","instant","DateOfReport",null,"xbrli:dateItemType","instant","DateOfReport",null,"xbrli:dateItemType","instant","DateOfReport",null,"xbrli:dateItemType","instant","DateOfReport",null,"xbrli:dateItemType","instant","DateOfReport",null,"xbrli:dateItemType","instant","DateOfReport",null,"xbrli:dateItemType","instant","DateOfReport",null,"xbrli:dateItemType","instant","DateOfReport",null,"xbrli:dateItemType","instant","DateOfReport",null,"xbrli:dateItemType","instant","DateOfReport",null,"xbrli:dateItemType","instant","DateOfReport",null,"xbrli:dateItemType","instant","DateOfReport",null,"xbrli:dateItemType","instant","DateOfReport",null,"xbrli:dateItemType","instant","DateOfReport",null,"xbrli:dateItemType","instant","DateOfReport",null,"xbrli:dateItemType","instant","DateOfReport",null,"xbrli:dateItemType","instant","DateOfReport",null,"xbrli:dateItemType","instant","DateOfReport",null,"xbrli:dateItemType","instant","DateOfReport",null,"xbrli:dateItemType","instant","DateOfReport",null,"xbrli:dateItemType","instant","DateOfReport",null,"xbrli:dateItemType","instant","DateOfReport",null,"xbrli:dateItemType","instant","DateOfReport",null,"xbrli:dateItemType","instant","DateOfReport",null,"xbrli:dateItemType","instant","DateOfReport",null,"xbrli:dateItemType","instant","DateOfReport",null,"xbrli:dateItemType","instant","DateOfReport",null,"xbrli:dateItemType","instant","DateOfReport",null,"xbrli:dateItemType","instant","DateOfReport",null,"xbrli:dateItemType","instant","DateOfReport",null,"xbrli:dateItemType","instant","DateOfReport",null,"xbrli:dateItemType","instant","DateOfReport",null,"xbrli:dateItemType","instant","DateOfReport",null,"xbrli:dateItemType","instant","DateOfReport",null,"xbrli:dateItemType","instant","DateOfReport",null,"xbrli:dateItemType","instant","DateOfReport",null,"xbrli:dateItemType","instant","DateOfReport",null,"xbrli:dateItemType","instant","DateOfReport",null,"xbrli:dateItemType","instant","DateOfReport",null,"xbrli:dateItemType","instant","DateOfReport",null,"xbrli:dateItemType","instant","DateOfReport",null,"xbrli:dateItemType","instant","DateOfReport",null,"xbrli:dateItemType","instant","DateOfReport",null,"xbrli:dateItemType","instant","DateOfReport",null,"xbrli:dateItemType","instant","DateOfReport",null,"xbrli:dateItemType","instant","DateOfReport",null,"xbrli:dateItemType","instant","DateOfReport",null,"xbrli:dateItemType","instant","DateOfReport",null,"xbrli:dateItemType","instant","DateOfReport",null,"xbrli:dateItemType","instant","DateOfReport",null,"xbrli:dateItemType","instant","DateOfReport",null,"xbrli:dateItemType","instant","DateOfReport",null,"xbrli:dateItemType","instant","DateOfReport",null,"xbrli:dateItemType","instant","DateOfReport",null,"xbrli:dateItemType","instant","DateOfReport",null,"xbrli:dateItemType","instant","DateOfReport",null,"xbrli:dateItemType","instant","DateOfReport",null,"xbrli:dateItemType","instant","DateOfReport",null,"xbrli:dateItemType","instant","DateOfReport",null,"xbrli:dateItemType","instant","DateOfReport",null,"xbrli:dateItemType","instant","DateOfReport",null,"xbrli:dateItemType","instant","DateOfReport",null,"xbrli:dateItemType","instant","DateOfReport",null,"xbrli:dateItemType","instant","DateOfReport",null,"xbrli:dateItemType","instant","DateOfReport",null,"xbrli:dateItemType","instant","DateOfReport",null,"xbrli:dateItemType","instant","DateOfReport",null,"xbrli:dateItemType","instant","DateOfReport",null,"xbrli:dateItemType","instant","DateOfReport",null,"xbrli:dateItemType","instant","DateOfReport",null,"xbrli:dateItemType","instant","DateOfReport",null,"xbrli:dateItemType","instant","DateOfReport",null,"xbrli:dateItemType","instant","DateOfReport",null,"xbrli:dateItemType","instant","DateOfReport",null,"xbrli:dateItemType","instant","DateOfReport",null,"xbrli:dateItemType","instant","DateOfReport",null,"xbrli:dateItemType","instant","DateOfReport",null,"xbrli:dateItemType","instant","DateOfReport",null,"xbrli:dateItemType","instant","DateOfReport",null,"xbrli:dateItemType","instant","DateOfReport",null,"xbrli:dateItemType","instant","DateOfReport",null,"xbrli:dateItemType","instant","DateOfReport",null,"xbrli:dateItemType","instant","DateOfReport",null,"xbrli:dateItemType","instant","DateOfReport",null,"xbrli:dateItemType","instant","DateOfReport",null,"xbrli:dateItemType","instant","DateOfReport",null,"xbrli:dateItemType","instant","DateOfReport",null,"xbrli:dateItemType","instant","DateOfReport",null,"xbrli:dateItemType","instant","DateOfReport",null,"xbrli:dateItemType","instant","DateOfReport",null,"xbrli:dateItemType","instant","DateOfReport",null,"xbrli:dateItemType","instant","DateOfReport",null,"xbrli:dateItemType","instant","DateOfReport",null,"xbrli:dateItemType","instant","DateOfReport",null,"xbrli:dateItemType","instant","DateOfReport",null,"xbrli:dateItemType","instant","DateOfReport",null,"xbrli:dateItemType","instant","DateOfReport",null,"xbrli:dateItemType","instant","DateOfReport",null,"xbrli:dateItemType","instant","DateOfReport",null,"xbrli:dateItemType","instant","DateOfReport",null,"xbrli:dateItemType","instant","DateOfReport",null,"xbrli:dateItemType","instant","DateOfReport",null,"xbrli:dateItemType","instant","DateOfReport",null,"xbrli:dateItemType","instant","DateOfReport",null,"xbrli:dateItemType","instant","DateOfReport",null,"xbrli:dateItemType","instant","DateOfReport",null,"xbrli:dateItemType","instant","DateOfReport",null,"xbrli:dateItemType","instant","DateOfReport",null,"xbrli:dateItemType","instant","DateOfReport",null,"xbrli:dateItemType","instant","DateOfReport",null,"xbrli:dateItemType","instant","DateOfReport",null,"xbrli:dateItemType","instant","DateOfReport",null,"xbrli:dateItemType","instant","DateOfReport",null,"xbrli:dateItemType","instant","DateOfReport",null,"xbrli:dateItemType","instant","DateOfReport",null,"xbrli:dateItemType","instant","DateOfReport",null,"xbrli:dateItemType","instant","DateOfReport",null,"xbrli:dateItemType","instant","DateOfReport",null,"xbrli:dateItemType","instant","DateOfReport",null,"xbrli:dateItemType","instant","DateOfReport",null,"xbrli:dateItemType","instant","DateOfReport",null,"xbrli:dateItemType","instant","DateOfReport",null,"xbrli:dateItemType","instant","DateOfReport",null,"xbrli:dateItemType","instant","DateOfReport",null,"xbrli:dateItemType","instant","DateOfReport",null,"xbrli:dateItemType","instant","DateOfReport",null,"xbrli:dateItemType","instant","DateOfReport",null,"xbrli:dateItemType","instant","DateOfReport",null,"xbrli:dateItemType","instant","DateOfReport",null,"xbrli:dateItemType","instant","DateOfReport",null,"xbrli:dateItemType","instant","DateOfReport",null,"xbrli:dateItemType","instant","DateOfReport",null,"xbrli:dateItemType","instant","DateOfReport",null,"xbrli:dateItemType","instant","DateOfReport",null,"xbrli:dateItemType","instant","DateOfReport",null,"xbrli:dateItemType","instant","DateOfReport",null,"xbrli:dateItemType","instant","DateOfReport",null,"xbrli:dateItemType","instant","DateOfReport",null,"xbrli:dateItemType","instant","DateOfReport",null,"xbrli:dateItemType","instant","DateOfReport",null,"xbrli:dateItemType","instant","DateOfReport",null,"xbrli:dateItemType","instant","DateOfReport",null,"xbrli:dateItemType","instant","DateOfReport",null,"xbrli:dateItemType","instant","DateOfReport",null,"xbrli:dateItemType","instant","DateOfReport",null,"xbrli:dateItemType","instant","DateOfReport",null,"xbrli:dateItemType","instant","DateOfReport",null,"xbrli:dateItemType","instant","DateOfReport",null,"xbrli:dateItemType","instant","DateOfReport",null,"xbrli:dateItemType","instant","DateOfReport",null,"xbrli:dateItemType","instant","DateOfReport",null,"xbrli:dateItemType","instant","DateOfReport",null,"xbrli:dateItemType","instant","DateOfReport",null,"xbrli:dateItemType","instant","DateOfReport",null,"xbrli:dateItemType","instant","DateOfReport",null,"xbrli:dateItemType","instant","DateOfReport",null,"xbrli:dateItemType","instant","DateOfReport",null,"xbrli:dateItemType","instant","DateOfReport",null,"xbrli:dateItemType","instant","DateOfReport",null,"xbrli:dateItemType","instant","DateOfReport",null,"xbrli:dateItemType","instant","DateOfReport",null,"xbrli:dateItemType","instant","DateOfReport",null,"xbrli:dateItemType","instant","DateOfReport",null,"xbrli:dateItemType","instant","DateOfReport",null,"xbrli:dateItemType","instant","DateOfReport",null,"xbrli:dateItemType","instant","DateOfReport",null,"xbrli:dateItemType","instant","DateOfReport",null,"xbrli:dateItemType","instant","DateOfReport",null,"xbrli:dateItemType","instant","DateOfReport",null,"xbrli:dateItemType","instant","DateOfReport",null,"xbrli:dateItemType","instant","DateOfReport",null,"xbrli:dateItemType","instant","DateOfReport",null,"xbrli:dateItemType","instant","DateOfReport",null,"xbrli:dateItemType","instant","DateOfReport",null,"xbrli:dateItemType","instant","DateOfReport",null,"xbrli:dateItemType","instant","DateOfReport",null,"xbrli:dateItemType","instant","DateOfReport",null,"xbrli:dateItemType","instant","DateOfReport",null,"xbrli:dateItemType","instant","DateOfReport",null,"xbrli:dateItemType","instant","DateOfReport",null,"xbrli:dateItemType","instant","DateOfReport",null,"xbrli:dateItemType","instant","DateOfReport",null,"xbrli:dateItemType","instant","DateOfReport",null,"xbrli:dateItemType","instant","DateOfReport",null,"xbrli:dateItemType","instant","DateOfReport",null,"xbrli:dateItemType","instant","DateOfReport",null,"xbrli:dateItemType","instant","DateOfReport",null,"xbrli:dateItemType","instant","DateOfReport",null,"xbrli:dateItemType","instant","DateOfReport",null,"xbrli:dateItemType","instant","DateOfReport",null,"xbrli:dateItemType","instant","DateOfReport",null,"xbrli:dateItemType","instant","DateOfReport",null,"xbrli:dateItemType","instant","DateOfReport",null,"xbrli:dateItemType","instant","DateOfReport",null,"xbrli:dateItemType","instant","DateOfReport",null,"xbrli:dateItemType","instant","DateOfReport",null,"xbrli:dateItemType","instant","DateOfReport",null,"xbrli:dateItemType","instant","DateOfReport",null,"xbrli:dateItemType","instant","DateOfReport",null,"xbrli:dateItemType","instant","DateOfReport",null,"xbrli:dateItemType","instant","DateOfReport",null,"xbrli:dateItemType","instant","DateOfReport",null,"xbrli:dateItemType","instant","DateOfReport",null,"xbrli:dateItemType","instant","DateOfReport",null,"xbrli:dateItemType","instant","DateOfReport",null,"xbrli:dateItemType","instant","DateOfReport",null,"xbrli:dateItemType","instant","DateOfReport",null,"xbrli:dateItemType","instant","DateOfReport",null,"xbrli:dateItemType","instant","DateOfReport",null,"xbrli:dateItemType","instant","DateOfReport",null,"xbrli:dateItemType","instant","DateOfReport",null,"xbrli:dateItemType","instant","DateOfReport",null,"xbrli:dateItemType","instant","DateOfReport",null,"xbrli:dateItemType","instant","DateOfReport",null,"xbrli:dateItemType","instant","DateOfReport",null,"xbrli:dateItemType","instant","DateOfReport",null,"xbrli:dateItemType","instant","DateOfReport",null,"xbrli:dateItemType","instant","DateOfReport",null,"xbrli:dateItemType","instant","DateOfReport",null,"xbrli:dateItemType","instant","DateOfReport",null,"xbrli:dateItemType","instant","DateOfReport",null,"xbrli:dateItemType","instant","DateOfReport",null,"xbrli:dateItemType","instant","DateOfReport",null,"xbrli:dateItemType","instant","DateOfReport",null,"xbrli:dateItemType","instant","DateOfReport",null,"xbrli:dateItemType","instant","DateOfReport",null,"xbrli:dateItemType","instant","DateOfReport",null,"xbrli:dateItemType","instant","DateOfReport",null,"xbrli:dateItemType","instant","DateOfReport",null,"xbrli:dateItemType","instant","DateOfReport",null,"xbrli:dateItemType","instant","DateOfReport",null,"xbrli:dateItemType","instant","DateOfReport",null,"xbrli:dateItemType","instant","DateOfReport",null,"xbrli:dateItemType","instant","DateOfReport",null,"xbrli:dateItemType","instant","DateOfReport",null,"xbrli:dateItemType","instant","DateOfReport",null,"xbrli:dateItemType","instant","DateOfReport",null,"xbrli:dateItemType","instant","DateOfReport",null,"xbrli:dateItemType","instant","DateOfReport",null,"xbrli:dateItemType","instant","DateOfReport",null,"xbrli:dateItemType","instant","DateOfReport",null,"xbrli:dateItemType","instant","DateOfReport",null,"xbrli:dateItemType","instant","DateOfReport",null,"xbrli:dateItemType","instant","DateOfReport",null,"xbrli:dateItemType","instant","DateOfReport",null,"xbrli:dateItemType","instant","DateOfReport",null,"xbrli:dateItemType","instant","DateOfReport",null,"xbrli:dateItemType","instant","DateOfReport",null,"xbrli:dateItemType","instant","DateOfReport",null,"xbrli:dateItemType","instant","DateOfReport",null,"xbrli:dateItemType","instant","DateOfReport",null,"xbrli:dateItemType","instant","DateOfReport",null,"xbrli:dateItemType","instant","DateOfReport",null,"xbrli:dateItemType","instant","DateOfReport",null,"xbrli:dateItemType","instant","DateOfReport",null,"xbrli:dateItemType","instant","DateOfReport",null,"xbrli:dateItemType","instant","DateOfReport",null,"xbrli:dateItemType","instant","DateOfReport",null,"xbrli:dateItemType","instant","DateOfReport",null,"xbrli:dateItemType","instant","DateOfReport",null,"xbrli:dateItemType","instant","DateOfReport",null,"xbrli:dateItemType","instant","DateOfReport",null,"xbrli:dateItemType","instant","DateOfReport",null,"xbrli:dateItemType","instant","DateOfReport",null,"xbrli:dateItemType","instant","DateOfReport",null,"xbrli:dateItemType","instant","DateOfReport",null,"xbrli:dateItemType","instant","DateOfReport",null,"xbrli:dateItemType","instant","DateOfReport",null,"xbrli:dateItemType","instant","DateOfReport",null,"xbrli:dateItemType","instant","DateOfReport",null,"xbrli:dateItemType","instant","DateOfReport",null,"xbrli:dateItemType","instant","DateOfReport",null,"xbrli:dateItemType","instant","DateOfReport",null,"xbrli:dateItemType","instant","DateOfReport",null,"xbrli:dateItemType","instant","DateOfReport",null,"xbrli:dateItemType","instant","DateOfReport",null,"xbrli:dateItemType","instant","DateOfReport",null,"xbrli:dateItemType","instant","DateOfReport",null,"xbrli:dateItemType","instant","DateOfReport",null,"xbrli:dateItemType","instant","DateOfReport",null,"xbrli:dateItemType","instant","DateOfReport",null,"xbrli:dateItemType","instant","DateOfReport",null,"xbrli:dateItemType","instant","DateOfReport",null,"xbrli:dateItemType","instant","DateOfReport",null,"xbrli:dateItemType","instant","DateOfReport",null,"xbrli:dateItemType","instant","DateOfReport",null,"xbrli:dateItemType","instant","DateOfReport",null,"xbrli:dateItemType","instant","DateOfReport",null,"xbrli:dateItemType","instant","DateOfReport",null,"xbrli:dateItemType","instant","DateOfReport",null,"xbrli:dateItemType","instant","DateOfReport",null,"xbrli:dateItemType","instant","DateOfReport",null,"xbrli:dateItemType","instant","DateOfReport",null,"xbrli:dateItemType","instant","DateOfReport",null,"xbrli:dateItemType","instant","DateOfReport",null,"xbrli:dateItemType","instant","DateOfReport",null,"xbrli:dateItemType","instant","DateOfReport",null,"xbrli:dateItemType","instant","DateOfReport",null,"xbrli:dateItemType","instant","DateOfReport",null,"xbrli:dateItemType","instant","DateOfReport",null,"xbrli:dateItemType","instant","DateOfReport",null,"xbrli:dateItemType","instant","DateOfReport",null,"xbrli:dateItemType","instant","DateOfReport",null,"xbrli:dateItemType","instant","DateOfReport",null,"xbrli:dateItemType","instant","DateOfReport",null,"xbrli:dateItemType","instant","DateOfReport",null,"xbrli:dateItemType","instant","DateOfReport",null,"xbrli:dateItemType","instant","DateOfReport",null,"xbrli:dateItemType","instant","DateOfReport",null,"xbrli:dateItemType","instant","DateOfReport",null,"xbrli:dateItemType","instant","DateOfReport",null,"xbrli:dateItemType","instant","DateOfReport",null,"xbrli:dateItemType","instant","DateOfReport",null,"xbrli:dateItemType","instant","DateOfReport",null,"xbrli:dateItemType","instant","DateOfReport",null,"xbrli:dateItemType","instant","DateOfReport",null,"xbrli:dateItemType","instant","DateOfReport",null,"xbrli:dateItemType","instant","DateOfReport",null,"xbrli:dateItemType","instant","DateOfReport",null,"xbrli:dateItemType","instant","DateOfReport",null,"xbrli:dateItemType","instant","DateOfReport",null,"xbrli:dateItemType","instant","DateOfReport",null,"xbrli:dateItemType","instant","DateOfReport",null,"xbrli:dateItemType","instant","DateOfReport",null,"xbrli:dateItemType","instant","DateOfReport",null,"xbrli:dateItemType","instant","DateOfReport",null,"xbrli:dateItemType","instant","DateOfReport",null,"xbrli:dateItemType","instant","DateOfReport",null,"xbrli:dateItemType","instant","DateOfReport",null,"xbrli:dateItemType","instant","DateOfReport",null,"xbrli:dateItemType","instant","DateOfReport",null,"xbrli:dateItemType","instant","DateOfReport",null,"xbrli:dateItemType","instant","DateOfReport",null,"xbrli:dateItemType","instant","DateOfReport",null,"xbrli:dateItemType","instant","DateOfReport",null,"xbrli:dateItemType","instant","DateOfReport",null,"xbrli:dateItemType","instant","DateOfReport",null,"xbrli:dateItemType","instant","DateOfReport",null,"xbrli:dateItemType","instant","DateOfReport",null,"xbrli:dateItemType","instant","DateOfReport",null,"xbrli:dateItemType","instant","DateOfReport",null,"xbrli:dateItemType","instant","DateOfReport",null,"xbrli:dateItemType","instant","DateOfReport",null,"xbrli:dateItemType","instant","DateOfReport",null,"xbrli:dateItemType","instant","DateOfReport",null,"xbrli:dateItemType","instant","DateOfReport",null,"xbrli:dateItemType","instant","DateOfReport",null,"xbrli:dateItemType","instant","DateOfReport",null,"xbrli:dateItemType","instant","DateOfReport",null,"xbrli:dateItemType","instant","DateOfReport",null,"xbrli:dateItemType","instant","DateOfReport",null,"xbrli:dateItemType","instant","DateOfReport",null,"xbrli:dateItemType","instant","DateOfReport",null,"xbrli:dateItemType","instant","DateOfReport",null,"xbrli:dateItemType","instant","DateOfReport",null,"xbrli:dateItemType","instant","DateOfReport",null,"xbrli:dateItemType","instant","DateOfReport",null,"xbrli:dateItemType","instant","DateOfReport",null,"xbrli:dateItemType","instant","DateOfReport",null,"xbrli:dateItemType","instant","DateOfReport",null,"xbrli:dateItemType","instant","DateOfReport",null,"xbrli:dateItemType","instant","DateOfReport",null,"xbrli:dateItemType","instant","DateOfReport",null,"xbrli:dateItemType","instant","DateOfReport",null,"xbrli:dateItemType","instant","DateOfReport",null,"xbrli:dateItemType","instant","DateOfReport",null,"xbrli:dateItemType","instant","DateOfReport",null,"xbrli:dateItemType","instant","DateOfReport",null,"xbrli:dateItemType","instant","DateOfReport",null,"xbrli:dateItemType","instant","DateOfReport",null,"xbrli:dateItemType","instant","DateOfReport",null,"xbrli:dateItemType","instant","DateOfReport",null,"xbrli:dateItemType","instant","DateOfReport",null,"xbrli:dateItemType","instant","DateOfReport",null,"xbrli:dateItemType","instant","DateOfReport",null,"xbrli:dateItemType","instant","DateOfReport",null,"xbrli:dateItemType","instant","DateOfReport",null,"xbrli:dateItemType","instant","DateOfReport",null,"xbrli:dateItemType","instant","DateOfReport",null,"xbrli:dateItemType","instant","DateOfReport",null,"xbrli:dateItemType","instant","DateOfReport",null,"xbrli:dateItemType","instant","DateOfReport",null,"xbrli:dateItemType","instant","DateOfReport",null,"xbrli:dateItemType","instant","DateOfReport",null,"xbrli:dateItemType","instant","DateOfReport",null,"xbrli:dateItemType","instant","DateOfReport",null,"xbrli:dateItemType","instant","DateOfReport",null,"xbrli:dateItemType","instant","DateOfReport",null,"xbrli:dateItemType","instant","DateOfReport",null,"xbrli:dateItemType","instant","DateOfReport",null,"xbrli:dateItemType","instant","DateOfReport",null,"xbrli:dateItemType","instant","DateOfReport",null,"xbrli:dateItemType","instant","DateOfReport",null,"xbrli:dateItemType","instant","DateOfReport",null,"xbrli:dateItemType","instant","DateOfReport",null,"xbrli:dateItemType","instant","DateOfReport",null,"xbrli:dateItemType","instant","DateOfReport",null,"xbrli:dateItemType","instant","DateOfReport",null,"xbrli:dateItemType","instant","DateOfReport",null,"xbrli:dateItemType","instant","DateOfReport",null,"xbrli:dateItemType","instant","DateOfReport",null,"xbrli:dateItemType","instant","DateOfReport",null,"xbrli:dateItemType","instant","DateOfReport",null,"xbrli:dateItemType","instant","DateOfReport",null,"xbrli:dateItemType","instant","DateOfReport",null,"xbrli:dateItemType","instant","DateOfReport",null,"xbrli:dateItemType","instant","DateOfReport",null,"xbrli:dateItemType","instant","DateOfReport",null,"xbrli:dateItemType","instant","DateOfReport",null,"xbrli:dateItemType","instant","DateOfReport",null,"xbrli:dateItemType","instant","DateOfReport",null,"xbrli:dateItemType","instant","DateOfReport",null,"xbrli:dateItemType","instant","DateOfReport",null,"xbrli:dateItemType","instant","DateOfReport",null,"xbrli:dateItemType","instant","DateOfReport",null,"xbrli:dateItemType","instant","DateOfReport",null,"xbrli:dateItemType","instant","DateOfReport",null,"xbrli:dateItemType","instant","DateOfReport",null,"xbrli:dateItemType","instant","DateOfReport",null,"xbrli:dateItemType","instant","DateOfReport",null,"xbrli:dateItemType","instant","DateOfReport",null,"xbrli:dateItemType","instant","DateOfReport",null,"xbrli:dateItemType","instant","DateOfReport",null,"xbrli:dateItemType","instant","DateOfReport",null,"xbrli:dateItemType","instant","DateOfReport",null,"xbrli:dateItemType","instant","DateOfReport",null,"xbrli:dateItemType","instant","DateOfReport",null,"xbrli:dateItemType","instant","DateOfReport",null,"xbrli:dateItemType","instant","DateOfReport",null,"xbrli:dateItemType","instant","DateOfReport",null,"xbrli:dateItemType","instant","DateOfReport",null,"xbrli:dateItemType","instant","DateOfReport",null,"xbrli:dateItemType","instant","DateOfReport",null,"xbrli:dateItemType","instant","DateOfReport",null,"xbrli:dateItemType","instant","DateOfReport",null,"xbrli:dateItemType","instant","DateOfReport",null,"xbrli:dateItemType","instant","DateOfReport",null,"xbrli:dateItemType","instant","DateOfReport",null,"xbrli:dateItemType","instant","DateOfReport",null,"xbrli:dateItemType","instant","DateOfReport",null,"xbrli:dateItemType","instant","DateOfReport",null,"xbrli:dateItemType","instant","DateOfReport",null,"xbrli:dateItemType","instant","DateOfReport",null,"xbrli:dateItemType","instant","DateOfReport",null,"xbrli:dateItemType","instant","DateOfReport",null,"xbrli:dateItemType","instant","DateOfReport",null,"xbrli:dateItemType","instant","DateOfReport",null,"xbrli:dateItemType","instant","DateOfReport",null,"xbrli:dateItemType","instant","DateOfReport",null,"xbrli:dateItemType","instant","DateOfReport",null,"xbrli:dateItemType","instant","DateOfReport",null,"xbrli:dateItemType","instant","DateOfReport",null,"xbrli:dateItemType","instant","DateOfReport",null,"xbrli:dateItemType","instant","DateOfReport",null,"xbrli:dateItemType","instant","DateOfReport",null,"xbrli:dateItemType","instant","DateOfReport",null,"xbrli:dateItemType","instant","DateOfReport",null,"xbrli:dateItemType","instant","DateOfReport",null,"xbrli:dateItemType","instant","DateOfReport",null,"xbrli:dateItemType","instant","DateOfReport",null,"xbrli:dateItemType","instant","DateOfReport",null,"xbrli:dateItemType","instant","DateOfReport",null,"xbrli:dateItemType","instant","DateOfReport",null,"xbrli:dateItemType","instant","DateOfReport",null,"xbrli:dateItemType","instant","DateOfReport",null,"xbrli:dateItemType","instant","DateOfReport",null,"xbrli:dateItemType","instant","DateOfReport",null,"xbrli:dateItemType","instant","DateOfReport",null,"xbrli:dateItemType","instant","DateOfReport",null,"xbrli:dateItemType","instant","DateOfReport",null,"xbrli:dateItemType","instant","DateOfReport",null,"xbrli:dateItemType","instant","DateOfReport",null,"xbrli:dateItemType","instant","DateOfReport",null,"xbrli:dateItemType","instant","DateOfReport",null,"xbrli:dateItemType","instant","DateOfReport",null,"xbrli:dateItemType","instant","DateOfReport",null,"xbrli:dateItemType","instant","DateOfReport",null,"xbrli:dateItemType","instant","DateOfReport",null,"xbrli:dateItemType","instant","DateOfReport",null,"xbrli:dateItemType","instant","DateOfReport",null,"xbrli:dateItemType","instant","DateOfReport",null,"xbrli:dateItemType","instant","DateOfReport",null,"xbrli:dateItemType","instant","DateOfReport",null,"xbrli:dateItemType","instant","DateOfReport",null,"xbrli:dateItemType","instant","DateOfReport",null,"xbrli:dateItemType","instant","DateOfReport",null,"xbrli:dateItemType","instant","DateOfReport",null,"xbrli:dateItemType","instant","DateOfReport",null,"xbrli:dateItemType","instant","DateOfReport",null,"xbrli:dateItemType","instant","DateOfReport",null,"xbrli:dateItemType","instant","DateOfReport",null,"xbrli:dateItemType","instant","DateOfReport",null,"xbrli:dateItemType","instant","DateOfReport",null,"xbrli:dateItemType","instant","DateOfReport",null,"xbrli:dateItemType","instant","DateOfReport",null,"xbrli:dateItemType","instant","DateOfReport",null,"xbrli:dateItemType","instant","DateOfReport",null,"xbrli:dateItemType","instant","DateOfReport",null,"xbrli:dateItemType","instant","DateOfReport",null,"xbrli:dateItemType","instant","DateOfReport",null,"xbrli:dateItemType","instant","DateOfReport",null,"xbrli:dateItemType","instant","DateOfReport",null,"xbrli:dateItemType","instant","DateOfReport",null,"xbrli:dateItemType","instant","DateOfReport",null,"xbrli:dateItemType","instant","DateOfReport",null,"xbrli:dateItemType","instant","DateOfReport",null,"xbrli:dateItemType","instant","DateOfReport",null,"xbrli:dateItemType","instant","DateOfReport",null,"xbrli:dateItemType","instant","DateOfReport",null,"xbrli:dateItemType","instant","DateOfReport",null,"xbrli:dateItemType","instant","DateOfReport",null,"xbrli:dateItemType","instant","DateOfReport",null,"xbrli:dateItemType","instant","DateOfReport",null,"xbrli:dateItemType","instant","DateOfReport",null,"xbrli:dateItemType","instant","DateOfReport",null,"xbrli:dateItemType","instant","DateOfReport",null,"xbrli:dateItemType","instant","DateOfReport",null,"xbrli:dateItemType","instant","DateOfReport",null,"xbrli:dateItemType","instant","DateOfReport",null,"xbrli:dateItemType","instant","DateOfReport",null,"xbrli:dateItemType","instant","DateOfReport",null,"xbrli:dateItemType","instant","DateOfReport",null,"xbrli:dateItemType","instant","DateOfReport",null,"xbrli:dateItemType","instant","DateOfReport",null,"xbrli:dateItemType","instant","DateOfReport",null,"xbrli:dateItemType","instant","DateOfReport",null,"xbrli:dateItemType","instant","DateOfReport",null,"xbrli:dateItemType","instant","DateOfReport",null,"xbrli:dateItemType","instant","DateOfReport",null,"xbrli:dateItemType","instant","DateOfReport",null,"xbrli:dateItemType","instant","DateOfReport",null,"xbrli:dateItemType","instant","DateOfReport",null,"xbrli:dateItemType","instant","DateOfReport",null,"xbrli:dateItemType","instant","DateOfReport",null,"xbrli:dateItemType","instant","DateOfReport",null,"xbrli:dateItemType","instant","DateOfReport",null,"xbrli:dateItemType","instant","DateOfReport",null,"xbrli:dateItemType","instant","DateOfReport",null,"xbrli:dateItemType","instant","DateOfReport",null,"xbrli:dateItemType","instant","DateOfReport",null,"xbrli:dateItemType","instant","DateOfReport",null,"xbrli:dateItemType","instant","DateOfReport",null,"xbrli:dateItemType","instant","DateOfReport",null,"xbrli:dateItemType","instant","DateOfReport",null,"xbrli:dateItemType","instant","DateOfReport",null,"xbrli:dateItemType","instant","DateOfReport",null,"xbrli:dateItemType","instant","DateOfReport",null,"xbrli:dateItemType","instant","DateOfReport",null,"xbrli:dateItemType","instant","DateOfReport",null,"xbrli:dateItemType","instant","DateOfReport",null,"xbrli:dateItemType","instant","DateOfReport",null,"xbrli:dateItemType","instant","DateOfReport",null,"xbrli:dateItemType","instant","DateOfReport",null,"xbrli:dateItemType","instant","DateOfReport",null,"xbrli:dateItemType","instant","DateOfReport",null,"xbrli:dateItemType","instant","DateOfReport",null,"xbrli:dateItemType","instant","DateOfReport",null,"xbrli:dateItemType","instant","DateOfReport",null,"xbrli:dateItemType","instant","DateOfReport",null,"xbrli:dateItemType","instant","DateOfReport",null,"xbrli:dateItemType","instant","DateOfReport",null,"xbrli:dateItemType","instant","DateOfReport",null,"xbrli:dateItemType","instant","DateOfReport",null,"xbrli:dateItemType","instant","DateOfReport",null,"xbrli:dateItemType","instant","DateOfReport",null,"xbrli:dateItemType","instant","DateOfReport",null,"xbrli:dateItemType","instant","DateOfReport",null,"xbrli:dateItemType","instant","DateOfReport",null,"xbrli:dateItemType","instant","DateOfReport",null,"xbrli:dateItemType","instant","DateOfReport",null,"xbrli:dateItemType","instant","DateOfReport",null,"xbrli:dateItemType","instant","DateOfReport",null,"xbrli:dateItemType","instant","DateOfReport",null,"xbrli:dateItemType","instant","DateOfReport",null,"xbrli:dateItemType","instant","DateOfReport",null,"xbrli:dateItemType","instant","DateOfReport",null,"xbrli:dateItemType","instant","DateOfReport",null,"xbrli:dateItemType","instant","DateOfReport",null,"xbrli:dateItemType","instant","DateOfReport",null,"xbrli:dateItemType","instant","DateOfReport",null,"xbrli:dateItemType","instant","DateOfReport",null,"xbrli:dateItemType","instant","DateOfReport",null,"xbrli:dateItemType","instant","DateOfReport",null,"xbrli:dateItemType","instant","DateOfReport",null,"xbrli:dateItemType","instant","DateOfReport",null,"xbrli:dateItemType","instant","DateOfReport",null,"xbrli:dateItemType","instant","DateOfReport",null,"xbrli:dateItemType","instant","DateOfReport",null,"xbrli:dateItemType","instant","DateOfReport",null,"xbrli:dateItemType","instant","DateOfReport",null,"xbrli:dateItemType","instant","DateOfReport",null,"xbrli:dateItemType","instant","DateOfReport",null,"xbrli:dateItemType","instant","DateOfReport",null,"xbrli:dateItemType","instant","DateOfReport",null,"xbrli:dateItemType","instant","DateOfReport",null,"xbrli:dateItemType","instant","DateOfReport",null,"xbrli:dateItemType","instant","DateOfReport",null,"xbrli:dateItemType","instant","DateOfReport",null,"xbrli:dateItemType","instant","DateOfReport",null,"xbrli:dateItemType","instant","DateOfReport",null,"xbrli:dateItemType","instant","DateOfReport",null,"xbrli:dateItemType","instant","DateOfReport",null,"xbrli:dateItemType","instant","DateOfReport",null,"xbrli:dateItemType","instant","DateOfReport",null,"xbrli:dateItemType","instant","DateOfReport",null,"xbrli:dateItemType","instant","DateOfReport",null,"xbrli:dateItemType","instant","DateOfReport",null,"xbrli:dateItemType","instant","DateOfReport",null,"xbrli:dateItemType","instant","DateOfReport",null,"xbrli:dateItemType","instant","DateOfReport",null,"xbrli:dateItemType","instant","DateOfReport",null,"xbrli:dateItemType","instant","DateOfReport",null,"xbrli:dateItemType","instant","DateOfReport",null,"xbrli:dateItemType","instant","DateOfReport",null,"xbrli:dateItemType","instant","DateOfReport",null,"xbrli:dateItemType","instant","DateOfReport",null,"xbrli:dateItemType","instant","DateOfReport",null,"xbrli:dateItemType","instant","DateOfReport",null,"xbrli:dateItemType","instant","DateOfReport",null,"xbrli:dateItemType","instant","DateOfReport",null,"xbrli:dateItemType","instant","DateOfReport",null,"xbrli:dateItemType","instant","DateOfReport",null,"xbrli:dateItemType","instant","DateOfReport",null,"xbrli:dateItemType","instant","DateOfReport",null,"xbrli:dateItemType","instant","DateOfReport",null,"xbrli:dateItemType","instant","DateOfReport",null,"xbrli:dateItemType","instant","DateOfReport",null,"xbrli:dateItemType","instant","DateOfReport",null,"xbrli:dateItemType","instant","DateOfReport",null,"xbrli:dateItemType","instant","DateOfReport",null,"xbrli:dateItemType","instant","DateOfReport",null,"xbrli:dateItemType","instant","DateOfReport",null,"xbrli:dateItemType","instant","DateOfReport",null,"xbrli:dateItemType","instant","DateOfReport",null,"xbrli:dateItemType","instant","DateOfReport",null,"xbrli:dateItemType","instant","DateOfReport",null,"xbrli:dateItemType","instant","DateOfReport",null,"xbrli:dateItemType","instant","DateOfReport",null,"xbrli:dateItemType","instant","DateOfReport",null,"xbrli:dateItemType","instant","DateOfReport",null,"xbrli:dateItemType","instant","DateOfReport",null,"xbrli:dateItemType","instant","DateOfReport",null,"xbrli:dateItemType","instant","DateOfReport",null,"xbrli:dateItemType","instant","DateOfReport",null,"xbrli:dateItemType","instant","DateOfReport",null,"xbrli:dateItemType","instant","DateOfReport",null,"xbrli:dateItemType","instant","DateOfReport",null,"xbrli:dateItemType","instant","DateOfReport",null,"xbrli:dateItemType","instant","DateOfReport",null,"xbrli:dateItemType","instant","DateOfReport",null,"xbrli:dateItemType","instant","DateOfReport",null,"xbrli:dateItemType","instant","DateOfReport",null,"xbrli:dateItemType","instant","DateOfReport",null,"xbrli:dateItemType","instant","DateOfReport",null,"xbrli:dateItemType","instant","DateOfReport",null,"xbrli:dateItemType","instant","DateOfReport",null,"xbrli:dateItemType","instant","DateOfReport",null,"xbrli:dateItemType","instant","DateOfReport",null,"xbrli:dateItemType","instant","DateOfReport",null,"xbrli:dateItemType","instant","DateOfReport",null,"xbrli:dateItemType","instant","DateOfReport",null,"xbrli:dateItemType","instant","DateOfReport",null,"xbrli:dateItemType","instant","DateOfReport",null,"xbrli:dateItemType","instant","DateOfReport",null,"xbrli:dateItemType","instant","DateOfReport",null,"xbrli:dateItemType","instant","DateOfReport",null,"xbrli:dateItemType","instant","DateOfReport",null,"xbrli:dateItemType","instant","DateOfReport",null,"xbrli:dateItemType","instant","DateOfReport",null,"xbrli:dateItemType","instant","DateOfReport",null,"xbrli:dateItemType","instant","DateOfReport",null,"xbrli:dateItemType","instant","DateOfReport",null,"xbrli:dateItemType","instant","DateOfReport",null,"xbrli:dateItemType","instant","DateOfReport",null,"xbrli:dateItemType","instant","DateOfReport",null,"xbrli:dateItemType","instant","DateOfReport",null,"xbrli:dateItemType","instant","DateOfReport",null,"xbrli:dateItemType","instant","DateOfReport",null,"xbrli:dateItemType","instant","DateOfReport",null,"xbrli:dateItemType","instant","DateOfReport",null,"xbrli:dateItemType","instant","DateOfReport",null,"xbrli:dateItemType","instant","DateOfReport",null,"xbrli:dateItemType","instant","DateOfReport",null,"xbrli:dateItemType","instant","DateOfReport",null,"xbrli:dateItemType","instant","DateOfReport",null,"xbrli:dateItemType","instant","DateOfReport",null,"xbrli:dateItemType","instant","DateOfReport",null,"xbrli:dateItemType","instant","DateOfReport",null,"xbrli:dateItemType","instant","DateOfReport",null,"xbrli:dateItemType","instant","DateOfReport",null,"xbrli:dateItemType","instant","DateOfReport",null,"xbrli:dateItemType","instant","DateOfReport",null,"xbrli:dateItemType","instant","DateOfReport",null,"xbrli:dateItemType","instant","DateOfReport",null,"xbrli:dateItemType","instant","DateOfReport",null,"xbrli:dateItemType","instant","DateOfReport",null,"xbrli:dateItemType","instant","DateOfReport",null,"xbrli:dateItemType","instant","DateOfReport",null,"xbrli:dateItemType","instant","DateOfReport",null,"xbrli:dateItemType","instant","DateOfReport",null,"xbrli:dateItemType","instant","DateOfReport",null,"xbrli:dateItemType","instant","DateOfReport",null,"xbrli:dateItemType","instant","DateOfReport",null,"xbrli:dateItemType","instant","DateOfReport",null,"xbrli:dateItemType","instant","DateOfReport",null,"xbrli:dateItemType","instant","DateOfReport",null,"xbrli:dateItemType","instant","DateOfReport",null,"xbrli:dateItemType","instant","DateOfReport",null,"xbrli:dateItemType","instant","DateOfReport",null,"xbrli:dateItemType","instant","DateOfReport",null,"xbrli:dateItemType","instant","DateOfReport",null,"xbrli:dateItemType","instant","DateOfReport",null,"xbrli:dateItemType","instant","DateOfReport",null,"xbrli:dateItemType","instant","DateOfReport",null,"xbrli:dateItemType","instant","DateOfReport",null,"xbrli:dateItemType","instant","DateOfReport",null,"xbrli:dateItemType","instant","DateOfReport",null,"xbrli:dateItemType","instant","DateOfReport",null,"xbrli:dateItemType","instant","DateOfReport",null,"xbrli:dateItemType","instant","DateOfReport",null,"xbrli:dateItemType","instant","DateOfReport",null,"xbrli:dateItemType","instant","DateOfReport",null,"xbrli:dateItemType","instant","DateOfReport",null,"xbrli:dateItemType","instant","DateOfReport",null,"xbrli:dateItemType","instant","DateOfReport",null,"xbrli:dateItemType","instant","DateOfReport",null,"xbrli:dateItemType","instant","DateOfReport",null,"xbrli:dateItemType","instant","DateOfReport",null,"xbrli:dateItemType","instant","DateOfReport",null,"xbrli:dateItemType","instant","DateOfReport",null,"xbrli:dateItemType","instant","DateOfReport",null,"xbrli:dateItemType","instant","DateOfReport",null,"xbrli:dateItemType","instant","DateOfReport",null,"xbrli:dateItemType","instant","DateOfReport",null,"xbrli:dateItemType","instant","DateOfReport",null,"xbrli:dateItemType","instant","DateOfReport",null,"xbrli:dateItemType","instant","DateOfReport",null,"xbrli:dateItemType","instant","DateOfReport",null,"xbrli:dateItemType","instant","DateOfReport",null,"xbrli:dateItemType","instant","DateOfReport",null,"xbrli:dateItemType","instant","DateOfReport",null,"xbrli:dateItemType","instant","DateOfReport",null,"xbrli:dateItemType","instant","DateOfReport",null,"xbrli:dateItemType","instant","DateOfReport",null,"xbrli:dateItemType","instant","DateOfReport",null,"xbrli:dateItemType","instant","DateOfReport",null,"xbrli:dateItemType","instant","DateOfReport",null,"xbrli:dateItemType","instant","DateOfReport",null,"xbrli:dateItemType","instant","DateOfReport",null,"xbrli:dateItemType","instant","DateOfReport",null,"xbrli:dateItemType","instant","DateOfReport",null,"xbrli:dateItemType","instant","DateOfReport",null,"xbrli:dateItemType","instant","DateOfReport",null,"xbrli:dateItemType","instant","DateOfReport",null,"xbrli:dateItemType","instant","DateOfReport",null,"xbrli:dateItemType","instant","DateOfReport",null,"xbrli:dateItemType","instant","DateOfReport",null,"xbrli:dateItemType","instant","DateOfReport",null,"xbrli:dateItemType","instant","DateOfReport",null,"xbrli:dateItemType","instant","DateOfReport",null,"xbrli:dateItemType","instant","DateOfReport",null,"xbrli:dateItemType","instant","DateOfReport",null,"xbrli:dateItemType","instant","DateOfReport",null,"xbrli:dateItemType","instant","DateOfReport",null,"xbrli:dateItemType","instant","DateOfReport",null,"xbrli:dateItemType","instant","DateOfReport",null,"xbrli:dateItemType","instant","DateOfReport",null,"xbrli:dateItemType","instant","DateOfReport",null,"xbrli:dateItemType","instant","DateOfReport",null,"xbrli:dateItemType","instant","DateOfReport",null,"xbrli:dateItemType","instant","DateOfReport",null,"xbrli:dateItemType","instant","DateOfReport",null,"xbrli:dateItemType","instant","DateOfReport",null,"xbrli:dateItemType","instant","DateOfReport",null,"xbrli:dateItemType","instant","DateOfReport",null,"xbrli:dateItemType","instant","DateOfReport",null,"xbrli:dateItemType","instant","DateOfReport",null,"xbrli:dateItemType","instant","DateOfReport",null,"xbrli:dateItemType","instant","DateOfReport",null,"xbrli:dateItemType","instant","DateOfReport",null,"xbrli:dateItemType","instant","DateOfReport",null,"xbrli:dateItemType","instant","DateOfReport",null,"xbrli:dateItemType","instant","DateOfReport",null,"xbrli:dateItemType","instant","DateOfReport",null,"xbrli:dateItemType","instant","DateOfReport",null,"xbrli:dateItemType","instant","DateOfReport",null,"xbrli:dateItemType","instant","DateOfReport",null,"xbrli:dateItemType","instant","DateOfReport",null,"xbrli:dateItemType","instant","DateOfReport",null,"xbrli:dateItemType","instant","DateOfReport",null,"xbrli:dateItemType","instant","DateOfReport",null,"xbrli:dateItemType","instant","DateOfReport",null,"xbrli:dateItemType","instant","DateOfReport",null,"xbrli:dateItemType","instant","DateOfReport",null,"xbrli:dateItemType","instant","DateOfReport",null,"xbrli:dateItemType","instant","DateOfReport",null,"xbrli:dateItemType","instant","DateOfReport",null,"xbrli:dateItemType","instant","DateOfReport",null,"xbrli:dateItemType","instant","DateOfReport",null,"xbrli:dateItemType","instant","DateOfReport",null,"xbrli:dateItemType","instant","DateOfReport",null,"xbrli:dateItemType","instant","DateOfReport",null,"xbrli:dateItemType","instant","DateOfReport",null,"xbrli:dateItemType","instant","DateOfReport",null,"xbrli:dateItemType","instant","DateOfReport",null,"xbrli:dateItemType","instant","DateOfReport",null,"xbrli:dateItemType","instant","DateOfReport",null,"xbrli:dateItemType","instant","DateOfReport",null,"xbrli:dateItemType","instant","DateOfReport",null,"xbrli:dateItemType","instant","DateOfReport",null,"xbrli:dateItemType","instant","DateOfReport",null,"xbrli:dateItemType","instant","DateOfReport",null,"xbrli:dateItemType","instant","DateOfReport",null,"xbrli:dateItemType","instant","DateOfReport",null,"xbrli:dateItemType","instant","DateOfReport",null,"xbrli:dateItemType","instant","DateOfReport",null,"xbrli:dateItemType","instant","DateOfReport",null,"xbrli:dateItemType","instant","DateOfReport",null,"xbrli:dateItemType","instant","DateOfReport",null,"xbrli:dateItemType","instant","DateOfReport",null,"xbrli:dateItemType","instant","DateOfReport",null,"xbrli:dateItemType","instant","DateOfReport",null,"xbrli:dateItemType","instant","DateOfReport",null,"xbrli:dateItemType","instant","DateOfReport",null,"xbrli:dateItemType","instant","DateOfReport",null,"xbrli:dateItemType","instant","DateOfReport",null,"xbrli:dateItemType","instant","DateOfReport",null,"xbrli:dateItemType","instant","DateOfReport",null,"xbrli:dateItemType","instant","DateOfReport",null,"xbrli:dateItemType","instant","DateOfReport",null,"xbrli:dateItemType","instant","DateOfReport",null,"xbrli:dateItemType","instant","DateOfReport",null,"xbrli:dateItemType","instant","DateOfReport",null,"xbrli:dateItemType","instant","DateOfReport",null,"xbrli:dateItemType","instant","DateOfReport",null,"xbrli:dateItemType","instant","DateOfReport",null,"xbrli:dateItemType","instant","DateOfReport",null,"xbrli:dateItemType","instant","DateOfReport",null,"xbrli:dateItemType","instant","DateOfReport",null,"xbrli:dateItemType","instant","DateOfReport",null,"xbrli:dateItemType","instant","DateOfReport",null,"xbrli:dateItemType","instant","DateOfReport",null,"xbrli:dateItemType","instant","DateOfReport",null,"xbrli:dateItemType","instant","DateOfReport",null,"xbrli:dateItemType","instant","DateOfReport",null,"xbrli:dateItemType","instant","DateOfReport",null,"xbrli:dateItemType","instant","DateOfReport",null,"xbrli:dateItemType","instant","DateOfReport",null,"xbrli:dateItemType","instant","DateOfReport",null,"xbrli:dateItemType","instant","DateOfReport",null,"xbrli:dateItemType","instant","DateOfReport",null,"xbrli:dateItemType","instant","DateOfReport",null,"xbrli:dateItemType","instant","DateOfReport",null,"xbrli:dateItemType","instant","DateOfReport",null,"xbrli:dateItemType","instant","DateOfReport",null,"xbrli:dateItemType","instant","DateOfReport",null,"xbrli:dateItemType","instant","DateOfReport",null,"xbrli:dateItemType","instant","DateOfReport",null,"xbrli:dateItemType","instant","DateOfReport",null,"xbrli:dateItemType","instant","DateOfReport",null,"xbrli:dateItemType","instant","DateOfReport",null,"xbrli:dateItemType","instant","DateOfReport",null,"xbrli:dateItemType","instant","DateOfReport",null,"xbrli:dateItemType","instant","DateOfReport",null,"xbrli:dateItemType","instant","DateOfReport",null,"xbrli:dateItemType","instant","DateOfReport",null,"xbrli:dateItemType","instant","DateOfReport",null,"xbrli:dateItemType","instant","DateOfReport",null,"xbrli:dateItemType","instant","DateOfReport",null,"xbrli:dateItemType","instant","DateOfReport",null,"xbrli:dateItemType","instant","DateOfReport",null,"xbrli:dateItemType","instant","DateOfReport",null,"xbrli:dateItemType","instant","DateOfReport",null,"xbrli:dateItemType","instant","DateOfReport",null,"xbrli:dateItemType","instant","DateOfReport",null,"xbrli:dateItemType","instant","DateOfReport",null,"xbrli:dateItemType","instant","DateOfReport",null,"xbrli:dateItemType","instant","DateOfReport",null,"xbrli:dateItemType","instant","DateOfReport",null,"xbrli:dateItemType","instant","DateOfReport",null,"xbrli:dateItemType","instant","DateOfReport",null,"xbrli:dateItemType","instant","DateOfReport",null,"xbrli:dateItemType","instant","DateOfReport",null,"xbrli:dateItemType","instant","DateOfReport",null,"xbrli:dateItemType","instant","DateOfReport",null,"xbrli:dateItemType","instant","DateOfReport",null,"xbrli:dateItemType","instant","DateOfReport",null,"xbrli:dateItemType","instant","DateOfReport",null,"xbrli:dateItemType","instant","DateOfReport",null,"xbrli:dateItemType","instant","DateOfReport",null,"xbrli:dateItemType","instant","DateOfReport",null,"xbrli:dateItemType","instant","DateOfReport",null,"xbrli:dateItemType","instant","DateOfReport",null,"xbrli:dateItemType","instant","DateOfReport",null,"xbrli:dateItemType","instant","DateOfReport",null,"xbrli:dateItemType","instant","DateOfReport",null,"xbrli:dateItemType","instant","DateOfReport",null,"xbrli:dateItemType","instant","DateOfReport",null,"xbrli:dateItemType","instant","DateOfReport",null,"xbrli:dateItemType","instant","DateOfReport",null,"xbrli:dateItemType","instant","DateOfReport",null,"xbrli:dateItemType","instant","DateOfReport",null,"xbrli:dateItemType","instant","DateOfReport",null,"xbrli:dateItemType","instant","DateOfReport",null,"xbrli:dateItemType","instant","DateOfReport",null,"xbrli:dateItemType","instant","DateOfReport",null,"xbrli:dateItemType","instant","DateOfReport",null,"xbrli:dateItemType","instant","DateOfReport",null,"xbrli:dateItemType","instant","DateOfReport",null,"xbrli:dateItemType","instant","DateOfReport",null,"xbrli:dateItemType","instant","DateOfReport",null,"xbrli:dateItemType","instant","DateOfReport",null,"xbrli:dateItemType","instant","DateOfReport",null,"xbrli:dateItemType","instant","DateOfReport",null,"xbrli:dateItemType","instant","DateOfReport",null,"xbrli:dateItemType","instant","DateOfReport",null,"xbrli:dateItemType","instant","DateOfReport",null,"xbrli:dateItemType","instant","DateOfReport",null,"xbrli:dateItemType","instant","DateOfReport",null,"xbrli:dateItemType","instant","DateOfReport",null,"xbrli:dateItemType","instant","DateOfReport",null,"xbrli:dateItemType","instant","DateOfReport",null,"xbrli:dateItemType","instant","DateOfReport",null,"xbrli:dateItemType","instant","DateOfReport",null,"xbrli:dateItemType","instant","DateOfReport",null,"xbrli:dateItemType","instant","DateOfReport",null,"xbrli:dateItemType","instant","DateOfReport",null,"xbrli:dateItemType","instant","DateOfReport",null,"xbrli:dateItemType","instant","DateOfReport",null,"xbrli:dateItemType","instant","DateOfReport",null,"xbrli:dateItemType","instant","DateOfReport",null,"xbrli:dateItemType","instant","DateOfReport",null,"xbrli:dateItemType","instant","DateOfReport",null,"xbrli:dateItemType","instant","DateOfReport",null,"xbrli:dateItemType","instant","DateOfReport",null,"xbrli:dateItemType","instant","DateOfReport",null,"xbrli:dateItemType","instant","DateOfReport",null,"xbrli:dateItemType","instant","DateOfReport",null,"xbrli:dateItemType","instant","DateOfReport",null,"xbrli:dateItemType","instant","DateOfReport",null,"xbrli:dateItemType","instant","DateOfReport",null,"xbrli:dateItemType","instant","DateOfReport",null,"xbrli:dateItemType","instant","DateOfReport",null,"xbrli:dateItemType","instant","DateOfReport",null,"xbrli:dateItemType","instant","DateOfReport",null,"xbrli:dateItemType","instant","DateOfReport",null,"xbrli:dateItemType","instant","DateOfReport",null,"xbrli:dateItemType","instant","DateOfReport",null,"xbrli:dateItemType","instant","DateOfReport",null,"xbrli:dateItemType","instant","DateOfReport",null,"xbrli:dateItemType","instant","DateOfReport",null,"xbrli:dateItemType","instant","DateOfReport",null,"xbrli:dateItemType","instant","DateOfReport",null,"xbrli:dateItemType","instant","DateOfReport",null,"xbrli:dateItemType","instant","DateOfReport",null,"xbrli:dateItemType","instant","DateOfReport",null,"xbrli:dateItemType","instant","DateOfReport",null,"xbrli:dateItemType","instant","DateOfReport",null,"xbrli:dateItemType","instant","DateOfReport",null,"xbrli:dateItemType","instant","DateOfReport",null,"xbrli:dateItemType","instant","DateOfReport",null,"xbrli:dateItemType","instant","DateOfReport",null,"xbrli:dateItemType","instant","DateOfReport",null,"xbrli:dateItemType","instant","DateOfReport",null,"xbrli:dateItemType","instant","DateOfReport",null,"xbrli:dateItemType","instant","DateOfReport",null,"xbrli:dateItemType","instant","DateOfReport",null,"xbrli:dateItemType","instant","DateOfReport",null,"xbrli:dateItemType","instant","DateOfReport",null,"xbrli:dateItemType","instant","DateOfReport",null,"xbrli:dateItemType","instant","DateOfReport",null,"xbrli:dateItemType","instant","DateOfReport",null,"xbrli:dateItemType","instant","DateOfReport",null,"xbrli:dateItemType","instant","DateOfReport",null,"xbrli:dateItemType","instant","DateOfReport",null,"xbrli:dateItemType","instant","DateOfReport",null,"xbrli:dateItemType","instant","DateOfReport",null,"xbrli:dateItemType","instant","DateOfReport",null,"xbrli:dateItemType","instant","DateOfReport",null,"xbrli:dateItemType","instant","DateOfReport",null,"xbrli:dateItemType","instant","DateOfReport",null,"xbrli:dateItemType","instant","DateOfReport",null,"xbrli:dateItemType","instant","DateOfReport",null,"xbrli:dateItemType","instant","DateOfReport",null,"xbrli:dateItemType","instant","DateOfReport",null,"xbrli:dateItemType","instant","DateOfReport",null,"xbrli:dateItemType","instant","DateOfReport",null,"xbrli:dateItemType","instant","DateOfReport",null,"xbrli:dateItemType","instant","DateOfReport",null,"xbrli:dateItemType","instant","DateOfReport",null,"xbrli:dateItemType","instant","DateOfReport",null,"xbrli:dateItemType","instant","DateOfReport",null,"xbrli:dateItemType","instant","DateOfReport",null,"xbrli:dateItemType","instant","DateOfReport",null,"xbrli:dateItemType","instant","DateOfReport",null,"xbrli:dateItemType","instant","DateOfReport",null,"xbrli:dateItemType","instant","DateOfReport",null,"xbrli:dateItemType","instant","DateOfReport",null,"xbrli:dateItemType","instant","DateOfReport",null,"xbrli:dateItemType","instant","DateOfReport",null,"xbrli:dateItemType","instant","DateOfReport",null,"xbrli:dateItemType","instant","DateOfReport",null,"xbrli:dateItemType","instant","DateOfReport",null,"xbrli:dateItemType","instant","DateOfReport",null,"xbrli:dateItemType","instant","DateOfReport",null,"xbrli:dateItemType","instant","DateOfReport",null,"xbrli:dateItemType","instant","DateOfReport",null,"xbrli:dateItemType","instant","DateOfReport",null,"xbrli:dateItemType","instant","DateOfReport",null,"xbrli:dateItemType","instant","DateOfReport",null,"xbrli:dateItemType","instant","DateOfReport",null,"xbrli:dateItemType","instant","DateOfReport",null,"xbrli:dateItemType","instant","DateOfReport",null,"xbrli:dateItemType","instant","DateOfReport",null,"xbrli:dateItemType","instant","DateOfReport",null,"xbrli:dateItemType","instant","DateOfReport",null,"xbrli:dateItemType","instant","DateOfReport",null,"xbrli:dateItemType","instant","DateOfReport",null,"xbrli:dateItemType","instant","DateOfReport",null,"xbrli:dateItemType","instant","DateOfReport",null,"xbrli:dateItemType","instant","DateOfReport",null,"xbrli:dateItemType","instant","DateOfReport",null,"xbrli:dateItemType","instant","DateOfReport",null,"xbrli:dateItemType","instant","DateOfReport",null,"xbrli:dateItemType","instant","DateOfReport",null,"xbrli:dateItemType","instant","DateOfReport",null,"xbrli:dateItemType","instant","DateOfReport",null,"xbrli:dateItemType","instant","DateOfReport",null,"xbrli:dateItemType","instant","DateOfReport",null,"xbrli:dateItemType","instant","DateOfReport",null,"xbrli:dateItemType","instant","DateOfReport",null,"xbrli:dateItemType","instant","DateOfReport",null,"xbrli:dateItemType","instant","DateOfReport",null,"xbrli:dateItemType","instant","DateOfReport",null,"xbrli:dateItemType","instant","DateOfReport",null,"xbrli:dateItemType","instant","DateOfReport",null,"xbrli:dateItemType","instant","DateOfReport",null,"xbrli:dateItemType","instant","DateOfReport",null,"xbrli:dateItemType","instant","DateOfReport",null,"xbrli:dateItemType","instant","DateOfReport",null,"xbrli:dateItemType","instant","DateOfReport",null,"xbrli:dateItemType","instant","DateOfReport",null,"xbrli:dateItemType","instant","DateOfReport",null,"xbrli:dateItemType","instant","DateOfReport",null,"xbrli:dateItemType","instant","DateOfReport",null,"xbrli:dateItemType","instant","DateOfReport",null,"xbrli:dateItemType","instant","DateOfReport",null,"xbrli:dateItemType","instant","DateOfReport",null,"xbrli:dateItemType","instant","DateOfReport",null,"xbrli:dateItemType","instant","DateOfReport",null,"xbrli:dateItemType","instant","DateOfReport",null,"xbrli:dateItemType","instant","DateOfReport",null,"xbrli:dateItemType","instant","DateOfReport",null,"xbrli:dateItemType","instant","DateOfReport",null,"xbrli:dateItemType","instant","DateOfReport",null,"xbrli:dateItemType","instant","DateOfReport",null,"xbrli:dateItemType","instant","DateOfReport",null,"xbrli:dateItemType","instant","DateOfReport",null,"xbrli:dateItemType","instant","DateOfReport",null,"xbrli:dateItemType","instant","DateOfReport",null,"xbrli:dateItemType","instant","DateOfReport",null,"xbrli:dateItemType","instant","DateOfReport",null,"xbrli:dateItemType","instant","DateOfReport",null,"xbrli:dateItemType","instant","DateOfReport",null,"xbrli:dateItemType","instant","DateOfReport",null,"xbrli:dateItemType","instant","DateOfReport",null,"xbrli:dateItemType","instant","DateOfReport",null,"xbrli:dateItemType","instant","DateOfReport",null,"xbrli:dateItemType","instant","DateOfReport",null,"xbrli:dateItemType","instant","DateOfReport",null,"xbrli:dateItemType","instant","DateOfReport",null,"xbrli:dateItemType","instant","DateOfReport",null,"xbrli:dateItemType","instant","DateOfReport",null,"xbrli:dateItemType","instant","DateOfReport",null,"xbrli:dateItemType","instant","DateOfReport",null,"xbrli:dateItemType","instant","DateOfReport",null,"xbrli:dateItemType","instant","DateOfReport",null,"xbrli:dateItemType","instant","DateOfReport",null,"xbrli:dateItemType","instant","DateOfReport",null,"xbrli:dateItemType","instant","DateOfReport",null,"xbrli:dateItemType","instant","DateOfReport",null,"xbrli:dateItemType","instant","DateOfReport",null,"xbrli:dateItemType","instant","DateOfReport",null,"xbrli:dateItemType","instant","DateOfReport",null,"xbrli:dateItemType","instant","DateOfReport",null,"xbrli:dateItemType","instant","DateOfReport",null,"xbrli:dateItemType","instant","DateOfReport",null,"xbrli:dateItemType","instant","DateOfReport",null,"xbrli:dateItemType","instant","DateOfReport",null,"xbrli:dateItemType","instant","DateOfReport",null,"xbrli:dateItemType","instant","DateOfReport",null,"xbrli:dateItemType","instant","DateOfReport",null,"xbrli:dateItemType","instant","DateOfReport",null,"xbrli:dateItemType","instant","DateOfReport",null,"xbrli:dateItemType","instant","DateOfReport",null,"xbrli:dateItemType","instant","DateOfReport",null,"xbrli:dateItemType","instant","DateOfReport",null,"xbrli:dateItemType","instant","DateOfReport",null,"xbrli:dateItemType","instant","DateOfReport",null,"xbrli:dateItemType","instant","DateOfReport",null,"xbrli:dateItemType","instant","DateOfReport",null,"xbrli:dateItemType","instant","DateOfReport",null,"xbrli:dateItemType","instant","DateOfReport",null,"xbrli:dateItemType","instant","DateOfReport",null,"xbrli:dateItemType","instant","DateOfReport",null,"xbrli:dateItemType","instant","DateOfReport",null,"xbrli:dateItemType","instant","DateOfReport",null,"xbrli:dateItemType","instant","DateOfReport",null,"xbrli:dateItemType","instant","DateOfReport",null,"xbrli:dateItemType","instant","DateOfReport",null,"xbrli:dateItemType","instant","DateOfReport",null,"xbrli:dateItemType","instant","DateOfReport",null,"xbrli:dateItemType","instant","DateOfReport",null,"xbrli:dateItemType","instant","DateOfReport",null,"xbrli:dateItemType","instant","DateOfReport",null,"xbrli:dateItemType","instant","DateOfReport",null,"xbrli:dateItemType","instant","DateOfReport",null,"xbrli:dateItemType","instant","DateOfReport",null,"xbrli:dateItemType","instant","DateOfReport",null,"xbrli:dateItemType","instant","DateOfReport",null,"xbrli:dateItemType","instant","DateOfReport",null,"xbrli:dateItemType","instant","DateOfReport",null,"xbrli:dateItemType","instant","DateOfReport",null,"xbrli:dateItemType","instant","DateOfReport",null,"xbrli:dateItemType","instant","DateOfReport",null,"xbrli:dateItemType","instant","DateOfReport",null,"xbrli:dateItemType","instant","DateOfReport",null,"xbrli:dateItemType","instant","DateOfReport",null,"xbrli:dateItemType","instant","DateOfReport",null,"xbrli:dateItemType","instant","DateOfReport",null,"xbrli:dateItemType","instant","DateOfReport",null,"xbrli:dateItemType","instant","DateOfReport",null,"xbrli:dateItemType","instant","DateOfReport",null,"xbrli:dateItemType","instant","DateOfReport",null,"xbrli:dateItemType","instant","DateOfReport",null,"xbrli:dateItemType","instant","DateOfReport",null,"xbrli:dateItemType","instant","DateOfReport",null,"xbrli:dateItemType","instant","DateOfReport",null,"xbrli:dateItemType","instant","DateOfReport",null,"xbrli:dateItemType","instant","DateOfReport",null,"xbrli:dateItemType","instant","DateOfReport",null,"xbrli:dateItemType","instant","DateOfReport",null,"xbrli:dateItemType","instant","DateOfReport",null,"xbrli:dateItemType","instant","DateOfReport",null,"xbrli:dateItemType","instant","DateOfReport",null,"xbrli:dateItemType","instant","DateOfReport",null,"xbrli:dateItemType","instant","DateOfReport",null,"xbrli:dateItemType","instant","DateOfReport",null,"xbrli:dateItemType","instant","DateOfReport",null,"xbrli:dateItemType","instant","DateOfReport",null,"xbrli:dateItemType","instant","DateOfReport",null,"xbrli:dateItemType","instant","DateOfReport",null,"xbrli:dateItemType","instant","DateOfReport",null,"xbrli:dateItemType","instant","DateOfReport",null,"xbrli:dateItemType","instant","DateOfReport",null,"xbrli:dateItemType","instant","DateOfReport",null,"xbrli:dateItemType","instant","DateOfReport",null,"xbrli:dateItemType","instant","DateOfReport",null,"xbrli:dateItemType","instant","DateOfReport",null,"xbrli:dateItemType","instant","DateOfReport",null,"xbrli:dateItemType","instant","DateOfReport",null,"xbrli:dateItemType","instant","DateOfReport",null,"xbrli:dateItemType","instant","DateOfReport",null,"xbrli:dateItemType","instant","DateOfReport",null,"xbrli:dateItemType","instant","DateOfReport",null,"xbrli:dateItemType","instant","DateOfReport",null,"xbrli:dateItemType","instant","DateOfReport",null,"xbrli:dateItemType","instant","DateOfReport",null,"xbrli:dateItemType","instant","DateOfReport",null,"xbrli:dateItemType","instant","DateOfReport",null,"xbrli:dateItemType","instant","DateOfReport",null,"xbrli:dateItemType","instant","DateOfReport",null,"xbrli:dateItemType","instant","DateOfReport",null,"xbrli:dateItemType","instant","DateOfReport",null,"xbrli:dateItemType","instant","DateOfReport",null,"xbrli:dateItemType","instant","DateOfReport",null,"xbrli:dateItemType","instant","DateOfReport",null,"xbrli:dateItemType","instant","DateOfReport",null,"xbrli:dateItemType","instant","DateOfReport",null,"xbrli:dateItemType","instant","DateOfReport",null,"xbrli:dateItemType","instant","DateOfReport",null,"xbrli:dateItemType","instant","DateOfReport",null,"xbrli:dateItemType","instant","DateOfReport",null,"xbrli:dateItemType","instant","DateOfReport",null,"xbrli:dateItemType","instant","DateOfReport",null,"xbrli:dateItemType","instant","DateOfReport",null,"xbrli:dateItemType","instant","DateOfReport",null,"xbrli:dateItemType","instant","DateOfReport",null,"xbrli:dateItemType","instant","DateOfReport",null,"xbrli:dateItemType","instant","DateOfReport",null,"xbrli:dateItemType","instant","DateOfReport",null,"xbrli:dateItemType","instant","DateOfReport",null,"xbrli:dateItemType","instant","DateOfReport",null,"xbrli:dateItemType","instant","DateOfReport",null,"xbrli:dateItemType","instant","DateOfReport",null,"xbrli:dateItemType","instant","DateOfReport",null,"xbrli:dateItemType","instant","DateOfReport",null,"xbrli:dateItemType","instant","DateOfReport",null,"xbrli:dateItemType","instant","DateOfReport",null,"xbrli:dateItemType","instant","DateOfReport",null,"xbrli:dateItemType","instant","DateOfReport",null,"xbrli:dateItemType","instant","DateOfReport",null,"xbrli:dateItemType","instant","DateOfReport",null,"xbrli:dateItemType","instant","DateOfReport",null,"xbrli:dateItemType","instant","DateOfReport",null,"xbrli:dateItemType","instant","DateOfReport",null,"xbrli:dateItemType","instant","DateOfReport",null,"xbrli:dateItemType","instant","DateOfReport",null,"xbrli:dateItemType","instant","DateOfReport",null,"xbrli:dateItemType","instant","DateOfReport",null,"xbrli:dateItemType","instant","DateOfReport",null,"xbrli:dateItemType","instant","DateOfReport",null,"xbrli:dateItemType","instant","DateOfReport",null,"xbrli:dateItemType","instant","DateOfReport",null,"xbrli:dateItemType","instant","DateOfReport",null,"xbrli:dateItemType","instant","DateOfReport",null,"xbrli:dateItemType","instant","DateOfReport",null,"xbrli:dateItemType","instant","DateOfReport",null,"xbrli:dateItemType","instant","DateOfReport",null,"xbrli:dateItemType","instant","DateOfReport",null,"xbrli:dateItemType","instant","DateOfReport",null,"xbrli:dateItemType","instant","DateOfReport",null,"xbrli:dateItemType","instant","DateOfReport",null,"xbrli:dateItemType","instant","DateOfReport",null,"xbrli:dateItemType","instant","DateOfReport",null,"xbrli:dateItemType","instant","DateOfReport",null,"xbrli:dateItemType","instant","DateOfReport",null,"xbrli:dateItemType","instant","DateOfReport",null,"xbrli:dateItemType","instant","DateOfReport",null,"xbrli:dateItemType","instant","DateOfReport",null,"xbrli:dateItemType","instant","DateOfReport",null,"xbrli:dateItemType","instant","DateOfReport",null,"xbrli:dateItemType","instant","DateOfReport",null,"xbrli:dateItemType","instant","DateOfReport",null,"xbrli:dateItemType","instant","DateOfReport",null,"xbrli:dateItemType","instant","DateOfReport",null,"xbrli:dateItemType","instant","DateOfReport",null,"xbrli:dateItemType","instant","DateOfReport",null,"xbrli:dateItemType","instant","DateOfReport",null,"xbrli:dateItemType","instant","DateOfReport",null,"xbrli:dateItemType","instant","DateOfReport",null,"xbrli:dateItemType","instant","DateOfReport",null,"xbrli:dateItemType","instant","DateOfReport",null,"xbrli:dateItemType","instant","DateOfReport",null,"xbrli:dateItemType","instant","DateOfReport",null,"xbrli:dateItemType","instant","DateOfReport",null,"xbrli:dateItemType","instant","DateOfReport",null,"xbrli:dateItemType","instant","DateOfReport",null,"xbrli:dateItemType","instant","DateOfReport",null,"xbrli:dateItemType","instant","DateOfReport",null,"xbrli:dateItemType","instant","DateOfReport",null,"xbrli:dateItemType","instant","DateOfReport",null,"xbrli:dateItemType","instant","DateOfReport",null,"xbrli:dateItemType","instant","DateOfReport",null,"xbrli:dateItemType","instant","DateOfReport",null,"xbrli:dateItemType","instant","DateOfReport",null,"xbrli:dateItemType","instant","DateOfReport",null,"xbrli:dateItemType","instant","DateOfReport",null,"xbrli:dateItemType","instant","DateOfReport",null,"xbrli:dateItemType","instant","DateOfReport",null,"xbrli:dateItemType","instant","DateOfReport",null,"xbrli:dateItemType","instant","DateOfReport",null,"xbrli:dateItemType","instant","DateOfReport",null,"xbrli:dateItemType","instant","DateOfReport",null,"xbrli:dateItemType","instant","DateOfReport",null,"xbrli:dateItemType","instant","DateOfReport",null,"xbrli:dateItemType","instant","DateOfReport",null,"xbrli:dateItemType","instant","DateOfReport",null,"xbrli:dateItemType","instant","DateOfReport",null,"xbrli:dateItemType","instant","DateOfReport",null,"xbrli:dateItemType","instant","DateOfReport",null,"xbrli:dateItemType","instant","DateOfReport",null,"xbrli:dateItemType","instant","DateOfReport",null,"xbrli:dateItemType","instant","DateOfReport",null,"xbrli:dateItemType","instant","DateOfReport",null,"xbrli:dateItemType","instant","DateOfReport",null,"xbrli:dateItemType","instant","DateOfReport",null,"xbrli:dateItemType","instant","DateOfReport",null,"xbrli:dateItemType","instant","DateOfReport",null,"xbrli:dateItemType","instant","DateOfReport",null,"xbrli:dateItemType","instant","DateOfReport",null,"xbrli:dateItemType","instant","DateOfReport",null,"xbrli:dateItemType","instant","DateOfReport",null,"xbrli:dateItemType","instant","DateOfReport",null,"xbrli:dateItemType","instant","DateOfReport",null,"xbrli:dateItemType","instant","DateOfReport",null,"xbrli:dateItemType","instant","DateOfReport",null,"xbrli:dateItemType","instant","DateOfReport",null,"xbrli:dateItemType","instant","DateOfReport",null,"xbrli:dateItemType","instant","DateOfReport",null,"xbrli:dateItemType","instant","DateOfReport",null,"xbrli:dateItemType","instant","DateOfReport",null,"xbrli:dateItemType","instant","DateOfReport",null,"xbrli:dateItemType","instant","DateOfReport",null,"xbrli:dateItemType","instant","DateOfReport",null,"xbrli:dateItemType","instant","DateOfReport",null,"xbrli:dateItemType","instant","DateOfReport",null,"xbrli:dateItemType","instant","DateOfReport",null,"xbrli:dateItemType","instant","DateOfReport",null,"xbrli:dateItemType","instant","DateOfReport",null,"xbrli:dateItemType","instant","DateOfReport",null,"xbrli:dateItemType","instant","DateOfReport",null,"xbrli:dateItemType","instant","DateOfReport",null,"xbrli:dateItemType","instant","DateOfReport",null,"xbrli:dateItemType","instant","DateOfReport",null,"xbrli:dateItemType","instant","DateOfReport",null,"xbrli:dateItemType","instant","DateOfReport",null,"xbrli:dateItemType","instant","DateOfReport",null,"xbrli:dateItemType","instant","DateOfReport",null,"xbrli:dateItemType","instant","DateOfReport",null,"xbrli:dateItemType","instant","DateOfReport",null,"xbrli:dateItemType","instant","DateOfReport",null,"xbrli:dateItemType","instant","DateOfReport",null,"xbrli:dateItemType","instant","DateOfReport",null,"xbrli:dateItemType","instant","DateOfReport",null,"xbrli:dateItemType","instant","DateOfReport",null,"xbrli:dateItemType","instant","DateOfReport",null,"xbrli:dateItemType","instant","DateOfReport",null,"xbrli:dateItemType","instant","DateOfReport",null,"xbrli:dateItemType","instant","DateOfReport",null,"xbrli:dateItemType","instant","DateOfReport",null,"xbrli:dateItemType","instant","DateOfReport",null,"xbrli:dateItemType","instant","DateOfReport",null,"xbrli:dateItemType","instant","DateOfReport",null,"xbrli:dateItemType","instant","DateOfReport",null,"xbrli:dateItemType","instant","DateOfReport",null,"xbrli:dateItemType","instant","DateOfReport",null,"xbrli:dateItemType","instant","DateOfReport",null,"xbrli:dateItemType","instant","DateOfReport",null,"xbrli:dateItemType","instant","DateOfReport",null,"xbrli:dateItemType","instant","DateOfReport",null,"xbrli:dateItemType","instant","DateOfReport",null,"xbrli:dateItemType","instant","DateOfReport",null,"xbrli:dateItemType","instant","DateOfReport",null,"xbrli:dateItemType","instant","DateOfReport",null,"xbrli:dateItemType","instant","DateOfReport",null,"xbrli:dateItemType","instant","DateOfReport",null,"xbrli:dateItemType","instant","DateOfReport",null,"xbrli:dateItemType","instant","DateOfReport",null,"xbrli:dateItemType","instant","DateOfReport",null,"xbrli:dateItemType","instant","DateOfReport",null,"xbrli:dateItemType","instant","DateOfReport",null,"xbrli:dateItemType","instant","DateOfReport",null,"xbrli:dateItemType","instant","DateOfReport",null,"xbrli:dateItemType","instant","DateOfReport",null,"xbrli:dateItemType","instant","DateOfReport",null,"xbrli:dateItemType","instant","DateOfReport",null,"xbrli:dateItemType","instant","DateOfReport",null,"xbrli:dateItemType","instant","DateOfReport",null,"xbrli:dateItemType","instant","DateOfReport",null,"xbrli:dateItemType","instant","DateOfReport",null,"xbrli:dateItemType","instant","DateOfReport",null,"xbrli:dateItemType","instant","DateOfReport",null,"xbrli:dateItemType","instant","DateOfReport",null,"xbrli:dateItemType","instant","DateOfReport",null,"xbrli:dateItemType","instant","DateOfReport",null,"xbrli:dateItemType","instant","DateOfReport",null,"xbrli:dateItemType","instant","DateOfReport",null,"xbrli:dateItemType","instant","DateOfReport",null,"xbrli:dateItemType","instant","DateOfReport",null,"xbrli:dateItemType","instant","DateOfReport",null,"xbrli:dateItemType","instant","DateOfReport",null,"xbrli:dateItemType","instant","DateOfReport",null,"xbrli:dateItemType","instant","DateOfReport",null,"xbrli:dateItemType","instant","DateOfReport",null,"xbrli:dateItemType","instant","DateOfReport",null,"xbrli:dateItemType","instant","DateOfReport",null,"xbrli:dateItemType","instant","DateOfReport",null,"xbrli:dateItemType","instant","DateOfReport",null,"xbrli:dateItemType","instant","DateOfReport",null,"xbrli:dateItemType","instant","DateOfReport",null,"xbrli:dateItemType","instant","DateOfReport",null,"xbrli:dateItemType","instant","DateOfReport",null,"xbrli:dateItemType","instant","DateOfReport",null,"xbrli:dateItemType","instant","DateOfReport",null,"xbrli:dateItemType","instant","DateOfReport",null,"xbrli:dateItemType","instant","DateOfReport",null,"xbrli:dateItemType","instant","DateOfReport",null,"xbrli:dateItemType","instant","DateOfReport",null,"xbrli:dateItemType","instant","DateOfReport",null,"xbrli:dateItemType","instant","DateOfReport",null,"xbrli:dateItemType","instant","DateOfReport",null,"xbrli:dateItemType","instant","DateOfReport",null,"xbrli:dateItemType","instant","DateOfReport",null,"xbrli:dateItemType","instant","DateOfReport",null,"xbrli:dateItemType","instant","DateOfReport",null,"xbrli:dateItemType","instant","DateOfReport",null,"xbrli:dateItemType","instant","DateOfReport",null,"xbrli:dateItemType","instant","DateOfReport",null,"xbrli:dateItemType","instant","DateOfReport",null,"xbrli:dateItemType","instant","DateOfReport",null,"xbrli:dateItemType","instant","DateOfReport",null,"xbrli:dateItemType","instant","DateOfReport",null,"xbrli:dateItemType","instant","DateOfReport",null,"xbrli:dateItemType","instant","DateOfReport",null,"xbrli:dateItemType","instant","DateOfReport",null,"xbrli:dateItemType","instant","DateOfReport",null,"xbrli:dateItemType","instant","DateOfReport",null,"xbrli:dateItemType","instant","DateOfReport",null,"xbrli:dateItemType","instant","DateOfReport",null,"xbrli:dateItemType","instant","DateOfReport",null,"xbrli:dateItemType","instant","DateOfReport",null,"xbrli:dateItemType","instant","DateOfReport",null,"xbrli:dateItemType","instant","DateOfReport",null,"xbrli:dateItemType","instant","DateOfReport",null,"xbrli:dateItemType","instant","DateOfReport",null,"xbrli:dateItemType","instant","DateOfReport",null,"xbrli:dateItemType","instant","DateOfReport",null,"xbrli:dateItemType","instant","DateOfReport",null,"xbrli:dateItemType","instant","DateOfReport",null,"xbrli:dateItemType","instant","DateOfReport",null,"xbrli:dateItemType","instant","DateOfReport",null,"xbrli:dateItemType","instant","DateOfReport",null,"xbrli:dateItemType","instant","DateOfReport",null,"xbrli:dateItemType","instant","DateOfReport",null,"xbrli:dateItemType","instant","DateOfReport",null,"xbrli:dateItemType","instant","DateOfReport",null,"xbrli:dateItemType","instant","DateOfReport",null,"xbrli:dateItemType","instant","DateOfReport",null,"xbrli:dateItemType","instant","DateOfReport",null,"xbrli:dateItemType","instant","DateOfReport",null,"xbrli:dateItemType","instant","DateOfReport",null,"xbrli:dateItemType","instant","DateOfReport",null,"xbrli:dateItemType","instant","DateOfReport",null,"xbrli:dateItemType","instant","DateOfReport",null,"xbrli:dateItemType","instant","DateOfReport",null,"xbrli:dateItemType","instant","DateOfReport",null,"xbrli:dateItemType","instant","DateOfReport",null,"xbrli:dateItemType","instant","DateOfReport",null,"xbrli:dateItemType","instant","DateOfReport",null,"xbrli:dateItemType","instant","DateOfReport",null,"xbrli:dateItemType","instant","DateOfReport",null,"xbrli:dateItemType","instant","DateOfReport",null,"xbrli:dateItemType","instant","DateOfReport",null,"xbrli:dateItemType","instant","DateOfReport",null,"xbrli:dateItemType","instant","DateOfReport",null,"xbrli:dateItemType","instant","DateOfReport",null,"xbrli:dateItemType","instant","DateOfReport",null,"xbrli:dateItemType","instant","DateOfReport",null,"xbrli:dateItemType","instant","DateOfReport",null,"xbrli:dateItemType","instant","DateOfReport",null,"xbrli:dateItemType","instant","DateOfReport",null,"xbrli:dateItemType","instant","DateOfReport",null,"xbrli:dateItemType","instant","DateOfReport",null,"xbrli:dateItemType","instant","DateOfReport",null,"xbrli:dateItemType","instant","DateOfReport",null,"xbrli:dateItemType","instant","DateOfReport",null,"xbrli:dateItemType","instant","DateOfReport",null,"xbrli:dateItemType","instant","DateOfReport",null,"xbrli:dateItemType","instant","DateOfReport",null,"xbrli:dateItemType","instant","DateOfReport",null,"xbrli:dateItemType","instant","DateOfReport",null,"xbrli:dateItemType","instant","DateOfReport",null,"xbrli:dateItemType","instant","DateOfReport",null,"xbrli:dateItemType","instant","DateOfReport",null,"xbrli:dateItemType","instant","DateOfReport",null,"xbrli:dateItemType","instant","DateOfReport",null,"xbrli:dateItemType","instant","DateOfReport",null,"xbrli:dateItemType","instant","DateOfReport",null,"xbrli:dateItemType","instant","DateOfReport",null,"xbrli:dateItemType","instant","DateOfReport",null,"xbrli:dateItemType","instant","DateOfReport",null,"xbrli:dateItemType","instant","DateOfReport",null,"xbrli:dateItemType","instant","DateOfReport",null,"xbrli:dateItemType","instant","DateOfReport",null,"xbrli:dateItemType","instant","DateOfReport",null,"xbrli:dateItemType","instant","DateOfReport",null,"xbrli:dateItemType","instant","DateOfReport",null,"xbrli:dateItemType","instant","DateOfReport",null,"xbrli:dateItemType","instant","DateOfReport",null,"xbrli:dateItemType","instant","DateOfReport",null,"xbrli:dateItemType","instant","DateOfReport",null,"xbrli:dateItemType","instant","DateOfReport",null,"xbrli:dateItemType","instant","DateOfReport",null,"xbrli:dateItemType","instant","DateOfReport",null,"xbrli:dateItemType","instant","DateOfReport",null,"xbrli:dateItemType","instant","DateOfReport",null,"xbrli:dateItemType","instant","DateOfReport",null,"xbrli:dateItemType","instant","DateOfReport",null,"xbrli:dateItemType","instant","DateOfReport",null,"xbrli:dateItemType","instant","DateOfReport",null,"xbrli:dateItemType","instant","DateOfReport",null,"xbrli:dateItemType","instant","DateOfReport",null,"xbrli:dateItemType","instant","DateOfReport",null,"xbrli:dateItemType","instant","DateOfReport",null,"xbrli:dateItemType","instant","DateOfReport",null,"xbrli:dateItemType","instant","DateOfReport",null,"xbrli:dateItemType","instant","DateOfReport",null,"xbrli:dateItemType","instant","DateOfReport",null,"xbrli:dateItemType","instant","DateOfReport",null,"xbrli:dateItemType","instant","DateOfReport",null,"xbrli:dateItemType","instant","DateOfReport",null,"xbrli:dateItemType","instant","DateOfReport",null,"xbrli:dateItemType","instant","DateOfReport",null,"xbrli:dateItemType","instant","DateOfReport",null,"xbrli:dateItemType","instant","DateOfReport",null,"xbrli:dateItemType","instant","DateOfReport",null,"xbrli:dateItemType","instant","DateOfReport",null,"xbrli:dateItemType","instant","DateOfReport",null,"xbrli:dateItemType","instant","DateOfReport",null,"xbrli:dateItemType","instant","DateOfReport",null,"xbrli:dateItemType","instant","DateOfReport",null,"xbrli:dateItemType","instant","DateOfReport",null,"xbrli:dateItemType","instant","DateOfReport",null,"xbrli:dateItemType","instant","DateOfReport",null,"xbrli:dateItemType","instant","DateOfReport",null,"xbrli:dateItemType","instant","DateOfReport",null,"xbrli:dateItemType","instant","DateOfReport",null,"xbrli:dateItemType","instant","DateOfReport",null,"xbrli:dateItemType","instant","DateOfReport",null,"xbrli:dateItemType","instant","DateOfReport",null,"xbrli:dateItemType","instant","DateOfReport",null,"xbrli:dateItemType","instant","DateOfReport",null,"xbrli:dateItemType","instant","DateOfReport",null,"xbrli:dateItemType","instant","DateOfReport",null,"xbrli:dateItemType","instant","DateOfReport",null,"xbrli:dateItemType","instant","DateOfReport",null,"xbrli:dateItemType","instant","DateOfReport",null,"xbrli:dateItemType","instant","DateOfReport",null,"xbrli:dateItemType","instant","DateOfReport",null,"xbrli:dateItemType","instant","DateOfReport",null,"xbrli:dateItemType","instant","DateOfReport",null,"xbrli:dateItemType","instant","DateOfReport",null,"xbrli:dateItemType","instant","DateOfReport",null,"xbrli:dateItemType","instant","DateOfReport",null,"xbrli:dateItemType","instant","DateOfReport",null,"xbrli:dateItemType","instant","DateOfReport",null,"xbrli:dateItemType","instant","DateOfReport",null,"xbrli:dateItemType","instant","DateOfReport",null,"xbrli:dateItemType","instant","DateOfReport",null,"xbrli:dateItemType","instant","DateOfReport",null,"xbrli:dateItemType","instant","DateOfReport",null,"xbrli:dateItemType","instant","DateOfReport",null,"xbrli:dateItemType","instant","DateOfReport",null,"xbrli:dateItemType","instant","DateOfReport",null,"xbrli:dateItemType","instant","DateOfReport",null,"xbrli:dateItemType","instant","DateOfReport",null,"xbrli:dateItemType","instant","DateOfReport",null,"xbrli:dateItemType","instant","DateOfReport",null,"xbrli:dateItemType","instant","DateOfReport",null,"xbrli:dateItemType","instant","DateOfReport",null,"xbrli:dateItemType","instant","DateOfReport",null,"xbrli:dateItemType","instant","DateOfReport",null,"xbrli:dateItemType","instant","DateOfReport",null,"xbrli:dateItemType","instant","DateOfReport",null,"xbrli:dateItemType","instant","DateOfReport",null,"xbrli:dateItemType","instant","DateOfReport",null,"xbrli:dateItemType","instant","DateOfReport",null,"xbrli:dateItemType","instant","DateOfReport",null,"xbrli:dateItemType","instant","DateOfReport",null,"xbrli:dateItemType","instant","DateOfReport",null,"xbrli:dateItemType","instant","DateOfReport",null,"xbrli:dateItemType","instant","DateOfReport",null,"xbrli:dateItemType","instant","DateOfReport",null,"xbrli:dateItemType","instant","DateOfReport",null,"xbrli:dateItemType","instant","DateOfReport",null,"xbrli:dateItemType","instant","DateOfReport",null,"xbrli:dateItemType","instant","DateOfReport",null,"xbrli:dateItemType","instant","DateOfReport",null,"xbrli:dateItemType","instant","DateOfReport",null,"xbrli:dateItemType","instant","DateOfReport",null,"xbrli:dateItemType","instant","DateOfReport",null,"xbrli:dateItemType","instant","DateOfReport",null,"xbrli:dateItemType","instant","DateOfReport",null,"xbrli:dateItemType","instant","DateOfReport",null,"xbrli:dateItemType","instant","DateOfReport",null,"xbrli:dateItemType","instant","DateOfReport",null,"xbrli:dateItemType","instant","DateOfReport",null,"xbrli:dateItemType","instant","DateOfReport",null,"xbrli:dateItemType","instant","DateOfReport",null,"xbrli:dateItemType","instant","DateOfReport",null,"xbrli:dateItemType","instant","DateOfReport",null,"xbrli:dateItemType","instant","DateOfReport",null,"xbrli:dateItemType","instant","DateOfReport",null,"xbrli:dateItemType","instant","DateOfReport",null,"xbrli:dateItemType","instant","DateOfReport",null,"xbrli:dateItemType","instant","DateOfReport",null,"xbrli:dateItemType","instant","DateOfReport",null,"xbrli:dateItemType","instant","DateOfReport",null,"xbrli:dateItemType","instant","DateOfReport",null,"xbrli:dateItemType","instant","DateOfReport",null,"xbrli:dateItemType","instant","DateOfReport",null,"xbrli:dateItemType","instant","DateOfReport",null,"xbrli:dateItemType","instant","DateOfReport",null,"xbrli:dateItemType","instant","DateOfReport",null,"xbrli:dateItemType","instant","DateOfReport",null,"xbrli:dateItemType","instant","DateOfReport",null,"xbrli:dateItemType","instant","DateOfReport",null,"xbrli:dateItemType","instant","DateOfReport",null,"xbrli:dateItemType","instant","DateOfReport",null,"xbrli:dateItemType","instant","DateOfReport",null,"xbrli:dateItemType","instant","DateOfReport",null,"xbrli:dateItemType","instant","DateOfReport",null,"xbrli:dateItemType","instant","DateOfReport",null,"xbrli:dateItemType","instant","DateOfReport",null,"xbrli:dateItemType","instant","DateOfReport",null,"xbrli:dateItemType","instant","DateOfReport",null,"xbrli:dateItemType","instant","DateOfReport",null,"xbrli:dateItemType","instant","DateOfReport",null,"xbrli:dateItemType","instant","DateOfReport",null,"xbrli:dateItemType","instant","DateOfReport",null,"xbrli:dateItemType","instant","DateOfReport",null,"xbrli:dateItemType","instant","DateOfReport",null,"xbrli:dateItemType","instant","DateOfReport",null,"xbrli:dateItemType","instant","DateOfReport",null,"xbrli:dateItemType","instant","DateOfReport",null,"xbrli:dateItemType","instant","DateOfReport",null,"xbrli:dateItemType","instant","DateOfReport",null,"xbrli:dateItemType","instant","DateOfReport",null,"xbrli:dateItemType","instant","DateOfReport",null,"xbrli:dateItemType","instant","DateOfReport",null,"xbrli:dateItemType","instant","DateOfReport",null,"xbrli:dateItemType","instant","DateOfReport",null,"xbrli:dateItemType","instant","DateOfReport",null,"xbrli:dateItemType","instant","DateOfReport",null,"xbrli:dateItemType","instant","DateOfReport",null,"xbrli:dateItemType","instant","DateOfReport",null,"xbrli:dateItemType","instant","DateOfReport",null,"xbrli:dateItemType","instant","DateOfReport",null,"xbrli:dateItemType","instant","DateOfReport",null,"xbrli:dateItemType","instant","DateOfReport",null,"xbrli:dateItemType","instant","DateOfReport",null,"xbrli:dateItemType","instant","DateOfReport",null,"xbrli:dateItemType","instant","DateOfReport",null,"xbrli:dateItemType","instant","DateOfReport",null,"xbrli:dateItemType","instant","DateOfReport",null,"xbrli:dateItemType","instant","DateOfReport",null,"xbrli:dateItemType","instant","DateOfReport",null,"xbrli:dateItemType","instant","DateOfReport",null,"xbrli:dateItemType","instant","DateOfReport",null,"xbrli:dateItemType","instant","DateOfReport",null,"xbrli:dateItemType","instant","DateOfReport",null,"xbrli:dateItemType","instant","DateOfReport",null,"xbrli:dateItemType","instant","DateOfReport",null,"xbrli:dateItemType","instant","DateOfReport",null,"xbrli:dateItemType","instant","DateOfReport",null,"xbrli:dateItemType","instant","DateOfReport",null,"xbrli:dateItemType","instant","DateOfReport",null,"xbrli:dateItemType","instant","DateOfReport",null,"xbrli:dateItemType","instant","DateOfReport",null,"xbrli:dateItemType","instant","DateOfReport",null,"xbrli:dateItemType","instant","DateOfReport",null,"xbrli:dateItemType","instant","DateOfReport",null,"xbrli:dateItemType","instant","DateOfReport",null,"xbrli:dateItemType","instant","DateOfReport",null,"xbrli:dateItemType","instant","DateOfReport",null,"xbrli:dateItemType","instant","DateOfReport",null,"xbrli:dateItemType","instant","DateOfReport",null,"xbrli:dateItemType","instant","DateOfReport",null,"xbrli:dateItemType","instant","DateOfReport",null,"xbrli:dateItemType","instant","DateOfReport",null,"xbrli:dateItemType","instant","DateOfReport",null,"xbrli:dateItemType","instant","DateOfReport",null,"xbrli:dateItemType","instant","DateOfReport",null,"xbrli:dateItemType","instant","DateOfReport",null,"xbrli:dateItemType","instant","DateOfReport",null,"xbrli:dateItemType","instant","DateOfReport",null,"xbrli:dateItemType","instant","DateOfReport",null,"xbrli:dateItemType","instant","DateOfReport",null,"xbrli:dateItemType","instant","DateOfReport",null,"xbrli:dateItemType","instant","DateOfReport",null,"xbrli:dateItemType","instant","DateOfReport",null,"xbrli:dateItemType","instant","DateOfReport",null,"xbrli:dateItemType","instant","DateOfReport",null,"xbrli:dateItemType","instant","DateOfReport",null,"xbrli:dateItemType","instant","DateOfReport",null,"xbrli:dateItemType","instant","DateOfReport",null,"xbrli:dateItemType","instant","DateOfReport",null,"xbrli:dateItemType","instant","DateOfReport",null,"xbrli:dateItemType","instant","DateOfReport",null,"xbrli:dateItemType","instant","DateOfReport",null,"xbrli:dateItemType","instant","DateOfReport",null,"xbrli:dateItemType","instant","DateOfReport",null,"xbrli:dateItemType","instant","DateOfReport",null,"xbrli:dateItemType","instant","DateOfReport",null,"xbrli:dateItemType","instant","DateOfReport",null,"xbrli:dateItemType","instant","DateOfReport",null,"xbrli:dateItemType","instant","DateOfReport",null,"xbrli:dateItemType","instant","DateOfReport",null,"xbrli:dateItemType","instant","DateOfReport",null,"xbrli:dateItemType","instant","DateOfReport",null,"xbrli:dateItemType","instant","DateOfReport",null,"xbrli:dateItemType","instant","DateOfReport",null,"xbrli:dateItemType","instant","DateOfReport",null,"xbrli:dateItemType","instant","DateOfReport",null,"xbrli:dateItemType","instant","DateOfReport",null,"xbrli:dateItemType","instant","DateOfReport",null,"xbrli:dateItemType","instant","DateOfReport",null,"xbrli:dateItemType","instant","DateOfReport",null,"xbrli:dateItemType","instant","DateOfReport",null,"xbrli:dateItemType","instant","DateOfReport",null,"xbrli:dateItemType","instant","DateOfReport",null,"xbrli:dateItemType","instant","DateOfReport",null,"xbrli:dateItemType","instant","DateOfReport",null,"xbrli:dateItemType","instant","DateOfReport",null,"xbrli:dateItemType","instant","DateOfReport",null,"xbrli:dateItemType","instant","DateOfReport",null,"xbrli:dateItemType","instant","DateOfReport",null,"xbrli:dateItemType","instant","DateOfReport",null,"xbrli:dateItemType","instant","DateOfReport",null,"xbrli:dateItemType","instant","DateOfReport",null,"xbrli:dateItemType","instant","DateOfReport",null,"xbrli:dateItemType","instant","DateOfReport",null,"xbrli:dateItemType","instant","DateOfReport",null,"xbrli:dateItemType","instant","DateOfReport",null,"xbrli:dateItemType","instant","DateOfReport",null,"xbrli:dateItemType","instant","DateOfReport",null,"xbrli:dateItemType","instant","DateOfReport",null,"xbrli:dateItemType","instant","DateOfReport",null,"xbrli:dateItemType","instant","DateOfReport",null,"xbrli:dateItemType","instant","DateOfReport",null,"xbrli:dateItemType","instant","DateOfReport",null,"xbrli:dateItemType","instant","DateOfReport",null,"xbrli:dateItemType","instant","DateOfReport",null,"xbrli:dateItemType","instant","DateOfReport",null,"xbrli:dateItemType","instant","DateOfReport",null,"xbrli:dateItemType","instant","DateOfReport",null,"xbrli:dateItemType","instant","DateOfReport",null,"xbrli:dateItemType","instant","DateOfReport",null,"xbrli:dateItemType","instant","DateOfReport",null,"xbrli:dateItemType","instant","DateOfReport",null,"xbrli:dateItemType","instant","DateOfReport",null,"xbrli:dateItemType","instant","DateOfReport",null,"xbrli:dateItemType","instant","DateOfReport",null,"xbrli:dateItemType","instant","DateOfReport",null,"xbrli:dateItemType","instant","DateOfReport",null,"xbrli:dateItemType","instant","DateOfReport",null,"xbrli:dateItemType","instant","DateOfReport",null,"xbrli:dateItemType","instant","DateOfReport",null,"xbrli:dateItemType","instant","DateOfReport",null,"xbrli:dateItemType","instant","DateOfReport",null,"xbrli:dateItemType","instant","DateOfReport",null,"xbrli:dateItemType","instant","DateOfReport",null,"xbrli:dateItemType","instant","DateOfReport",null,"xbrli:dateItemType","instant","DateOfReport",null,"xbrli:dateItemType","instant","DateOfReport",null,"xbrli:dateItemType","instant","DateOfReport",null,"xbrli:dateItemType","instant","DateOfReport",null,"xbrli:dateItemType","instant","DateOfReport",null,"xbrli:dateItemType","instant","DateOfReport",null,"xbrli:dateItemType","instant","DateOfReport",null,"xbrli:dateItemType","instant","DateOfReport",null,"xbrli:dateItemType","instant","DateOfReport",null,"xbrli:dateItemType","instant","DateOfReport",null,"xbrli:dateItemType","instant","DateOfReport",null,"xbrli:dateItemType","instant","DateOfReport",null,"xbrli:dateItemType","instant","DateOfReport",null,"xbrli:dateItemType","instant","DateOfReport",null,"xbrli:dateItemType","instant","DateOfReport",null,"xbrli:dateItemType","instant","DateOfReport",null,"xbrli:dateItemType","instant","DateOfReport",null,"xbrli:dateItemType","instant","DateOfReport",null,"xbrli:dateItemType","instant","DateOfReport",null,"xbrli:dateItemType","instant","DateOfReport",null,"xbrli:dateItemType","instant","DateOfReport",null,"xbrli:dateItemType","instant","DateOfReport",null,"xbrli:dateItemType","instant","DateOfReport",null,"xbrli:dateItemType","instant","DateOfReport",null,"xbrli:dateItemType","instant","DateOfReport",null,"xbrli:dateItemType","instant","DateOfReport",null,"xbrli:dateItemType","instant","DateOfReport",null,"xbrli:dateItemType","instant","DateOfReport",null,"xbrli:dateItemType","instant","DateOfReport",null,"xbrli:dateItemType","instant","DateOfReport",null,"xbrli:dateItemType","instant","DateOfReport",null,"xbrli:dateItemType","instant","DateOfReport",null,"xbrli:dateItemType","instant","DateOfReport",null,"xbrli:dateItemType","instant","DateOfReport",null,"xbrli:dateItemType","instant","DateOfReport",null,"xbrli:dateItemType","instant","DateOfReport",null,"xbrli:dateItemType","instant","DateOfReport",null,"xbrli:dateItemType","instant","DateOfReport",null,"xbrli:dateItemType","instant","DateOfReport",null,"xbrli:dateItemType","instant","DateOfReport",null,"xbrli:dateItemType","instant","DateOfReport",null,"xbrli:dateItemType","instant","DateOfReport",null,"xbrli:dateItemType","instant","DateOfReport",null,"xbrli:dateItemType","instant","DateOfReport",null,"xbrli:dateItemType","instant","DateOfReport",null,"xbrli:dateItemType","instant","DateOfReport",null,"xbrli:dateItemType","instant","DateOfReport",null,"xbrli:dateItemType","instant","DateOfReport",null,"xbrli:dateItemType","instant","DateOfReport",null,"xbrli:dateItemType","instant","DateOfReport",null,"xbrli:dateItemType","instant","DateOfReport",null,"xbrli:dateItemType","instant","DateOfReport",null,"xbrli:dateItemType","instant","DateOfReport",null,"xbrli:dateItemType","instant","DateOfReport",null,"xbrli:dateItemType","instant","DateOfReport",null,"xbrli:dateItemType","instant","DateOfReport",null,"xbrli:dateItemType","instant","DateOfReport",null,"xbrli:dateItemType","instant","DateOfReport",null,"xbrli:dateItemType","instant","DateOfReport",null,"xbrli:dateItemType","instant","DateOfReport",null,"xbrli:dateItemType","instant","DateOfReport",null,"xbrli:dateItemType","instant","DateOfReport",null,"xbrli:dateItemType","instant","DateOfReport",null,"xbrli:dateItemType","instant","DateOfReport",null,"xbrli:dateItemType","instant","DateOfReport",null,"xbrli:dateItemType","instant","DateOfReport",null,"xbrli:dateItemType","instant","DateOfReport",null,"xbrli:dateItemType","instant","DateOfReport",null,"xbrli:dateItemType","instant","DateOfReport",null,"xbrli:dateItemType","instant","DateOfReport",null,"xbrli:dateItemType","instant","DateOfReport",null,"xbrli:dateItemType","instant","DateOfReport",null,"xbrli:dateItemType","instant","DateOfReport",null,"xbrli:dateItemType","instant","DateOfReport",null,"xbrli:dateItemType","instant","DateOfReport",null,"xbrli:dateItemType","instant","DateOfReport",null,"xbrli:dateItemType","instant","DateOfReport",null,"xbrli:dateItemType","instant","DateOfReport",null,"xbrli:dateItemType","instant","DateOfReport",null,"xbrli:dateItemType","instant","DateOfReport",null,"xbrli:dateItemType","instant","DateOfReport",null,"xbrli:dateItemType","instant","DateOfReport",null,"xbrli:dateItemType","instant","DateOfReport",null,"xbrli:dateItemType","instant","DateOfReport",null,"xbrli:dateItemType","instant","DateOfReport",null,"xbrli:dateItemType","instant","DateOfReport",null,"xbrli:dateItemType","instant","DateOfReport",null,"xbrli:dateItemType","instant","DateOfReport",null,"xbrli:dateItemType","instant","DateOfReport",null,"xbrli:dateItemType","instant","DateOfReport",null,"xbrli:dateItemType","instant","DateOfReport",null,"xbrli:dateItemType","instant","DateOfReport",null,"xbrli:dateItemType","instant","DateOfReport",null,"xbrli:dateItemType","instant","DateOfReport",null,"xbrli:dateItemType","instant","DateOfReport",null,"xbrli:dateItemType","instant","DateOfReport",null,"xbrli:dateItemType","instant","DateOfReport",null,"xbrli:dateItemType","instant","DateOfReport",null,"xbrli:dateItemType","instant","DateOfReport",null,"xbrli:dateItemType","instant","DateOfReport",null,"xbrli:dateItemType","instant","DateOfReport",null,"xbrli:dateItemType","instant","DateOfReport",null,"xbrli:dateItemType","instant","DateOfReport",null,"xbrli:dateItemType","instant","DateOfReport",null,"xbrli:dateItemType","instant","DateOfReport",null,"xbrli:dateItemType","instant","DateOfReport",null,"xbrli:dateItemType","instant","DateOfReport",null,"xbrli:dateItemType","instant","DateOfReport",null,"xbrli:dateItemType","instant","DateOfReport",null,"xbrli:dateItemType","instant","DateOfReport",null,"xbrli:dateItemType","instant","DateOfReport",null,"xbrli:dateItemType","instant","DateOfReport",null,"xbrli:dateItemType","instant","DateOfReport",null,"xbrli:dateItemType","instant","DateOfReport",null,"xbrli:dateItemType","instant","DateOfReport",null,"xbrli:dateItemType","instant","DateOfReport",null,"xbrli:dateItemType","instant","DateOfReport",null,"xbrli:dateItemType","instant","DateOfReport",null,"xbrli:dateItemType","instant","DateOfReport",null,"xbrli:dateItemType","instant","DateOfReport",null,"xbrli:dateItemType","instant","DateOfReport",null,"xbrli:dateItemType","instant","DateOfReport",null,"xbrli:dateItemType","instant","DateOfReport",null,"xbrli:dateItemType","instant","DateOfReport",null,"xbrli:dateItemType","instant","DateOfReport",null,"xbrli:dateItemType","instant","DateOfReport",null,"xbrli:dateItemType","instant","DateOfReport",null,"xbrli:dateItemType","instant","DateOfReport",null,"xbrli:dateItemType","instant","DateOfReport",null,"xbrli:dateItemType","instant","DateOfReport",null,"xbrli:dateItemType","instant","DateOfReport",null,"xbrli:dateItemType","instant","DateOfReport",null,"xbrli:dateItemType","instant","DateOfReport",null,"xbrli:dateItemType","instant","DateOfReport",null,"xbrli:dateItemType","instant","DateOfReport",null,"xbrli:dateItemType","instant","DateOfReport",null,"xbrli:dateItemType","instant","DateOfReport",null,"xbrli:dateItemType","instant","DateOfReport",null,"xbrli:dateItemType","instant","DateOfReport",null,"xbrli:dateItemType","instant","DateOfReport",null,"xbrli:dateItemType","instant","DateOfReport",null,"xbrli:dateItemType","instant","DateOfReport",null,"xbrli:dateItemType","instant","DateOfReport",null,"xbrli:dateItemType","instant","DateOfReport",null,"xbrli:dateItemType","instant","DateOfReport",null,"xbrli:dateItemType","instant","DateOfReport",null,"xbrli:dateItemType","instant","DateOfReport",null,"xbrli:dateItemType","instant","DateOfReport",null,"xbrli:dateItemType","instant","DateOfReport",null,"xbrli:dateItemType","instant","DateOfReport",null,"xbrli:dateItemType","instant","DateOfReport",null,"xbrli:dateItemType","instant","DateOfReport",null,"xbrli:dateItemType","instant","DateOfReport",null,"xbrli:dateItemType","instant","DateOfReport",null,"xbrli:dateItemType","instant","DateOfReport",null,"xbrli:dateItemType","instant","DateOfReport",null,"xbrli:dateItemType","instant","DateOfReport",null,"xbrli:dateItemType","instant","DateOfReport",null,"xbrli:dateItemType","instant","DateOfReport",null,"xbrli:dateItemType","instant","DateOfReport",null,"xbrli:dateItemType","instant","DateOfReport",null,"xbrli:dateItemType","instant","DateOfReport",null,"xbrli:dateItemType","instant","DateOfReport",null,"xbrli:dateItemType","instant","DateOfReport",null,"xbrli:dateItemType","instant","DateOfReport",null,"xbrli:dateItemType","instant","DateOfReport",null,"xbrli:dateItemType","instant","DateOfReport",null,"xbrli:dateItemType","instant","DateOfReport",null,"xbrli:dateItemType","instant","DateOfReport",null,"xbrli:dateItemType","instant","DateOfReport",null,"xbrli:dateItemType","instant","DateOfReport",null,"xbrli:dateItemType","instant","DateOfReport",null,"xbrli:dateItemType","instant","DateOfReport",null,"xbrli:dateItemType","instant","DateOfReport",null,"xbrli:dateItemType","instant","DateOfReport",null,"xbrli:dateItemType","instant","DateOfReport",null,"xbrli:dateItemType","instant","DateOfReport",null,"xbrli:dateItemType","instant","DateOfReport",null,"xbrli:dateItemType","instant","DateOfReport",null,"xbrli:dateItemType","instant","DateOfReport",null,"xbrli:dateItemType","instant","DateOfReport",null,"xbrli:dateItemType","instant","DateOfReport",null,"xbrli:dateItemType","instant","DateOfReport",null,"xbrli:dateItemType","instant","DateOfReport",null,"xbrli:dateItemType","instant","DateOfReport",null,"xbrli:dateItemType","instant","DateOfReport",null,"xbrli:dateItemType","instant","DateOfReport",null,"xbrli:dateItemType","instant","DateOfReport",null,"xbrli:dateItemType","instant","DateOfReport",null,"xbrli:dateItemType","instant","DateOfReport",null,"xbrli:dateItemType","instant","DateOfReport",null,"xbrli:dateItemType","instant","DateOfReport",null,"xbrli:dateItemType","instant","DateOfReport",null,"xbrli:dateItemType","instant","DateOfReport",null,"xbrli:dateItemType","instant","DateOfReport",null,"xbrli:dateItemType","instant","DateOfReport",null,"xbrli:dateItemType","instant","DateOfReport",null,"xbrli:dateItemType","instant","DateOfReport",null,"xbrli:dateItemType","instant","DateOfReport",null,"xbrli:dateItemType","instant","DateOfReport",null,"xbrli:dateItemType","instant","DateOfReport",null,"xbrli:dateItemType","instant","DateOfReport",null,"xbrli:dateItemType","instant","DateOfReport",null,"xbrli:dateItemType","instant","DateOfReport",null,"xbrli:dateItemType","instant","DateOfReport",null,"xbrli:dateItemType","instant","DateOfReport",null,"xbrli:dateItemType","instant","DateOfReport",null,"xbrli:dateItemType","instant","DateOfReport",null,"xbrli:dateItemType","instant","DateOfReport",null,"xbrli:dateItemType","instant","DateOfReport",null,"xbrli:dateItemType","instant","DateOfReport",null,"xbrli:dateItemType","instant","DateOfReport",null,"xbrli:dateItemType","instant","DateOfReport",null,"xbrli:dateItemType","instant","DateOfReport",null,"xbrli:dateItemType","instant","DateOfReport",null,"xbrli:dateItemType","instant","DateOfReport",null,"xbrli:dateItemType","instant","DateOfReport",null,"xbrli:dateItemType","instant","DateOfReport",null,"xbrli:dateItemType","instant","DateOfReport",null,"xbrli:dateItemType","instant","DateOfReport",null,"xbrli:dateItemType","instant","DateOfReport",null,"xbrli:dateItemType","instant","DateOfReport",null,"xbrli:dateItemType","instant","DateOfReport",null,"xbrli:dateItemType","instant","DateOfReport",null,"xbrli:dateItemType","instant","DateOfReport",null,"xbrli:dateItemType","instant","DateOfReport",null,"xbrli:dateItemType","instant","DateOfReport",null,"xbrli:dateItemType","instant","DateOfReport",null,"xbrli:dateItemType","instant","DateOfReport",null,"xbrli:dateItemType","instant","DateOfReport",null,"xbrli:dateItemType","instant","DateOfReport",null,"xbrli:dateItemType","instant","DateOfReport",null,"xbrli:dateItemType","instant","DateOfReport",null,"xbrli:dateItemType","instant","DateOfReport",null,"xbrli:dateItemType","instant","DateOfReport",null,"xbrli:dateItemType","instant","DateOfReport",null,"xbrli:dateItemType","instant","DateOfReport",null,"xbrli:dateItemType","instant","DateOfReport",null,"xbrli:dateItemType","instant","DateOfReport",null,"xbrli:dateItemType","instant","DateOfReport",null,"xbrli:dateItemType","instant","DateOfReport",null,"xbrli:dateItemType","instant","DateOfReport",null,"xbrli:dateItemType","instant","DateOfReport",null,"xbrli:dateItemType","instant","DateOfReport",null,"xbrli:dateItemType","instant","DateOfReport",null,"xbrli:dateItemType","instant","DateOfReport",null,"xbrli:dateItemType","instant","DateOfReport",null,"xbrli:dateItemType","instant","DateOfReport",null,"xbrli:dateItemType","instant","DateOfReport",null,"xbrli:dateItemType","instant","DateOfReport",null,"xbrli:dateItemType","instant","DateOfReport",null,"xbrli:dateItemType","instant","DateOfReport",null,"xbrli:dateItemType","instant","DateOfReport",null,"xbrli:dateItemType","instant","DateOfReport",null,"xbrli:dateItemType","instant","DateOfReport",null,"xbrli:dateItemType","instant","DateOfReport",null,"xbrli:dateItemType","instant","DateOfReport",null,"xbrli:dateItemType","instant","DateOfReport",null,"xbrli:dateItemType","instant","DateOfReport",null,"xbrli:dateItemType","instant","DateOfReport",null,"xbrli:dateItemType","instant","DateOfReport",null,"xbrli:dateItemType","instant","DateOfReport",null,"xbrli:dateItemType","instant","DateOfReport",null,"xbrli:dateItemType","instant","DateOfReport",null,"xbrli:dateItemType","instant","DateOfReport",null,"xbrli:dateItemType","instant","DateOfReport",null,"xbrli:dateItemType","instant","DateOfReport",null,"xbrli:dateItemType","instant","DateOfReport",null,"xbrli:dateItemType","instant","DateOfReport",null,"xbrli:dateItemType","instant","DateOfReport",null,"xbrli:dateItemType","instant","DateOfReport",null,"xbrli:dateItemType","instant","DateOfReport",null,"xbrli:dateItemType","instant","DateOfReport",null,"xbrli:dateItemType","instant","DateOfReport",null,"xbrli:dateItemType","instant","DateOfReport",null,"xbrli:dateItemType","instant","DateOfReport",null,"xbrli:dateItemType","instant","DateOfReport",null,"xbrli:dateItemType","instant","DateOfReport",null,"xbrli:dateItemType","instant","DateOfReport",null,"xbrli:dateItemType","instant","DateOfReport",null,"xbrli:dateItemType","instant","DateOfReport",null,"xbrli:dateItemType","instant","DateOfReport",null,"xbrli:dateItemType","instant","DateOfReport",null,"xbrli:dateItemType","instant","DateOfReport",null,"xbrli:dateItemType","instant","DateOfReport",null,"xbrli:dateItemType","instant","DateOfReport",null,"xbrli:dateItemType","instant","DateOfReport",null,"xbrli:dateItemType","instant","DateOfReport",null,"xbrli:dateItemType","instant","DateOfReport",null,"xbrli:dateItemType","instant","DateOfReport",null,"xbrli:dateItemType","instant","DateOfReport",null,"xbrli:dateItemType","instant","DateOfReport",null,"xbrli:dateItemType","instant","DateOfReport",null,"xbrli:dateItemType","instant","DateOfReport",null,"xbrli:dateItemType","instant","DateOfReport",null,"xbrli:dateItemType","instant","DateOfReport",null,"xbrli:dateItemType","instant","DateOfReport",null,"xbrli:dateItemType","instant","DateOfReport",null,"xbrli:dateItemType","instant","DateOfReport",null,"xbrli:dateItemType","instant","DateOfReport",null,"xbrli:dateItemType","instant","DateOfReport",null,"xbrli:dateItemType","instant","DateOfReport",null,"xbrli:dateItemType","instant","DateOfReport",null,"xbrli:dateItemType","instant","DateOfReport",null,"xbrli:dateItemType","instant","DateOfReport",null,"xbrli:dateItemType","instant","DateOfReport",null,"xbrli:dateItemType","instant","DateOfReport",null,"xbrli:dateItemType","instant","DateOfReport",null,"xbrli:dateItemType","instant","DateOfReport",null,"xbrli:dateItemType","instant","DateOfReport",null,"xbrli:dateItemType","instant","DateOfReport",null,"xbrli:dateItemType","instant","DateOfReport",null,"xbrli:dateItemType","instant","DateOfReport",null,"xbrli:dateItemType","instant","DateOfReport",null,"xbrli:dateItemType","instant","DateOfReport",null,"xbrli:dateItemType","instant","DateOfReport",null,"xbrli:dateItemType","instant","DateOfReport",null,"xbrli:dateItemType","instant","DateOfReport",null,"xbrli:dateItemType","instant","DateOfReport",null,"xbrli:dateItemType","instant","DateOfReport",null,"xbrli:dateItemType","instant","DateOfReport",null,"xbrli:dateItemType","instant","DateOfReport",null,"xbrli:dateItemType","instant","DateOfReport",null,"xbrli:dateItemType","instant","DateOfReport",null,"xbrli:dateItemType","instant","DateOfReport",null,"xbrli:dateItemType","instant","DateOfReport",null,"xbrli:dateItemType","instant","DateOfReport",null,"xbrli:dateItemType","instant","DateOfReport",null,"xbrli:dateItemType","instant","DateOfReport",null,"xbrli:dateItemType","instant","DateOfReport",null,"xbrli:dateItemType","instant","DateOfReport",null,"xbrli:dateItemType","instant","DateOfReport",null,"xbrli:dateItemType","instant","DateOfReport",null,"xbrli:dateItemType","instant","DateOfReport",null,"xbrli:dateItemType","instant","DateOfReport",null,"xbrli:dateItemType","instant","DateOfReport",null,"xbrli:dateItemType","instant","DateOfReport",null,"xbrli:dateItemType","instant","DateOfReport",null,"xbrli:dateItemType","instant","DateOfReport",null,"xbrli:dateItemType","instant","DateOfReport",null,"xbrli:dateItemType","instant","DateOfReport",null,"xbrli:dateItemType","instant","DateOfReport",null,"xbrli:dateItemType","instant","DateOfReport",null,"xbrli:dateItemType","instant","DateOfReport",null,"xbrli:dateItemType","instant","DateOfReport",null,"xbrli:dateItemType","instant","DateOfReport",null,"xbrli:dateItemType","instant","DateOfReport",null,"xbrli:dateItemType","instant","DateOfReport",null,"xbrli:dateItemType","instant","DateOfReport",null,"xbrli:dateItemType","instant","DateOfReport",null,"xbrli:dateItemType","instant","DateOfReport",null,"xbrli:dateItemType","instant","DateOfReport",null,"xbrli:dateItemType","instant","DateOfReport",null,"xbrli:dateItemType","instant","DateOfReport",null,"xbrli:dateItemType","instant","DateOfReport",null,"xbrli:dateItemType","instant","DateOfReport",null,"xbrli:dateItemType","instant","DateOfReport",null,"xbrli:dateItemType","instant","DateOfReport",null,"xbrli:dateItemType","instant","DateOfReport",null,"xbrli:dateItemType","instant","DateOfReport",null,"xbrli:dateItemType","instant","DateOfReport",null,"xbrli:dateItemType","instant","DateOfReport",null,"xbrli:dateItemType","instant","DateOfReport",null,"xbrli:dateItemType","instant","DateOfReport",null,"xbrli:dateItemType","instant","DateOfReport",null,"xbrli:dateItemType","instant","DateOfReport",null,"xbrli:dateItemType","instant","DateOfReport",null,"xbrli:dateItemType","instant","DateOfReport",null,"xbrli:dateItemType","instant","DateOfReport",null,"xbrli:dateItemType","instant","DateOfReport",null,"xbrli:dateItemType","instant","DateOfReport",null,"xbrli:dateItemType","instant","DateOfReport",null,"xbrli:dateItemType","instant","DateOfReport",null,"xbrli:dateItemType","instant","DateOfReport",null,"xbrli:dateItemType","instant","DateOfReport",null,"xbrli:dateItemType","instant","DateOfReport",null,"xbrli:dateItemType","instant","DateOfReport",null,"xbrli:dateItemType","instant","DateOfReport",null,"xbrli:dateItemType","instant","DateOfReport",null,"xbrli:dateItemType","instant","DateOfReport",null,"xbrli:dateItemType","instant","DateOfReport",null,"xbrli:dateItemType","instant","DateOfReport",null,"xbrli:dateItemType","instant","DateOfReport",null,"xbrli:dateItemType","instant","DateOfReport",null,"xbrli:dateItemType","instant","DateOfReport",null,"xbrli:dateItemType","instant","DateOfReport",null,"xbrli:dateItemType","instant","DateOfReport",null,"xbrli:dateItemType","instant","DateOfReport",null,"xbrli:dateItemType","instant","DateOfReport",null,"xbrli:dateItemType","instant","DateOfReport",null,"xbrli:dateItemType","instant","DateOfReport",null,"xbrli:dateItemType","instant","DateOfReport",null,"xbrli:dateItemType","instant","DateOfReport",null,"xbrli:dateItemType","instant","DateOfReport",null,"xbrli:dateItemType","instant","DateOfReport",null,"xbrli:dateItemType","instant","DateOfReport",null,"xbrli:dateItemType","instant","DateOfReport",null,"xbrli:dateItemType","instant","DateOfReport",null,"xbrli:dateItemType","instant","DateOfReport",null,"xbrli:dateItemType","instant","DateOfReport",null,"xbrli:dateItemType","instant","DateOfReport",null,"xbrli:dateItemType","instant","DateOfReport",null,"xbrli:dateItemType","instant","DateOfReport",null,"xbrli:dateItemType","instant","DateOfReport",null,"xbrli:dateItemType","instant","DateOfReport",null,"xbrli:dateItemType","instant","DateOfReport",null,"xbrli:dateItemType","instant","DateOfReport",null,"xbrli:dateItemType","instant","DateOfReport",null,"xbrli:dateItemType","instant","DateOfReport",null,"xbrli:dateItemType","instant","DateOfReport",null,"xbrli:dateItemType","instant","DateOfReport",null,"xbrli:dateItemType","instant","DateOfReport",null,"xbrli:dateItemType","instant","DateOfReport",null,"xbrli:dateItemType","instant","DateOfReport",null,"xbrli:dateItemType","instant","DateOfReport",null,"xbrli:dateItemType","instant","DateOfReport",null,"xbrli:dateItemType","instant","DateOfReport",null,"xbrli:dateItemType","instant","DateOfReport",null,"xbrli:dateItemType","instant","DateOfReport",null,"xbrli:dateItemType","instant","DateOfReport",null,"xbrli:dateItemType","instant","DateOfReport",null,"xbrli:dateItemType","instant","DateOfReport",null,"xbrli:dateItemType","instant","DateOfReport",null,"xbrli:dateItemType","instant","DateOfReport",null,"xbrli:dateItemType","instant","DateOfReport",null,"xbrli:dateItemType","instant","DateOfReport",null,"xbrli:dateItemType","instant","DateOfReport",null,"xbrli:dateItemType","instant","DateOfReport",null,"xbrli:dateItemType","instant","DateOfReport",null,"xbrli:dateItemType","instant","DateOfReport",null,"xbrli:dateItemType","instant","DateOfReport",null,"xbrli:dateItemType","instant","DateOfReport",null,"xbrli:dateItemType","instant","DateOfReport",null,"xbrli:dateItemType","instant","DateOfReport",null,"xbrli:dateItemType","instant","DateOfReport",null,"xbrli:dateItemType","instant","DateOfReport",null,"xbrli:dateItemType","instant","DateOfReport",null,"xbrli:dateItemType","instant","DateOfReport",null,"xbrli:dateItemType","instant","DateOfReport",null,"xbrli:dateItemType","instant","DateOfReport",null,"xbrli:dateItemType","instant","DateOfReport",null,"xbrli:dateItemType","instant","DateOfReport",null,"xbrli:dateItemType","instant","DateOfReport",null,"xbrli:dateItemType","instant","DateOfReport",null,"xbrli:dateItemType","instant","DateOfReport",null,"xbrli:dateItemType","instant","DateOfReport",null,"xbrli:dateItemType","instant","DateOfReport",null,"xbrli:dateItemType","instant","DateOfReport",null,"xbrli:dateItemType","instant","DateOfReport",null,"xbrli:dateItemType","instant","DateOfReport",null,"xbrli:dateItemType","instant","DateOfReport",null,"xbrli:dateItemType","instant","DateOfReport",null,"xbrli:dateItemType","instant","DateOfReport",null,"xbrli:dateItemType","instant","DateOfReport",null,"xbrli:dateItemType","instant","DateOfReport",null,"xbrli:dateItemType","instant","DateOfReport",null,"xbrli:dateItemType","instant","DateOfReport",null,"xbrli:dateItemType","instant","DateOfReport",null,"xbrli:dateItemType","instant","DateOfReport",null,"xbrli:dateItemType","instant","DateOfReport",null,"xbrli:dateItemType","instant","DateOfReport",null,"xbrli:dateItemType","instant","DateOfReport",null,"xbrli:dateItemType","instant","DateOfReport",null,"xbrli:dateItemType","instant","DateOfReport",null,"xbrli:dateItemType","instant","DateOfReport",null,"xbrli:dateItemType","instant","DateOfReport",null,"xbrli:dateItemType","instant","DateOfReport",null,"xbrli:dateItemType","instant","DateOfReport",null,"xbrli:dateItemType","instant","DateOfReport",null,"xbrli:dateItemType","instant","DateOfReport",null,"xbrli:dateItemType","instant","DateOfReport",null,"xbrli:dateItemType","instant","DateOfReport",null,"xbrli:dateItemType","instant","DateOfReport",null,"xbrli:dateItemType","instant","DateOfReport",null,"xbrli:dateItemType","instant","DateOfReport",null,"xbrli:dateItemType","instant","DateOfReport",null,"xbrli:dateItemType","instant","DateOfReport",null,"xbrli:dateItemType","instant","DateOfReport",null,"xbrli:dateItemType","instant","DateOfReport",null,"xbrli:dateItemType","instant","DateOfReport",null,"xbrli:dateItemType","instant","DateOfReport",null,"xbrli:dateItemType","instant","DateOfReport",null,"xbrli:dateItemType","instant","DateOfReport",null,"xbrli:dateItemType","instant","DateOfReport",null,"xbrli:dateItemType","instant","DateOfReport",null,"xbrli:dateItemType","instant","DateOfReport",null,"xbrli:dateItemType","instant","DateOfReport",null,"xbrli:dateItemType","instant","DateOfReport",null,"xbrli:dateItemType","instant","DateOfReport",null,"xbrli:dateItemType","instant","DateOfReport",null,"xbrli:dateItemType","instant","DateOfReport",null,"xbrli:dateItemType","instant","DateOfReport",null,"xbrli:dateItemType","instant","DateOfReport",null,"xbrli:dateItemType","instant","DateOfReport",null,"xbrli:dateItemType","instant","DateOfReport",null,"xbrli:dateItemType","instant","DateOfReport",null,"xbrli:dateItemType","instant","DateOfReport",null,"xbrli:dateItemType","instant","DateOfReport",null,"xbrli:dateItemType","instant","DateOfReport",null,"xbrli:dateItemType","instant","DateOfReport",null,"xbrli:dateItemType","instant","DateOfReport",null,"xbrli:dateItemType","instant","DateOfReport",null,"xbrli:dateItemType","instant","DateOfReport",null,"xbrli:dateItemType","instant","DateOfReport",null,"xbrli:dateItemType","instant","DateOfReport",null,"xbrli:dateItemType","instant","DateOfReport",null,"xbrli:dateItemType","instant","DateOfReport",null,"xbrli:dateItemType","instant","DateOfReport",null,"xbrli:dateItemType","instant","DateOfReport",null,"xbrli:dateItemType","instant","DateOfReport",null,"xbrli:dateItemType","instant","DateOfReport",null,"xbrli:dateItemType","instant","DateOfReport",null,"xbrli:dateItemType","instant"]
[]
["EventForNoticeOfShareholdersMeeting","Event*","in-capmkt-types:ShareholdersMeetingEvent","instant","1)This field is mandatory.\n2)Please select from dropdown only."]
["DetailsOfOtherEventForNoticeOfShareholdersMeeting","If others, please specify","xbrli:stringItemType","instant","1)This field is mandatory If \"Others\" selected in \"Event\".\n2)Maximum 4000 characters allowed."]
["ModeOfShareholdersMeeting","Mode of meeting*","in-capmkt-types:ModeOfMeeting","instant","1)This field is mandatory.\n2)Please select from dropdown only.\n3)Duplicate value not allowed."]
["NumberOfShareholdersMeeting","Number of Shareholders Meeting*","xbrli:stringItemType","instant","1)This field is mandatory.\n2)Maximum 4000 characters allowed."]
["DayOfShareholdersMeeting","Day*","xbrli:stringItemType","instant","This field is mandatory."]
["DateOfShareholdersMeeting","Date*","xbrli:dateItemType","instant","1)This field is mandatory.\n2)Please enter in \"DD-MM-YYYY\" format."]
["ShareholdersMeetingCommencementTime","Meeting Commencement Time","xbrli:timeItemType","instant","1)This field is mandatory.\n2)Please select from drop down only."]
["PlaceOfShareholdersMeeting","Place","xbrli:stringItemType","instant","This field is mandatory."]
["EndDateOfPostalBallotVoting","End date of Postal Ballot Voting","xbrli:dateItemType","instant","1)This field is mandatory If \"Postal Ballot\" selected in \"Event\".\n2)Please enter in \"DD-MM-YYYY\" format."]
["NumberOfAgendaOrBusinessToBeTransacted","Number of agenda/business to be transacted* ","xbrli:integerItemType","instant","1)This field is mandatory.\n2)Only numeric value allowed."]
["DetailsOfResolutionOrAgenda","Details of Resolution/Agenda","xbrli:stringItemType","instant"]
["RemarksForWebsiteDisseminationForShareholdersMeeting","Remarks (website dissemination)","xbrli:stringItemType","instant","Maximum 500000 characters allowed."]
["RemarksForExchangeNotForWebsiteDisseminationForShareholdersMeeting","Remarks for exchange (not for website dissemination)","xbrli:stringItemType","instant","Maximum 500000 characters allowed."]
["OtherInformationForShareholdersMeeting",null,"xbrli:stringItemType","instant","Maximum 500000 characters allowed."]
["NameOfListedEntityOrSubsidiaryEnteringIntoTheTransaction","Name of the party*","xbrli:stringItemType","duration","This field is mandatory."]
["PANOfListedEntityOrSubsidiaryEnteringIntoTheTransaction","PAN of the party*","in-capmkt-types:PermanentAccountNumber","duration","1) This is mandatory field.\n2) Please enter 10 digit PAN number."]
["NameOfCounterParty","Name of the counterparty*","xbrli:stringItemType","duration","1) This is mandatory field.\n2) Name of the party and Name of the counterparty should not be the same."]
["PANOfCounterParty","PAN of the counterparty*","in-capmkt-types:PermanentAccountNumber","duration","1) This is mandatory field.\n2) Please enter 10 digit PAN number.\n3) PAN of the party and PAN of the counterparty should not be the same, except if PAN is not available for the both."]
["RelationshipOfTheCounterpartyWithTheListedEntityOrItsSubsidiary","Relationship with the counterparty*","xbrli:stringItemType","duration","This field is mandatory."]
["TypeOfRelatedPartyTransaction","Type of Related Party Transactions*","in-capmkt-types:TypeOfTransaction","duration","1) This field is mandatory.\n2) Please select from drop down only."]
["DetailsOfOtherRelatedPartyTransaction","Details of other transactions","xbrli:stringItemType","duration","1)This field is mandatory, if \"Any other transaction\" selected in \"Type of Related Party Transactions\".\n2) Maximum 4000 characters allowed."]
["AmountOfRelatedPartyTransactionDuringTheReportingPeriod","Value of the transaction (In Rs.)*","xbrli:monetaryItemType","duration","1) This field is mandatory.\n2) Only numeric value allowed.\n3) Upto two decimal value allowed."]
["DateOfStartOfTenure"," Tenure (Start Date)*","xbrli:dateItemType","duration","1) This field is mandatory.\n2) Please enter in \"DD-MM-YYYY\" format.\n3) Enter a valid date."]
["DateOfEndOfTenure"," Tenure (End Date)*","xbrli:dateItemType","duration","1) This field is mandatory.\n2) It should be greater than equal to \"Tenure (Start Date)\".\n3) Please enter in \"DD-MM-YYYY\" format.\n4) Enter a valid date."]
["RemarksForTenureOfTheRelatedPartyTransaction","Remarks for Tenure, if any","xbrli:stringItemType","duration","Maximum 4000 characters allowed."]
["TypeOfResolution","Type of Resolution*","in-capmkt-types:TypeofResolution","instant","1) This field is mandatory.\n2) Please select from drop down only."]
["CategoryOfResolution","Resolution Category*","in-capmkt-types:CategoryOfResolution","instant","1) This field is mandatory.\n2) Please select from drop down only."]
["SubCategoryOfResolution","Sub-category","in-capmkt-types:SubCategoryOfResolution","instant","1) This field is mandatory.\n2) Please select from drop down only."]
["DetailsOfOtherSubCategoryOfResolution","Details of other sub-category","xbrli:stringItemType","duration","1) This field is mandatory, if \"Others\" selected in \"Sub-category\".\n2) Maximum 4000 characters allowed."]
["BriefDetailsOfResolution","Brief details of resolution*","xbrli:stringItemType","duration","1) This field is mandatory.\n2) Maximum 4000 characters allowed."]
["DesignationOfDesignatedPerson","Designation","in-capmkt-types:DesignationOfDesignatedPerson","instant","1) This field is mandatory.\n2) Please select from drop down only."]
["DetailsOfOtherDesignation","Details of other designation","xbrli:stringItemType","duration","1) This field is mandatory, if \"Others\" selected in \"Designation\".\n2) Maximum 4000 characters allowed."]
["NameOfDesignatedPerson","Name of designated person","xbrli:stringItemType","duration","This field is mandatory."]
["DirectorIdentificationNumberOfDirector","DIN","in-capmkt-types:DINNumber","duration","1) This is mandatory field.\n2) Please enter 8 digit DIN number."]
["PANOfDesignatedPerson","PAN of designated person","in-capmkt-types:PermanentAccountNumber","duration","1) This is mandatory field.\n2) Please enter 10 digit PAN number."]
["DateOfStartOfTenure","Tenure (Start Date)","xbrli:dateItemType","duration","1) This field is mandatory.\n2) Please enter in \"DD-MM-YYYY\" format.\n3) Enter a valid date."]
["DateOfEndOfTenure","Tenure (End Date)","xbrli:dateItemType","duration","1) This field is mandatory.\n2) It should be greater than equal to \"Tenure (Start Date)\".\n3) Please enter in \"DD-MM-YYYY\" format.\n4) Enter a valid date."]
["NumberOfTimesAppointed","Term (No. of times appointed)","xbrli:integerItemType","duration","1) This field is mandatory, if \"Appointment\" or \"Re-appointment\" or \"Appointment/Continuation under Reg. 17(1A) of SEBI LODR\" or  \"Continuation under Reg. 17(1D) of SEBI LODR\" selected in \"Sub Category\"and \"Executive Director\" or \"Non-Executive - Independent Director\" selected in \"Designation\".\n2) Please select from drop down only."]
["AmountOfRemuneration","Amount of Remuneration (in Rs.)\n(Annual)","xbrli:monetaryItemType","duration","1) This field is mandatory, if \"Remuneration\" selected in \"Sub-category\".\n2) Only numeric value allowed.\n3) Upto two decimal value allowed."]

{"sheet":"TextBlock","index":6,"n_rows":0,"n_cols":0,"rows_kept":0,"cut":false,"hidden":true,"merged":[]}